Workbook

Sheet Mẫu số 11. Bảng giá dự thầu (hidden)
A1: MẪU SỐ 11. BẢNG TỔNG HỢP GIÁ DỰ THẦU
A5: STT | B5: Mô tả công việc(2) | C5: Đơn vị tính | D5: Giá theo hạng mục(3)

Sheet Mẫu số 11C. Bảng giá dự thầu (hidden)
A1: MẪU SỐ 11C. BẢNG TỔNG HỢP GIÁ DỰ THẦU
A5: STT | B5: Id | C5: Mô tả công việc mời thầu | D5: Yêu cầu kỹ thuật/Chỉ dẫn kỹ thuật chính | E5: Khối lượng mời thầu | F5: Đơn vị tính | G5: Đơn giá dự thầu | H5: Thành tiền

Sheet Bìa (hidden)
M4: =Info!D14 -> Công ty …................................................
C6: www.ungdungxaydung.com
C11: HỒ SƠ DỰ TOÁN
E12: =Info!$C$5&Info!$D$5 -> Dự án: Dự án đầu tư xây dựng công trình …
E13: =Info!$C$6&Info!$D$6 -> Công trình: Công trình xây dựng …
E14: =Info!$C$8&Info!$D$8 -> Địa điểm xây dựng: Hà Nội …
E15: =Info!$C$12&Info!$D$12 -> Chủ đầu tư: UBND…
E16: =Info!$C$14&Info!$D$14 -> Tư vấn thiết kế: Công ty …................................................
P29: …....., năm 2024
I36: =Info!D14 -> Công ty …................................................
C38: www.ungdungxaydung.com
M49: HỒ SƠ DỰ TOÁN
D50: =Info!$C$5&Info!$D$5 -> Dự án: Dự án đầu tư xây dựng công trình …
D51: =Info!$C$6&Info!$D$6 -> Công trình: Công trình xây dựng …
D52: =Info!$C$8&Info!$D$8 -> Địa điểm xây dựng: Hà Nội …
D53: =Info!$C$12&Info!$D$12 -> Chủ đầu tư: UBND…
D54: =Info!$C$14&Info!$D$14 -> Tư vấn thiết kế: Công ty …................................................
K85: Hà Nội, năm 2024
X86: _

Sheet Thuyết minh (hidden)
AB2: _
B4: =UPPER(Info!D14) -> CÔNG TY …................................................ | P4: CỘNG HÒA XÃ HỘI CHỦ NGHĨA VIỆT NAM
P5: Độc lập - Tự do - Hạnh phúc
B7: THUYẾT MINH DỰ TOÁN
B8: =Info!$C$5&Info!$D$5 -> Dự án: Dự án đầu tư xây dựng công trình …
B9: =Info!$C$6&Info!$D$6 -> Công trình: Công trình xây dựng …
B10: =Info!C8&Info!D8 -> Địa điểm xây dựng: Hà Nội …
B11: I. Căn cứ lập dự toán:
B12: - Nghị định số 10/2021/NĐ-CP ngày 09/02/2021 của Chính phủ về Quản lý chi phí đầu tư xây dựng;
B13: - Thông tư 11/2021/TT-BXD ngày 31/08/2021 của Bộ Xây dựng hướng dẫn xác định và quản lý chi phí đầu tư xây dựng;
B14: - Thông tư 12/2021/TT-BXD ngày 31/08/2021 của Bộ Xây dựng ban hành định mức xây dựng;
B15: - Thông tư 13/2021/TT-BXD ngày 31/08/2021 của Bộ Xây dựng hướng dẫn xác định các chỉ tiêu kinh tế kỹ thuật và đo bóc khối lượng công trình;
B16: - Thông tư số 209/2016/TT- BTC ngày 10/11/2016 của Bộ Tài chính hướng dẫn chế độ thu, nộp và quản lý sử dụng phí thẩm định dự án đầu tư xây dựng, phí thẩm định thiết kế cơ sở;
B17: - Văn bản số ….............. ngày … / … / 20… về việc Công bố giá vật liệu Liên Sở Xây dựng - Tài chính tỉnh ....
B18: - Văn bản số ….............. ngày … / … / 20… về việc Công bố giá nhân công xây dựng tỉnh ....
B19: - Văn bản số ….............. ngày … / … / 20… về việc Công bố bảng Giá ca máy và thiết bị thi công tỉnh ....
B20: - Quyết định số …..../QĐ…....... ngày … /…./202… về việc phê duyệt dự án…...
B21: - Một số tài liệu khác có liên quan.
B22: II. Giá trị dự toán: | G22: ='Tổng hợp CPXD'!E30 -> 0 | M22: đồng.
B23: ="Bằng chữ: "&doc_vnd(G22)&"/." -> Bằng chữ: đồng./.
T24: .... , ngày .… tháng …. năm 202…
V25: ĐƠN VỊ LẬP
AB29: _

Sheet Info
C2: THÔNG TIN CÔNG TRÌNH | L2: TColor | M2: TPColor | N2: BLColor | O2: ACColor
C4: Thông tin chung
B5: ◦ | C5: Dự án: | D5: Dự án đầu tư xây dựng công trình …
B6: ◦ | C6: Công trình: | D6: Công trình xây dựng …
B7: ◦ | C7: Tên gói thầu: | D7: Thi công xây lắp …
B8: ◦ | C8: Địa điểm xây dựng: | D8: Hà Nội …
B9: ◦ | C9: Loại công trình: | D9: =VLOOKUP(Options!$N$12,Options!$N$13:$O$17,2,0) -> Công trình dân dụng
B11: ◦ | C11: Chi phí Xây dựng trước thuế trong Tổng mức đầu tư
B12: ◦ | C12: Chủ đầu tư: | D12: UBND…
B13: ◦ | C13: Ban quản lý dự án: | D13: Ban Quản lý dự án PMU
B14: ◦ | C14: Tư vấn thiết kế: | D14: Công ty …................................................
B15: ◦ | C15: Đơn vị khác 1 | D15: …
B16: ◦ | C16: Đơn vị khác 2 | D16: …
B17: ◦ | C17: Đơn vị khác 3 | D17: …
C18: Các hệ số và định mức tỷ lệ
C19: NỘI DUNG | D19: Nhập ▼ | E19: Ghi chú
B20: Kvl | C20: Hệ số vật liệu | D20: 1
B21: Knc | C21: Hệ số nhân công | D21: 1
B22: Kmtc | C22: Hệ số máy thi công | D22: 1
B23: C | C23: =Options!I13 -> Định mức chi phí chung tính trên chi phí trực tiếp (C) | D23: =Options!$J$13 -> 0.073
B24: TL | C24: Thu nhập chịu thuế tính trước | D24: =Options!$J$14 -> 0.055
B25: GTGT | C25: Thuế giá trị gia tăng | D25: 0.1
B26: Gnt | C26: Chi phí xây dựng lán trại, nhà tạm để ở và điều hành thi công | D26: =Options!$J$16 -> 0.011
B27: Gk | C27: Chi phí không xác định được khối lượng từ thiết kế | D27: =Options!$J$17 -> 0.025
B28: Hsdp1 | C28: Dự phòng phát sinh khối lượng | D28: 0.05
B29: Hsdp2 | C29: Dự phòng trượt giá | D29: 0.08
C31: Giá nhiên liệu năng lượng
C32: Loại | D32: Nhập giá trước thuế ▼ | E32: Căn cứ
C33: Xăng (lít) : | E33: Thông cáo BC Petrolimex tại thời điểm lập dự toán
C34: Diezel (lít) :
C35: Điện (KWh) : | D35: 2006.79 | E35: Quyết định số 1416/QĐ-EVN ngày 08/11/2023

Sheet Options (hidden)
C2: OPTIONS | M2: Tham số | N2: =INDEX($N$3:$N$9,MATCH($E$23,$O$3:$O$9,0)) -> 1 | O2: =INDEX(O3:O9,N2) -> Chi phí Xây dựng | Phụ lục số 3 Thông tư 11/2021/TT-BXD | P2: =IF(ISNUMBER(FIND("11/2021",O2)),"TT11",IF(ISNUMBER(FIND("09/2019",O2)),"TT09",IF(ISNUMBER(FIND("06/2016",O2)),"TT06","TT11"))) -> TT11
M3: Mẫu chi phí đuôi | N3: 1 | O3: Chi phí Xây dựng | Phụ lục số 3 Thông tư 11/2021/TT-BXD
N4: 2 | O4: Chi phí Khảo sát | Phụ lục số 5 Thông tư 11/2021/TT-BXD | BC4: Thông tư 14/2017/TT-BXD Hướng dẫn xác định và quản lý chi phí dịch vụ công ích đô thị
N5: 3 | O5: Chi phí Xây dựng | Phụ lục số 3 Thông tư 09/2019/TT-BXD | BC5: TT | BD5: Loại dịch vụ công ích | BE5: Loại đô thị
N6: 4 | O6: Chi phí Dịch vụ công ích đô thị | Thông tư 14/2017/TT-BXD | S6: Thông tư 06/2016 | AD6: Thông tư 09/2019 | AO6: Thông tư 11/2021 | BC6: =$N$12-5 -> -4 | BE6: Đặc biệt | BF6: I | BG6: II | BH6: III ÷ V
N7: 5 | O7: Chi phí Xây dựng | Thông tư 06/2016/TT-BXD | S7: STT | T7: LOẠI CÔNG TRÌNH | U7: CKKL | V7: C | X7: TN | Y7: LT | AD7: STT | AE7: LOẠI CÔNG TRÌNH | AF7: CKKL | AG7: C | AI7: LT | AJ7: NT | AO7: STT | AP7: LOẠI CÔNG TRÌNH | AQ7: CKKL | AR7: C | AT7: LT | AU7: NT | BC7: 1 | BD7: Thu gom, vận chuyển chất thải rắn sinh hoạt đô thị | BE7: 55 | BF7: 53 | BG7: 50 | BH7: 48
N8: 6 | O8: Mẫu Dự thầu HĐ đơn giá cố định | S8: 1 | T8: Công trình dân dụng | U8: =IFERROR(INDEX(U9:U10,$P$12,0),U9) -> 2.5 | V8: =IFERROR(INDEX(V9:V10,$P$12,0),V9) -> 6.5 | W8: =IFERROR(INDEX(W9:W10,$P$12,0),W9) -> Định mức chi phí chung tính trên chi phí trực tiếp (C) | X8: 5.5 | Y8: 0.01 | AD8: 1 | AE8: Công trình dân dụng | AF8: =IFERROR(INDEX(AF9:AF10,$P$12,0),AF9) -> 2.5 | AG8: =IFERROR(INDEX(AG9:AG10,$P$12,0),AG9) -> 7.3 | AH8: =IFERROR(INDEX(AH9:AH10,$P$12,0),AH9) -> Định mức chi phí chung tính trên chi phí trực tiếp (C) | AI8: 5.5 | AJ8: =IF($K$16=1,$AM$48,$AM$49)/100 -> 0.012 | AO8: 1 | AP8: Công trình dân dụng | AQ8: =IFERROR(INDEX(AQ9:AQ10,$P$12,0),AQ9) -> 2.5 | AR8: =IFERROR(INDEX(AR9:AR10,$P$12,0),AR9) -> 7.3 | AS8: =IFERROR(INDEX(AS9:AS10,$P$12,0),AS9) -> Định mức chi phí chung tính trên chi phí trực tiếp (C) | AT8: 5.5 | AU8: =IF($K$16=1,$AX$48,$AX$49)/100 -> 0.011 | BC8: 2 | BD8: Duy trì hệ thống chiếu sáng đô thị | BE8: 52 | BF8: 50 | BG8: 48 | BH8: 45
N9: 7 | O9: Mẫu Dự thầu HĐ đơn giá điều chỉnh | T9: Thông thường | U9: 2.5 | V9: =AB28 -> 6.5 | W9: Định mức chi phí chung tính trên chi phí trực tiếp (C) | AE9: Thông thường | AF9: 2.5 | AG9: =AM28 -> 7.3 | AH9: Định mức chi phí chung tính trên chi phí trực tiếp (C) | AP9: Thông thường | AQ9: 2.5 | AR9: =BA28 -> 7.3 | AS9: Định mức chi phí chung tính trên chi phí trực tiếp (C) | BC9: 3 | BD9: Duy trì, phát triển hệ thống cây xanh đô thị | BE9: 50 | BF9: 48 | BG9: 47 | BH9: 45
N10: 8 | O10: Mẫu Dự thầu HĐ trọn gói | T10: Riêng công trình tu bổ, phục hồi di tích lịch sử, văn hóa | U10: 2.5 | V10: =AB29 -> 10 | W10: Định mức chi phí chung tính trên chi phí trực tiếp (C) | AE10: Công trình tu bổ, phục hồi di tích lịch sử, văn hóa | AF10: 2.5 | AG10: =AM29 -> 11.6 | AH10: Định mức chi phí chung tính trên chi phí trực tiếp (C) | AP10: Riêng công trình tu bổ, phục hồi di tích lịch sử, văn hóa | AQ10: 2.5 | AR10: =BA29 -> 11.6 | AS10: Định mức chi phí chung tính trên chi phí trực tiếp (C) | BC10: =VLOOKUP($BC$6,$BC$7:$BH$9,2+$BC$12)/100 ->  | BD10: ĐMTL CP Chung đưa sang Info
C11: PARAMETERS | P11: =IF(Mau_Thongtu="TT11","$AP$8:$AP$25",IF(Mau_Thongtu="TT09","$AE$8:$AE$25","$T$8:$T$25")) -> $AP$8:$AP$25 | S11: 2 | T11: Công trình công nghiệp | U11: =INDEX(U12:U14,$P$12,0) -> 2 | V11: =INDEX(V12:V14,$P$12,0) -> 5.5 | W11: =INDEX(W12:W14,$P$12,0) -> Định mức chi phí chung tính trên chi phí trực tiếp (C) | X11: 6 | Y11: 0.01 | AD11: 2 | AE11: Công trình công nghiệp | AF11: =INDEX(AF12:AF14,$P$12,0) -> 2 | AG11: =INDEX(AG12:AG14,$P$12,0) -> 6.2 | AH11: =INDEX(AH12:AH14,$P$12,0) -> Định mức chi phí chung tính trên chi phí trực tiếp (C) | AI11: 6 | AJ11: =IF($K$16=1,$AM$48,$AM$49)/100 -> 0.012 | AO11: 2 | AP11: Công trình công nghiệp | AQ11: =INDEX(AQ12:AQ14,$P$12,0) -> 2 | AR11: =INDEX(AR12:AR14,$P$12,0) -> 6.2 | AS11: =INDEX(AS12:AS14,$P$12,0) -> Định mức chi phí chung tính trên chi phí trực tiếp (C) | AT11: 6 | AU11: =IF($K$16=1,$AX$48,$AX$49)/100 -> 0.011
B12: 1 | C12: ChooseNo.code | I12: Chuyển bảng Info | M12: Tham số | N12: 1 | O12: =INDEX(O13:O20,N12) -> Công trình dân dụng | P12: 1 | T12: Thông thường | U12: 2 | V12: =AB30 -> 5.5 | W12: Định mức chi phí chung tính trên chi phí trực tiếp (C) | AE12: Thông thường | AF12: 2 | AG12: =AM30 -> 6.2 | AH12: Định mức chi phí chung tính trên chi phí trực tiếp (C) | AP12: Thông thường | AQ12: 2 | AR12: =BA30 -> 6.2 | AS12: Định mức chi phí chung tính trên chi phí trực tiếp (C) | BC12: =$P$12 -> 1 | BD12: Loại đô thị
B13: 2 | C13: Vector | E13: 4ca79bbed0ad07f267b9c1bc1445fef3 | H13: C | I13: =IFERROR(IF(Mau_Thongtu="TT09",VLOOKUP($N$12,$AD$8:$AI$27,5,0),IF(Mau_Thongtu="TT11",VLOOKUP($N$12,$AO$8:$AU$24,5,0),IF(Mau_Thongtu="TT06",VLOOKUP($N$12,$S$8:$X$24,5,0)))),"Định mức chi phí quản lý chung tính trên chi phí nhân công (C)") -> Định mức chi phí chung tính trên chi phí trực tiếp (C) | J13: =IFERROR(IF(Mau_Thongtu="TT11",VLOOKUP($N$12,$AO$8:$AT$24,4,0)/100,IF(Mau_Thongtu="TT09",VLOOKUP($N$12,$AD$8:$AI$24,4,0)/100,IF(Mau_Thongtu="TT06",VLOOKUP($N$12,$S$8:$X$24,4,0)/100))),$BC$10) -> 0.073 | M13: Loại công trình | N13: 1 | O13: Công trình dân dụng | P13: =IF($N$12>5,$BD$13,INDEX(INDIRECT($P$11),MATCH($O$12,INDIRECT($P$11),0)+1,1)) -> Thông thường | T13: Riêng công tác xây dựng trong đường hầm thủy điện, hầm lò | U13: 6.5 | V13: =AB31 -> 6.5 | W13: Định mức chi phí chung tính trên chi phí trực tiếp (C) | AE13: Công trình xây dựng hầm lò, hầm thủy điện | AF13: 6.5 | AG13: =AM31 -> 7.3 | AH13: Định mức chi phí chung tính trên chi phí trực tiếp (C) | AP13: Riêng công tác xây dựng trong đường hầm thủy điện, hầm lò | AQ13: 6.5 | AR13: =BA31 -> 7.3 | AS13: Định mức chi phí chung tính trên chi phí trực tiếp (C) | BC13: 1 | BD13: Đô thị loại Đặc biệt
B14: 3 | C14: Volumn Detail | D14: 1 | E14: 0 | F14: 1-Có 0-Không | H14: TL | I14: Thu nhập chịu thuế tính trước | J14: =IFERROR(IF(Mau_Thongtu="TT11",VLOOKUP($N$12,$AO$8:$AT$24,6,0)/100,IF(Mau_Thongtu="TT09",VLOOKUP($N$12,$AD$8:$AI$24,6,0)/100,IF(Mau_Thongtu="TT06",VLOOKUP($N$12,$S$8:$X$24,6,0)/100))),5%) -> 0.055 | N14: 2 | O14: Công trình công nghiệp | P14: =IF($N$12>5,$BD$14,INDEX(INDIRECT($P$11),MATCH($O$12,INDIRECT($P$11),0)+2,1)) -> Riêng công trình tu bổ, phục hồi di tích lịch sử, văn hóa | T14: Công tác lắp đặt thiết bị công nghệ, thí nghiệm hiệu chỉnh đường dây và trạm biến áp | U14: 2 | V14: =AB$43 -> 65 | W14: Định mức chi phí chung tính trên chi phí nhân công (C) | AE14: Công tác lắp đặt thiết bị công nghệ, thí nghiệm hiệu chỉnh đường dây và trạm biến áp | AF14: 2 | AG14: =AM$43 -> 65 | AH14: Định mức chi phí chung tính trên chi phí nhân công (C) | AP14: Lắp đặt thiết bị công nghệ trong các công trình xây dựng; xây dựng và lắp đặt đường dây tải điện; lắp đặt trạm biến áp; thí nghiệm hiệu chỉnh điện đường dây và trạm biến áp; thí nghiệm vật liệu, cấu kiện và kết cấu xây dựng | AQ14: 2 | AR14: =AY43 -> 65 | AS14: Định mức chi phí chung tính trên chi phí nhân công (C) | BC14: 2 | BD14: Đô thị loại I
B15: 4 | C15: VLP | F15: 1-Có 0-Không | H15: GTGT | I15: Thuế giá trị gia tăng | J15: 0.1 | N15: 3 | O15: Công trình giao thông | P15: =IF($N$12>5,$BD$15,IF(OR($N$12=1,$N$12=5),"",INDEX(INDIRECT($P$11),MATCH($O$12,INDIRECT($P$11),0)+3,1))) ->  | S15: 3 | T15: Công trình giao thông | U15: =INDEX(U16:U18,$P$12,0) -> 2 | V15: =INDEX(V16:V18,$P$12,0) -> 5.5 | W15: =INDEX(W16:W18,$P$12,0) -> Định mức chi phí chung tính trên chi phí trực tiếp (C) | X15: 6 | Y15: =IF($K$16=1,2%,1%) -> 0.01 | AD15: 3 | AE15: Công trình giao thông | AF15: =INDEX(AF16:AF18,$P$12,0) -> 2 | AG15: =INDEX(AG16:AG18,$P$12,0) -> 6.2 | AH15: =INDEX(AH16:AH18,$P$12,0) -> Định mức chi phí chung tính trên chi phí trực tiếp (C) | AI15: 6 | AJ15: =IF($K$16=1,$AM$48,$AM$49)/100 -> 0.012 | AO15: 3 | AP15: Công trình giao thông | AQ15: =INDEX(AQ16:AQ18,$P$12,0) -> 2 | AR15: =INDEX(AR16:AR18,$P$12,0) -> 6.2 | AS15: =INDEX(AS16:AS18,$P$12,0) -> Định mức chi phí chung tính trên chi phí trực tiếp (C) | AT15: 6 | AU15: =IF($K$16=1,$AX$48,$AX$49)/100 -> 0.011 | BC15: 3 | BD15: Đô thị loại II
B16: 5 | C16: CountDGinBill | E16: =COUNTA('Dự toán'!$F$9:$F$23) -> 0 | H16: Gnt | I16: Chi phí xây dựng lán trại, nhà tạm để ở và điều hành thi công | J16: =IFERROR(IF(Mau_Thongtu="TT11",VLOOKUP($N$12,$AO$8:$AU$24,7,0),IF(Mau_Thongtu="TT09",VLOOKUP($N$12,$AD$8:$AJ$24,7,0),IF(Mau_Thongtu="TT06",VLOOKUP($N$12,$S$8:$Y$24,7,0)))),"Không có") -> 0.011 | K16: 2 | N16: 4 | O16: Công trình nông nghiệp và phát triển nông thôn | P16: =IF($N$12>5,$BD$16,"") ->  | T16: Thông thường | U16: 2 | V16: =AB32 -> 5.5 | W16: Định mức chi phí chung tính trên chi phí trực tiếp (C) | AE16: Thông thường | AF16: 2 | AG16: =AM32 -> 6.2 | AH16: Định mức chi phí chung tính trên chi phí trực tiếp (C) | AP16: Thông thường | AQ16: 2 | AR16: =BA32 -> 6.2 | AS16: Định mức chi phí chung tính trên chi phí trực tiếp (C) | BC16: 4 | BD16: Đô thị loại III ÷ V
B17: 6 | C17: CountDGinDetail | E17: =COUNTA('Đơn giá'!$F$9:$F$12) -> 1 | H17: Gk | I17: Chi phí không xác định được khối lượng từ thiết kế | J17: =IFERROR(IF(Mau_Thongtu="TT11",VLOOKUP($N$12,$AO$8:$AU$24,3,0)/100,IF(Mau_Thongtu="TT09",VLOOKUP($N$12,$AD$8:$AI$24,3,0)/100,IF(Mau_Thongtu="TT06",VLOOKUP($N$12,$S$8:$X$24,3,0)/100))),"Không có") -> 0.025 | N17: 5 | O17: Công trình hạ tầng kỹ thuật | T17: Riêng công tác xây dựng trong đường hầm giao thông | U17: 6.5 | V17: =AB33 -> 6.5 | W17: Định mức chi phí chung tính trên chi phí trực tiếp (C) | AE17: Công trình hầm giao thông | AF17: 6.5 | AG17: =AM33 -> 7.3 | AH17: Định mức chi phí chung tính trên chi phí trực tiếp (C) | AP17: Riêng công tác xây dựng trong đường hầm giao thông | AQ17: 6.5 | AR17: =BA33 -> 7.3 | AS17: Định mức chi phí chung tính trên chi phí trực tiếp (C)
B18: 7 | C18: Code Level1 | E18: HM | F18: TB | N18: 6 | O18: Thu gom, vận chuyển chất thải rắn sinh hoạt đô thị | T18: Công tác duy tu sửa chữa thường xuyên đường bộ, đường sắt, đường thủy nội địa, hệ thống báo hiệu hàng hải và đường thủy nội địa | U18: 2 | V18: =AB$41 -> 66 | W18: Định mức chi phí chung tính trên chi phí nhân công (C) | AE18: Công tác duy tu sửa chữa thường xuyên đường bộ, đường sắt, đường thủy nội địa, hệ thống báo hiệu hàng hải và đường thủy nội địa | AF18: 2 | AG18: =AM$41 -> 66 | AH18: Định mức chi phí chung tính trên chi phí nhân công (C) | AP18: Duy tu sửa chữa đường bộ, đường sắt, hệ thống báo hiệu hàng hải | AQ18: 2 | AR18: =AY41 -> 66 | AS18: Định mức chi phí chung tính trên chi phí nhân công (C)
B19: 8 | C19: Code Level2 | E19: * | N19: 7 | O19: Duy trì hệ thống chiếu sáng đô thị | S19: 4 | T19: Công trình nông nghiệp và phát triển nông thôn | U19: =IFERROR(INDEX(U20:U21,$P$12,0),U20) -> 2 | V19: =IFERROR(INDEX(V20:V21,$P$12,0),V20) -> 5.5 | W19: =IFERROR(INDEX(W20:W21,$P$12,0),W20) -> Định mức chi phí chung tính trên chi phí trực tiếp (C) | X19: 5.5 | Y19: 0.01 | AD19: 4 | AE19: Công trình nông nghiệp và phát triển nông thôn | AF19: =IFERROR(INDEX(AF20:AF21,$P$12,0),AF20) -> 2 | AG19: =IFERROR(INDEX(AG20:AG21,$P$12,0),AG20) -> 6.1 | AH19: =IFERROR(INDEX(AH20:AH21,$P$12,0),AH20) -> Định mức chi phí chung tính trên chi phí trực tiếp (C) | AI19: 5.5 | AJ19: =IF($K$16=1,$AM$48,$AM$49)/100 -> 0.012 | AO19: 4 | AP19: Công trình nông nghiệp và phát triển nông thôn | AQ19: =IFERROR(INDEX(AQ20:AQ22,$P$12,0),AQ20) -> 2 | AR19: =INDEX(AR20:AR22,$P$12,0) -> 6.1 | AS19: =IFERROR(INDEX(AS20:AS22,$P$12,0),AS20) -> Định mức chi phí chung tính trên chi phí trực tiếp (C) | AT19: 5.5 | AU19: =IF($K$16=1,$AX$48,$AX$49)/100 -> 0.011
B20: 9 | C20: PhantichVua | D20: Tùy theo bộ đơn giá | E20: 1 | F20: 1-Có 0-Không | N20: 8 | O20: Duy trì, phát triển hệ thống cây xanh đô thị | T20: Thông thường | U20: 2 | V20: =AB34 -> 5.5 | W20: Định mức chi phí chung tính trên chi phí trực tiếp (C) | AE20: Thông thường | AF20: 2 | AG20: =AM34 -> 6.1 | AH20: Định mức chi phí chung tính trên chi phí trực tiếp (C) | AP20: Thông thường | AQ20: 2 | AR20: =BA34 -> 6.1 | AS20: Định mức chi phí chung tính trên chi phí trực tiếp (C)
B21: 10 | C21: Round | E21: 3 | F21: Tham số mặc định | M21: Tham số | N21: 1 | O21: =INDEX(O22:O23,N21) -> Dự án thường | T21: Riêng công trình đường hầm | U21: 2 | V21: =$AB$42 -> 51 | W21: Định mức chi phí chung tính trên chi phí nhân công (C) | AE21: Công tác đào, đắp đất công trình nông nghiệp và phát triển nông thôn bằng thủ công | AF21: 2 | AG21: =$AM$42 -> 51 | AH21: Định mức chi phí chung tính trên chi phí nhân công (C) | AP21: Riêng công trình đường hầm | AQ21: 6.5 | AR21: =BA35 -> 7.3 | AS21: Định mức chi phí chung tính trên chi phí trực tiếp (C)
I22: Nguyên giá tính giá trị thu hồi | J22: 30000000 | M22: Loại công trình | N22: 1 | O22: Dự án thường | T22: Công tác đào, đắp đất công trình nông nghiệp và phát triển nông thôn bằng thủ công | AP22: Công trình nông nghiệp và phát triển nông thôn thực hiện hoàn toàn bằng thủ công | AQ22: 2 | AR22: =AY42 -> 51 | AS22: Định mức chi phí chung tính trên chi phí nhân công (C)
B23: 11 | C23: CIRCULAR | E23: Chi phí Xây dựng | Phụ lục số 3 Thông tư 11/2021/TT-BXD | F23: 1-T04 2-TT06 | I23: Tỷ lệ thu hồi khi thanh lý | J23: 0.1 | N23: 2 | O23: Dự án PPP | S23: 5 | T23: Công trình hạ tầng kỹ thuật | U23: =U24 -> 2 | V23: =V24 -> 5 | W23: =W24 -> Định mức chi phí chung tính trên chi phí trực tiếp (C) | X23: 5.5 | Y23: 0.01 | AD23: 5 | AE23: Công trình hạ tầng kỹ thuật | AF23: =AF24 -> 2 | AG23: =AG24 -> 5.5 | AH23: =AH24 -> Định mức chi phí chung tính trên chi phí trực tiếp (C) | AI23: 5.5 | AJ23: =IF($K$16=1,$AM$48,$AM$49)/100 -> 0.012 | AO23: 5 | AP23: Công trình hạ tầng kỹ thuật | AQ23: =AQ24 -> 2 | AR23: =AR24 -> 5.5 | AS23: =AS24 -> Định mức chi phí chung tính trên chi phí trực tiếp (C) | AT23: 5.5 | AU23: =IF($K$16=1,$AX$48,$AX$49)/100 -> 0.011
B24: 12 | C24: Tổng hợp toàn bộ | F24: 1-Có 0-Không | T24: Thông thường | U24: 2 | V24: =AB36 -> 5 | W24: Định mức chi phí chung tính trên chi phí trực tiếp (C) | AE24: Thông thường | AF24: 2 | AG24: =AM36 -> 5.5 | AH24: Định mức chi phí chung tính trên chi phí trực tiếp (C) | AP24: Thông thường | AQ24: 2 | AR24: =BA36 -> 5.5 | AS24: Định mức chi phí chung tính trên chi phí trực tiếp (C)
B25: 13 | C25: Phương pháp lập dự toán (Method Estimation) | E25: 4 | F25: ="Đang sử dụng: "&VLOOKUP(E25,N25:O29,2,0) -> Đang sử dụng: Theo đơn giá trực tiếp lập từ định mức và giá vật tư thời điểm | M25: Phương pháp lập giá | N25: 1 | O25: Theo đơn giá địa phương + chênh lệch (old) | S25: Bảng 3.7: ĐỊNH MỨC CHI PHÍ CHUNG TÍNH TRÊN CHI PHÍ TRỰC TIẾP | Z25: Ga | AA25: Gb | AB25: Gt | AD25: Bảng 3.7: ĐỊNH MỨC CHI PHÍ CHUNG TÍNH TRÊN CHI PHÍ TRỰC TIẾP | AK25: Ga | AL25: Gb | AM25: Gt | AO25: Bảng 3.1: ĐỊNH MỨC CHI PHÍ CHUNG TÍNH TRÊN CHI PHÍ TRỰC TIẾP | BA25: Gt
B26: 14 | C26: Chi phí nhân công | E26: 2 | F26: =IF(E26=1,"Thông tư 15/2019/TT-BXD",IF(E26=2,"Thông tư 13/2021/TT-BXD","Thông tư 05/2016/TT-BXD")) -> Thông tư 13/2021/TT-BXD | N26: 2 | O26: Theo đơn giá địa phương + bù chênh lệch | S26: TT | T26: Loại công trình | U26: Chi phí XD trước thuế trong TMĐT xây dựng của DA được duyệt (tỷ đồng) | Z26: =IF(AB26<=U27,U27,OFFSET(U27,0,MATCH(AB26,U27:Y27,1)-1)) -> 15 | AA26: =IF(AB26<=15,U27,IF(AB26<1000,OFFSET(U27,0,MATCH(AB26,U27:Y27,1)),1000)) -> 15 | AB26: =IFERROR('Dự toán XDCT'!$I$3/10^9,0) -> 0 | AD26: TT | AE26: Loại công trình | AF26: Chi phí trực tiếp của từng loại, từng nhóm công trình (tỷ đồng) | AK26: =IF(AM26<=AF27,AF27,OFFSET(AF27,0,MATCH(AM26,AF27:AJ27,1)-1)) -> 15 | AL26: =IF(AM26<=15,AF27,IF(AM26<1000,OFFSET(AF27,0,MATCH(AM26,AF27:AJ27,1)),1000)) -> 15 | AM26: =IFERROR(_CPtructiep/10^9,0) -> 0 | AO26: TT | AP26: Loại công trình | AQ26: Chi phí xây dựng trước thuế trong tổng mức đầu tư của dự án được duyệt (tỷ đồng) | BA26: =IFERROR('Dự toán XDCT'!$I$3/10^9,0) -> 0
B27: 15 | C27: Chi phí giá ca máy | E27: 2 | F27: =IF(E27=1,"Sử dụng Giá ca máy gốc + Bù giá nhiên liệu, lương thợ lái máy",IF(E27=2,"Lập giá ca máy mới tại thời điểm lập dự toán, căn cứ Thông tư 13/2021/TT-BXD","")) -> Lập giá ca máy mới tại thời điểm lập dự toán, căn cứ Thông tư 13/2021/TT-BXD | N27: 3 | O27: Theo đơn giá địa phương + điều chỉnh hệ số và bù chênh lệch | U27: 15 | V27: 100 | W27: 500 | X27: 1000 | Y27: 1000 | Z27: Ka | AA27: Kb | AB27: DMTL | AF27: 15 | AG27: 100 | AH27: 500 | AI27: 1000 | AJ27: 1000 | AK27: Ka | AL27: Kb | AM27: DMTL | AQ27: 15 | AR27: 50 | AS27: 100 | AT27: 300 | AU27: 500 | AV27: 750 | AW27: 1000 | AX27: 1000 | BA27: DMTL
B28: 16 | C28: Sheet chọn trước khi in | N28: 4 | O28: Theo đơn giá trực tiếp lập từ định mức và giá vật tư thời điểm | S28: 1 | T28: Công trình dân dụng | U28: 6.5 | V28: 6 | W28: 5.6 | X28: 5.4 | Y28: 5.2 | Z28: =IF(AB26<=U27,U28,IF(AB26=1000,X28,OFFSET(U28,0,MATCH(AB26,U27:Y27,1)-1))) -> 6.5 | AA28: =IF(AB26<=U27,U28,IF(AB26=1000,X28,OFFSET(U28,0,MATCH(AB26,U27:Y27,1)))) -> 6.5 | AB28: =TREND(Z28:AA28,Z26:AA26,AB26) -> 6.5 | AD28: 1 | AE28: Công trình dân dụng | AF28: 7.3 | AG28: 6.7 | AH28: 6.2 | AI28: 6 | AJ28: 5.8 | AK28: =IF(AM26<=AF27,AF28,IF(AM26=1000,AI28,OFFSET(AF28,0,MATCH(AM26,AF27:AJ27,1)-1))) -> 7.3 | AL28: =IF(AM26<=AF27,AF28,IF(AM26=1000,AI28,OFFSET(AF28,0,MATCH(AM26,AF27:AJ27,1)))) -> 7.3 | AM28: =TREND(AK28:AL28,AK26:AL26,AM26) -> 7.3 | AO28: 1 | AP28: Công trình dân dụng | AQ28: 7.3 | AR28: 7.1 | AS28: 6.7 | AT28: 6.5 | AU28: 6.2 | AV28: 6.1 | AW28: 6 | AX28: 5.8 | BA28: =IF($BA$26<=15,$AQ28,IF($BA$26>1000,$AX28,INDEX($AR28:$AW28,1,MATCH($BA$26,$AQ$27:$AW$27)))) -> 7.3
B29: 17 | C29: Tự động phân tích khi số kết quả = 1 | E29: 0 | F29: 1 - Tự động; 0 - Xem form | T29: Riêng công trình tu bổ, phục hồi di tích lịch sử, văn hoá | U29: 10 | V29: 9 | W29: 8.6 | X29: 8.4 | Y29: 8.2 | Z29: =IF(AB26<=U$27,U29,IF(AB26=1000,X29,OFFSET(U29,0,MATCH(AB26,U27:Y27,1)-1))) -> 10 | AA29: =IF(AB26<=U$27,U29,IF(AB26=1000,X29,OFFSET(U29,0,MATCH(AB26,U27:Y27,1)))) -> 10 | AB29: =TREND(Z29:AA29,Z26:AA26,AB26) -> 10 | AE29: Riêng công trình tu bổ, phục hồi di tích lịch sử, văn hoá | AF29: 11.6 | AG29: 10.3 | AH29: 9.9 | AI29: 9.6 | AJ29: 9.4 | AK29: =IF(AM26<=AF$27,AF29,IF(AM26=1000,AI29,OFFSET(AF29,0,MATCH(AM26,AF27:AJ27,1)-1))) -> 11.6 | AL29: =IF(AM26<=AF$27,AF29,IF(AM26=1000,AI29,OFFSET(AF29,0,MATCH(AM26,AF27:AJ27,1)))) -> 11.6 | AM29: =TREND(AK29:AL29,AK26:AL26,AM26) -> 11.6 | AP29: Riêng công trình tu bổ, phục hồi di tích lịch sử, văn hoá | AQ29: 11.6 | AR29: 11.1 | AS29: 10.3 | AT29: 10.1 | AU29: 9.9 | AV29: 9.8 | AW29: 9.6 | AX29: 9.4 | BA29: =IF($BA$26<=15,$AQ29,IF($BA$26>1000,$AX29,INDEX($AR29:$AW29,1,MATCH($BA$26,$AQ$27:$AW$27)))) -> 11.6
B30: 18 | C30: Ký hiệu tiền tố Hạng mục | E30: HM | S30: 2 | T30: Công trình công nghiệp | U30: 5.5 | V30: 5 | W30: 4.6 | X30: 4.4 | Y30: 4.2 | Z30: =IF(AB26<=U$27,U30,IF(AB26=1000,X30,OFFSET(U30,0,MATCH(AB26,U27:Y27,1)-1))) -> 5.5 | AA30: =IF(AB26<=U$27,U30,IF(AB26=1000,X30,OFFSET(U30,0,MATCH(AB26,U27:Y27,1)))) -> 5.5 | AB30: =TREND(Z30:AA30,Z26:AA26,AB26) -> 5.5 | AD30: 2 | AE30: Công trình công nghiệp | AF30: 6.2 | AG30: 5.6 | AH30: 5 | AI30: 4.9 | AJ30: 4.6 | AK30: =IF(AM26<=AF$27,AF30,IF(AM26=1000,AI30,OFFSET(AF30,0,MATCH(AM26,AF27:AJ27,1)-1))) -> 6.2 | AL30: =IF(AM26<=AF$27,AF30,IF(AM26=1000,AI30,OFFSET(AF30,0,MATCH(AM26,AF27:AJ27,1)))) -> 6.2 | AM30: =TREND(AK30:AL30,AK26:AL26,AM26) -> 6.2 | AO30: 2 | AP30: Công trình công nghiệp | AQ30: 6.2 | AR30: 6 | AS30: 5.6 | AT30: 5.3 | AU30: 5 | AV30: 5 | AW30: 4.9 | AX30: 4.6 | BA30: 6.2
B31: 19 | C31: Ký hiệu số hiệu đơn giá | E31: DG | M31: Lán trại | N31: 1 | O31: Công trình theo tuyến | T31: Riêng công trình xây dựng đường hầm, hầm lò | U31: 6.5 | V31: 6.3 | W31: 6 | X31: 5.8 | Y31: 5.7 | Z31: =IF(AB26<=U$27,U31,IF(AB26=1000,X31,OFFSET(U31,0,MATCH(AB26,U27:Y27,1)-1))) -> 6.5 | AA31: =IF(AB26<=U$27,U31,IF(AB26=1000,X31,OFFSET(U31,0,MATCH(AB26,U27:Y27,1)))) -> 6.5 | AB31: =TREND(Z31:AA31,Z26:AA26,AB26) -> 6.5 | AE31: Riêng công trình xây dựng đường hầm, hầm lò | AF31: 7.3 | AG31: 7.1 | AH31: 6.7 | AI31: 6.5 | AJ31: 6.4 | AK31: =IF(AM26<=AF$27,AF31,IF(AM26=1000,AI31,OFFSET(AF31,0,MATCH(AM26,AF27:AJ27,1)-1))) -> 7.3 | AL31: =IF(AM26<=AF$27,AF31,IF(AM26=1000,AI31,OFFSET(AF31,0,MATCH(AM26,AF27:AJ27,1)))) -> 7.3 | AM31: =TREND(AK31:AL31,AK26:AL26,AM26) -> 7.3 | AP31: Riêng công trình xây dựng đường hầm, hầm lò | AQ31: 7.3 | AR31: 7.2 | AS31: 7.1 | AT31: 6.9 | AU31: 6.7 | AV31: 6.6 | AW31: 6.5 | AX31: 6.4 | BA31: 7.3
B32: 20 | C32: Sử dụng Đơn giá chi tiết | E32: 1 | F32: 1- Một đơn giá cho một công việc || 2 - Một đơn giá cho nhiều cv | N32: 2 | O32: Công trình không theo tuyến | S32: 3 | T32: Công trình giao thông | U32: 5.5 | V32: 5 | W32: 4.6 | X32: 4.4 | Y32: 4.2 | Z32: =IF(AB26<=U$27,U32,IF(AB26=1000,X32,OFFSET(U32,0,MATCH(AB26,U27:Y27,1)-1))) -> 5.5 | AA32: =IF(AB26<=U$27,U32,IF(AB26=1000,X32,OFFSET(U32,0,MATCH(AB26,U27:Y27,1)))) -> 5.5 | AB32: =TREND(Z32:AA32,Z26:AA26,AB26) -> 5.5 | AD32: 3 | AE32: Công trình giao thông | AF32: 6.2 | AG32: 5.6 | AH32: 5.1 | AI32: 4.9 | AJ32: 4.6 | AK32: =IF(AM26<=AF$27,AF32,IF(AM26=1000,AI32,OFFSET(AF32,0,MATCH(AM26,AF27:AJ27,1)-1))) -> 6.2 | AL32: =IF(AM26<=AF$27,AF32,IF(AM26=1000,AI32,OFFSET(AF32,0,MATCH(AM26,AF27:AJ27,1)))) -> 6.2 | AM32: =TREND(AK32:AL32,AK26:AL26,AM26) -> 6.2 | AO32: 3 | AP32: Công trình giao thông | AQ32: 6.2 | AR32: 6 | AS32: 5.6 | AT32: 5.3 | AU32: 5.1 | AV32: 5 | AW32: 4.9 | AX32: 4.6 | BA32: 6.2
B33: 21 | C33: Ký hiệu số hiệu hợp giá | E33: HG | T33: Riêng công trình hầm giao thông | U33: 6.5 | V33: 6.3 | W33: 6 | X33: 5.8 | Y33: 5.7 | Z33: =IF(AB26<=U$27,U33,IF(AB26=1000,X33,OFFSET(U33,0,MATCH(AB26,U27:Y27,1)-1))) -> 6.5 | AA33: =IF(AB26<=U$27,U33,IF(AB26=1000,X33,OFFSET(U33,0,MATCH(AB26,U27:Y27,1)))) -> 6.5 | AB33: =TREND(Z33:AA33,Z26:AA26,AB26) -> 6.5 | AE33: Riêng công trình hầm giao thông | AF33: 7.3 | AG33: 7.1 | AH33: 6.7 | AI33: 6.5 | AJ33: 6.4 | AK33: =IF(AM26<=AF$27,AF33,IF(AM26=1000,AI33,OFFSET(AF33,0,MATCH(AM26,AF27:AJ27,1)-1))) -> 7.3 | AL33: =IF(AM26<=AF$27,AF33,IF(AM26=1000,AI33,OFFSET(AF33,0,MATCH(AM26,AF27:AJ27,1)))) -> 7.3 | AM33: =TREND(AK33:AL33,AK26:AL26,AM26) -> 7.3 | AP33: Riêng công trình hầm giao thông | AQ33: 7.3 | AR33: 7.2 | AS33: 7.1 | AT33: 6.9 | AU33: 6.7 | AV33: 6.6 | AW33: 6.5 | AX33: 6.4 | BA33: 7.3
B34: 22 | C34: Sử dụng đơn giá đầy đủ: | E34: 0 | F34: 1 - Đầy đủ; 0 - Không đầy đủ | S34: 4 | T34: Công trình nông nghiệp và phát triển nông thôn | U34: 5.5 | V34: 5 | W34: 4.6 | X34: 4.4 | Y34: 4.2 | Z34: =IF(AB26<=U$27,U34,IF(AB26=1000,X34,OFFSET(U34,0,MATCH(AB26,U27:Y27,1)-1))) -> 5.5 | AA34: =IF(AB26<=U$27,U34,IF(AB26=1000,X34,OFFSET(U34,0,MATCH(AB26,U27:Y27,1)))) -> 5.5 | AB34: =TREND(Z34:AA34,Z26:AA26,AB26) -> 5.5 | AD34: 4 | AE34: Công trình nông nghiệp và phát triển nông thôn | AF34: 6.1 | AG34: 5.5 | AH34: 5.1 | AI34: 4.8 | AJ34: 4.6 | AK34: =IF(AM26<=AF$27,AF34,IF(AM26=1000,AI34,OFFSET(AF34,0,MATCH(AM26,AF27:AJ27,1)-1))) -> 6.1 | AL34: =IF(AM26<=AF$27,AF34,IF(AM26=1000,AI34,OFFSET(AF34,0,MATCH(AM26,AF27:AJ27,1)))) -> 6.1 | AM34: =TREND(AK34:AL34,AK26:AL26,AM26) -> 6.1 | AO34: 4 | AP34: Công trình nông nghiệp và phát triển nông thôn | AQ34: 6.1 | AR34: 5.9 | AS34: 5.5 | AT34: 5.3 | AU34: 5.1 | AV34: 5 | AW34: 4.8 | AX34: 4.6 | BA34: 6.1
B35: 23 | C35: Ký tự bắt đầu mã Công tác khối lượng | E35: CT | AP35: Riêng công trình đường hầm | AQ35: 7.3 | AR35: 7.2 | AS35: 7.1 | AT35: 6.9 | AU35: 6.7 | AV35: 6.6 | AW35: 6.5 | AX35: 6.4 | BA35: 7.3
B36: 24 | C36: Ẩn/ Hiện chi phí đuôi | E36: 1 | S36: 5 | T36: Công trình hạ tầng kỹ thuật | U36: 5 | V36: 5 | W36: 4.1 | X36: 3.9 | Y36: 3.7 | Z36: =IF(AB26<=U$27,U36,IF(AB26=1000,X36,OFFSET(U36,0,MATCH(AB26,U27:Y27,1)-1))) -> 5 | AA36: =IF(AB26<=U$27,U36,IF(AB26=1000,X36,OFFSET(U36,0,MATCH(AB26,U27:Y27,1)))) -> 5 | AB36: =TREND(Z36:AA36,Z26:AA26,AB26) -> 5 | AD36: 5 | AE36: Công trình hạ tầng kỹ thuật | AF36: 5.5 | AG36: 5 | AH36: 4.5 | AI36: 4.3 | AJ36: 4 | AK36: =IF(AM26<=AF$27,AF36,IF(AM26=1000,AI36,OFFSET(AF36,0,MATCH(AM26,AF27:AJ27,1)-1))) -> 5.5 | AL36: =IF(AM26<=AF$27,AF36,IF(AM26=1000,AI36,OFFSET(AF36,0,MATCH(AM26,AF27:AJ27,1)))) -> 5.5 | AM36: =TREND(AK36:AL36,AK26:AL26,AM26) -> 5.5 | AO36: 5 | AP36: Công trình hạ tầng kỹ thuật | AQ36: 5.5 | AR36: 5.3 | AS36: 5 | AT36: 4.8 | AU36: 4.5 | AV36: 4.4 | AW36: 4.3 | AX36: 4 | BA36: 5.5
B37: 25 | C37: Hệ số tính KL hao phí khác sheet PTVT | E37: 0 | S37: Bảng 3.8: ĐỊNH MỨC CHI PHÍ CHUNG TÍNH TRÊN CHI PHÍ NHÂN CÔNG
B38: 26 | C38: Tra lại tên công việc | E38: 1 | Z38: Ga | AA38: Gb | AB38: Gt | AD38: Bảng 3.8: ĐỊNH MỨC CHI PHÍ CHUNG TÍNH TRÊN CHI PHÍ NHÂN CÔNG | AK38: Ga | AL38: Gb | AM38: Gt | AO38: Bảng 3.2: ĐỊNH MỨC CHI PHÍ CHUNG TÍNH TRÊN CHI PHÍ NHÂN CÔNG | AY38: Gt
B39: 27 | S39: TT | T39: Loại công tác | U39: Chi phí nhân công trong chi phí trực tiếp (tỷ đồng) | Z39: =IF(AB39<100,15,100) -> 15 | AA39: =IF(AB39>15,100,15) -> 15 | AB39: =IFERROR(_CPnhancong/10^9,0) -> 0 | AD39: TT | AE39: Loại công tác | AF39: Chi phí nhân công trong chi phí trực tiếp (tỷ đồng) | AK39: =IF(AM39<100,15,100) -> 15 | AL39: =IF(AM39>15,100,15) -> 15 | AM39: =IFERROR(_CPnhancong/10^9,0) -> 0 | AO39: TT | AP39: Loại công tác | AQ39: Chi phí nhân công trong chi phí trực tiếp của dự toán xây dựng, lắp đặt của công trình (tỷ đồng) | AY39: =IFERROR(_CPnhancong/10^9,0) -> 0
B40: 28 | C40: Link đơn giá trước thuế sang bảng Dự toán | E40: 0 | U40: 15 | V40: 100 | W40: 100 | Z40: Ka | AA40: Kb | AB40: DMTL | AF40: 15 | AG40: 100 | AH40: 100 | AK40: Ka | AL40: Kb | AM40: DMTL | AQ40: 15 | AR40: 50 | AS40: 100 | AT40: 100 | AY40: DMTL
B41: 29 | C41: Check đã phân tích đủ HM THVT chưa | D41: =COUNTIF('Dự toán'!$B$8:$B$26,$E$30) -> 0 | E41: =COUNTIF('Tổng hợp vật tư'!$C$10:$C$97,$E$17&"*") -> 0 | S41: 1 | T41: Công tác duy tu sửa chữa đường bộ, đường sắt, đường thuỷ nội địa, hệ thống báo hiệu hàng hải và đường thuỷ nội địa | U41: 66 | V41: 60 | W41: 56 | Z41: =IF(AB39<100,U41,IF(AB39=100,V41,W41)) -> 66 | AA41: =IF(AND(AB39>15,AB39<=100),V41,IF(AB39<=15,U41,W41)) -> 66 | AB41: =TREND(Z41:AA41,Z39:AA39,AB39) -> 66 | AD41: 1 | AE41: Công tác duy tu sửa chữa đường bộ, đường sắt, đường thuỷ nội địa, hệ thống báo hiệu hàng hải và đường thuỷ nội địa | AF41: 66 | AG41: 60 | AH41: 56 | AK41: =IF(AM39<100,AF41,IF(AM39=100,AG41,AH41)) -> 66 | AL41: =IF(AND(AM39>15,AM39<=100),AG41,IF(AM39<=15,AF41,AH41)) -> 66 | AM41: =TREND(AK41:AL41,AK39:AL39,AM39) -> 66 | AO41: 1 | AP41: Duy tu sửa chữa đường bộ, đường sắt, hệ thống báo hiệu hàng hải | AQ41: 66 | AR41: 63 | AS41: 60 | AT41: 56 | AY41: =IF($AY$39<=15,$AQ41,IF($AY$39>100,$AT41,INDEX($AR41:$AS41,1,MATCH($AY$39,$AQ$40:$AS$40)))) -> 66
S42: 2 | T42: Công tác đào, đắp đất công trình nông nghiệp và phát triển nông thôn hoàn toàn bằng thủ công | U42: 51 | V42: 45 | W42: 42 | Z42: =IF(AB39<100,U42,IF(AB39=100,V42,W42)) -> 51 | AA42: =IF(AND(AB39>15,AB39<=100),V42,IF(AB39<=15,U42,W42)) -> 51 | AB42: =TREND(Z42:AA42,Z39:AA39,AB39) -> 51 | AD42: 2 | AE42: Công tác đào, đắp đất công trình nông nghiệp và phát triển nông thôn hoàn toàn bằng thủ công | AF42: 51 | AG42: 45 | AH42: 42 | AK42: =IF(AM39<100,AF42,IF(AM39=100,AG42,AH42)) -> 51 | AL42: =IF(AND(AM39>15,AM39<=100),AG42,IF(AM39<=15,AF42,AH42)) -> 51 | AM42: =TREND(AK42:AL42,AK39:AL39,AM39) -> 51 | AO42: 2 | AP42: Công trình nông nghiệp và phát triển nông thôn thực hiện hoàn toàn bằng thủ công | AQ42: 51 | AR42: 48 | AS42: 45 | AT42: 42 | AY42: =IF($AY$39<=15,$AQ42,IF($AY$39>100,$AT42,INDEX($AR42:$AS42,1,MATCH($AY$39,$AQ$40:$AS$40)))) -> 51
S43: 3 | T43: Công tác lắp đặt thiết bị công nghệ trong các công trình xây dựng, công tác xây lắp đường dây, thí nghiệm hiệu chỉnh điện đường dây và trạm biến áp, thí nghiệm vật liệu, cấu kiện và kết cấu xây dựng | U43: 65 | V43: 59 | W43: 55 | Z43: =IF(AB39<100,U43,IF(AB39=100,V43,W43)) -> 65 | AA43: =IF(AND(AB39>15,AB39<=100),V43,IF(AB39<=15,U43,W43)) -> 65 | AB43: =TREND(Z43:AA43,Z39:AA39,AB39) -> 65 | AD43: 3 | AE43: Công tác lắp đặt thiết bị công nghệ trong các công trình xây dựng, công tác xây lắp đường dây, thí nghiệm hiệu chỉnh điện đường dây và trạm biến áp, thí nghiệm vật liệu, cấu kiện và kết cấu xây dựng | AF43: 65 | AG43: 59 | AH43: 55 | AK43: =IF(AM39<100,AF43,IF(AM39=100,AG43,AH43)) -> 65 | AL43: =IF(AND(AM39>15,AM39<=100),AG43,IF(AM39<=15,AF43,AH43)) -> 65 | AM43: =TREND(AK43:AL43,AK39:AL39,AM39) -> 65 | AO43: 3 | AP43: Lắp đặt thiết bị công nghệ trong các công trình xây dựng; xây dựng và lắp đặt đường dây tải điện; lắp đặt trạm biến áp; thí nghiệm hiệu chỉnh điện đường dây và trạm biến áp; thí nghiệm vật liệu, cấu kiện và kết cấu xây dựng | AQ43: 65 | AR43: 62 | AS43: 59 | AT43: 55 | AY43: 65
AD45: Bảng 3.9: ĐỊNH MỨC CHI PHÍ NHÀ TẠM ĐỂ Ở VÀ ĐIỀU HÀNH THI CÔNG | AM45: Gt | AO45: Bảng 3.4: ĐỊNH MỨC CHI PHÍ NHÀ TẠM ĐỂ Ở VÀ ĐIỀU HÀNH THI CÔNG
AD46: TT | AE46: Loại công trình | AF46: Chi phí trực tiếp của từng loại, từng nhóm công trình (tỷ đồng) | AM46: =IFERROR(_CPtructiep/10^9,0) -> 0 | AO46: TT | AP46: Loại công trình | AQ46: Chi phí xây dựng trước thuế trong tổng mức đầu tư của dự án được duyệt (tỷ đồng)
AF47: 15 | AG47: 100 | AH47: 500 | AI47: 1000 | AJ47: 1000 | AM47: DMTL | AQ47: 15 | AR47: 100 | AS47: 500 | AT47: 1000 | AU47: 1000 | AX47: DMTL
AD48: 1 | AE48: Công trình xây dựng theo tuyến | AF48: 2.3 | AG48: 2.2 | AH48: 2 | AI48: 1.9 | AJ48: 1.8 | AM48: =IFERROR(IF($AM$46<=$AF$47,AF48,IF(AND($AM$46>$AF$47,$AM$46<=$AG$47),AG48,IF(AND($AM$46>$AG$47,$AM$46<=$AH$47),AH48,IF(AND($AM$46>$AH$47,$AM$46<=$AI$47),AI48,AJ48)))),AF48) -> 2.3 | AO48: 1 | AP48: Công trình xây dựng theo tuyến | AQ48: 2.2 | AR48: 2 | AS48: 1.9 | AT48: 1.8 | AU48: 1.7 | AX48: =IF($BA$26<=15,$AQ48,IF($BA$26>1000,$AU48,INDEX($AR48:$AT48,1,MATCH($BA$26,$AQ$47:$AT$47)))) -> 2.2
AD49: 2 | AE49: Công trình xây dựng còn lại | AF49: 1.2 | AG49: 1.1 | AH49: 1 | AI49: 0.95 | AJ49: 0.9 | AM49: =IFERROR(IF($AM$46<=$AF$47,AF49,IF(AND($AM$46>$AF$47,$AM$46<=$AG$47),AG49,IF(AND($AM$46>$AG$47,$AM$46<=$AH$47),AH49,IF(AND($AM$46>$AH$47,$AM$46<=$AI$47),AI49,AJ49)))),AF49) -> 1.2 | AO49: 2 | AP49: Công trình xây dựng còn lại | AQ49: 1.1 | AR49: 1 | AS49: 0.95 | AT49: 0.9 | AU49: 0.85 | AX49: =IF($BA$26<=15,$AQ49,IF($BA$26>1000,$AU49,INDEX($AR49:$AT49,1,MATCH($BA$26,$AQ$47:$AT$47)))) -> 1.1
C50: Using XDA Construction Cost Estimating Data
B51: 1 | C51: 001_DinhMucXDCB-2021
B52: 2
B53: 3
B54: 4
B55: 5

Sheet Dự toán XDCT (hidden)
C1: Loại dự án : | G1: Loại báo cáo: | H1: Loại báo cáo:
C2: Loại công trình : | H2: =IF(AND(GD_=3,LBC_<3),"TMĐT được duyệt : ","TMĐT GIẢ ĐỊNH ĐỂ TÍNH CP NỘI SUY THEO TMĐT") -> TMĐT được duyệt : | J2: đồng
C3: Cấp công trình : | F3: =IF(AND(BTK_=1,LBC_<=2),IF(LBC_=1,"Báo cáo NC tiền khả thi không thể chỉ có 1 bước. Chọn lại số bước thiết kế hoặc Loại báo cáo.","Báo cáo NC khả thi không thể chỉ có 1 bước. Chọn lại số bước thiết kế hoặc Loại báo cáo."),IF(AND(LBC_=3,BTK_>1),"Chọn lại số bước thiết kế hoặc Loại báo cáo","")) ->  | H3: =IF(AND(GD_=3,LBC_<3),"Gxd trước thuế trong TMĐT : ","") -> Gxd trước thuế trong TMĐT : | I3: =Info!$D$11 -> 0 | J3: đồng
C4: Số bước thiết kế : | E4: =IF(AND(LBC_=3,GD_<=2),"Chọn lại Loại báo cáo hoặc Giai đoạn tính toán.","") ->  | H4: =IF(AND(GD_=3,LBC_<3),"Gtb trước thuế trong TMĐT : ","") -> Gtb trước thuế trong TMĐT : | J4: đồng
C5: Giai đoạn tính toán :
A6: (BẢNG 2.1 - Theo Thông tư số 11/2021/TT-BXD ngày 31/08/2021 của Bộ trưởng Bộ Xây dựng)
A7: TỔNG HỢP DỰ TOÁN XÂY DỰNG CÔNG TRÌNH
C8: ="Dự án: "&Info!$D$5 -> Dự án: Dự án đầu tư xây dựng công trình …
C9: ="Công trình: " &Info!$D$6 -> Công trình: Công trình xây dựng …
C10: Thời điểm lập dự toán (ngày / tháng / năm): ….../...../20…
I11: Đơn vị tính: đồng
A12: STT | B12: Mã CP | C12: NỘI DUNG CHI PHÍ | D12: Định mức tỷ lệ % | E12: HỆ SỐ | F12: CÁCH TÍNH | G12: GIÁ TRỊ TRƯỚC THUẾ | H12: THUẾ GTGT | I12: GIÁ TRỊ SAU THUẾ | J12: Ký hiệu | K12: Cơ sở pháp lý
A13: =IF(GD_<3,1,0) -> 0 | C13: Chi phí bồi thường, hỗ trợ và tái định cư | F13: Bảng tính riêng | H13: =G13*0.1 -> 0 | I13: =SUM(G13:H13) -> 0 | J13: GBT,TĐC
A14: =IF(A13<>"",A13+1,1) -> 1 | B14: XD | C14: Chi phí xây dựng | G14: =SUM(G15:G16) -> 0 | H14: =SUM(H15:H16) -> 0 | I14: =SUM(I15:I16) -> 0 | J14: GXD
C15: Chi phí xây dựng công trình chính | G15: =I15/1.1 -> 0 | H15: =10%*G15 -> 0 | I15: ='Tổng hợp CPXD'!$E$29 -> 0
A17: =A14+1 -> 2 | B17: TB | C17: Chi phí thiết bị | G17: ='Tổng hợp CPTB'!$E$24 -> 0 | H17: =10%*G17 -> 0 | I17: =SUM(G17:H17) -> 0 | J17: GTB
C18: Chi phí thiết bị công trình | G18: ='Tổng hợp CPTB'!$E$23 -> 0 | H18: ='Tổng hợp CPTB'!$F$23 -> 0 | I18: ='Tổng hợp CPTB'!$G$23 -> 0
A19: =A17+1 -> 3 | B19: QLDA | C19: Chi phí quản lý dự án | D19: =Data!I4 -> 3.446 | F19: (Gxd+Gtb)*ĐMTL | G19: =Data!K4 -> 0 | I19: =Data!M4 -> 0 | J19: GQLDA | K19: Thông tư 12/2021/TT-BXD ngày 31/08/2021 của Bộ Xây dựng | L19: =IF(AND(GD_=3,LBC_<3),"Chú ý so sánh với ĐMTL giai đoạn trước","") -> Chú ý so sánh với ĐMTL giai đoạn trước
C20: =IF(Data!$AU$125>1,"Chi phí hoạt động của đơn vị QLDA thuộc CQNN","") ->  | D20: =IF(Data!$AU$125>1,Data!$I$5,0) -> 0 | F20: =IF(Data!$AU$125>1,"(Gxd+Gtb)*ĐMTL","") ->  | G20: =(G17+G14)*D20% -> 0 | H20: =G20*0.1 -> 0 | I20: =G20+H20 -> 0 | J20: =IF(Data!$AU$125>1,"GQLDA-PPP","") -> 
A21: =A19+1 -> 4 | B21: TV | C21: Chi phí tư vấn đầu tư xây dựng | G21: =SUM(G22:G24) -> 0 | H21: =SUM(H22:H24) -> 0 | I21: =SUM(I22:I24) -> 0 | J21: GTV
A25: =A21+1 -> 5 | B25: CPK | C25: Chi phí khác | G25: =SUM(G26:G29) -> 0 | H25: =SUM(H26:H29) -> 0 | I25: =SUM(I26:I29) -> 0 | J25: GK
A30: =A25+1 -> 6 | B30: CPDP | C30: Chi phí dự phòng (GDP1 + GDP2) | G30: =SUM(G31:G32) -> 0 | H30: =SUM(H31:H32) -> 0 | I30: =SUM(I31:I32) -> 0 | J30: GDP
A31: =IF(C31<>"",$A$30&"."&COUNTA($C$31:C31),"") -> 6.1 | C31: Chi phí dự phòng cho yếu tố khối lượng công việc phát sinh | G31: =I31/1.1 -> 0 | H31: =I31*0.1 -> 0 | I31: ='CP Dự phòng'!E4 -> 0 | J31: GDP1
A32: =IF(C32<>"",$A$30&"."&COUNTA($C$31:C32),"") -> 6.2 | C32: Chi phí dự phòng cho yếu tố trượt giá | G32: =I32/1.1 -> 0 | H32: =G32*0.1 -> 0 | I32: ='CP Dự phòng'!G32 -> 0 | J32: GDP2
C33: =IF(GD_<3,"TỔNG CỘNG (1+ 2 + 3 + 4 + 5 + 6 +7)","TỔNG CỘNG (1+ 2 + 3 + 4 + 5+ 6)") -> TỔNG CỘNG (1+ 2 + 3 + 4 + 5+ 6) | G33: =G13+G14+G17+G19+G21+G25+G30 -> 0 | H33: =H13+H14+H17+H19+H21+H25+H30 -> 0 | I33: =I13+I14+I17+I19+I21+I25+I30 -> 0 | J33: =IF(GD_<3,"Vtm","Gxdct") -> Gxdct
C35: NGƯỜI LẬP | I35: NGƯỜI CHỦ TRÌ
C36: (ký, họ tên) | I36: (ký, họ tên)
I40: Chứng chỉ hành nghề định giá XD hạng ..…, số……………………

Sheet Data (hidden)
A1: BẢNG TỔNG HỢP CÁC KHOẢN CHI PHÍ
A3: TT | B3: Mã | C3: NỘI DUNG KHOẢN MỤC CHI PHÍ | D3: Ga | E3: Gb | F3: Na | G3: Nb | H3: Gt | I3: ĐMTL (%) | J3: Hệ số | K3: TT trước VAT | L3: VAT | M3: Thành tiền | Q3: ĐƯA SANG | R3: Hiển thị khi đưa sang
A4: 1 | B4: QLDA | C4: Chi phí quản lý dự án | D4: =IF($H4<=MIN($T$130:$AE$130),MIN($T$130:$AE$130),LOOKUP($H4,$T$130:$AE$130)) -> 10 | E4: =IF($H4<=MIN($T$130:$AE$130),$D4,INDEX($T$130:$AE$130,0,IF($H4>=MAX($T$130:$AE$130),MATCH($D4,$T$130:$AE$130,0),MATCH($D4,$T$130:$AE$130,0)+1))) -> 10 | F4: =HLOOKUP($D4,QLDA_,LCT_+1,0) -> 3.446 | G4: =HLOOKUP($E4,QLDA_,LCT_+1,0) -> 3.446 | H4: =IF(AND(GD_=3,LBC_<=2),XDTB_TM,XD_TB) -> 0 | I4: =IF($D4=$E4,$F4,FORECAST(IF(AND(GD_=3,LBC_<=2),XDTB_TM,XD_TB),$F4:$G4,$D4:$E4)) -> 3.446 | J4: ='Dự toán XDCT'!E19 -> 0 | K4: =IF(J4<>0,XD_TB*I4*J4*10^7,XD_TB*I4*10^7) -> 0 | M4: =K4+L4 -> 0
A5: 1.1 | B5: QLDA_PPP | C5: Chi phí hoạt động của đơn vị quản lý dự án thuộc Cơ quan nhà nước có thẩm quyền thực hiện dự án theo hình thức đối tác công tư (PPP) | D5: =IF($H5<=MIN($T$140:$AC$140),MIN($T$140:$AC$140),LOOKUP($H5,$T$140:$AC$140)) -> 50 | E5: =IF($H5<=MIN($T$140:$AC$140),$D5,INDEX($T$140:$AC$140,0,IF($H5>=MAX($T$140:$AC$140),MATCH($D5,$T$140:$AC$140,0),MATCH($D5,$T$140:$AC$140,0)+1))) -> 50 | F5: =HLOOKUP($D5,QLDA_PPP,LCT_+1,0) -> 1.113 | G5: =HLOOKUP($E5,QLDA_PPP,LCT_+1,0) -> 1.113 | H5: =IF(AND(GD_=3,LBC_<=2),XDTB_TM,XD_TB) -> 0 | I5: =IF($D5=$E5,$F5,FORECAST(IF(AND(GD_=3,LBC_<=2),XDTB_TM,XD_TB),$F5:$G5,$D5:$E5)) -> 1.113 | R5: =IF(Q5="TRUE","Gxd+Gtb)*ĐMTL","") -> 
A6: 2 | B6: TVBCDXCT | C6: Chi phí lập báo cáo đề xuất chủ trương đầu tư
A7: 3 | B7: TVLQHCT | C7: Chi phí lập quy hoạch chi tiết 1/500
A8: 4 | B8: TVKSXD-TM | C8: Chi phí khảo sát xây dựng (bước lập báo cáo nghiên cứu khả thi)
A9: 5 | B9: TVGSKS-TM-1 | C9: Chi phí giám sát công tác khảo sát xây dựng (bước lập báo cáo nghiên cứu khả thi) | D9: =IF(H9<=MIN($T$367:$X$367),MIN($T$367:$X$367),LOOKUP(H9,$T$367:$X$367)) -> 1 | E9: =IF(H9<=MIN($T$367:$X$367),$D9,INDEX($T$367:$X$367,0,IF(H9>=MAX($T$367:$X$367),MATCH($D9,$T$367:$X$367,0),MATCH($D9,$T$367:$X$367,0)+1))) -> 1 | F9: =HLOOKUP(D9,Data_GSKS,2,0) -> 4.072 | G9: =HLOOKUP(E9,Data_GSKS,2,0) -> 4.072 | I9: =IF($D9=$E9,$F9,FORECAST(GTKS_,$F9:$G9,$D9:$E9)) -> 4.072 | K9: =IF(J9<>0,H9*I9*J9*10^7,H9*I9*10^7) -> 0 | L9: =0.1*K9 -> 0 | M9: =SUM(K9:L9) -> 0
A10: 6 | B10: TVTTTCKT | C10: Chi phí thi tuyển, tuyển chọn thiết kế kiến trúc công trình xây dựng
A11: 7 | B11: TVDGTDMT | C11: Chi phí lập báo cáo đánh giá tác động môi trường (ĐTM)
A12: 8 | B12: TVBCNCTKT | C12: Chi phí lập báo cáo nghiên cứu tiền khả thi | D12: =IF(H12<=MIN($T$150:$AE$150),MIN($T$150:$AE$150),LOOKUP(H12,$T$150:$AE$150)) -> 15 | E12: =IF(H12<=MIN($T$150:$AE$150),$D12,INDEX($T$150:$AE$150,0,IF(H12>=MAX($T$150:$AE$150),MATCH($D12,$T$150:$AE$150,0),MATCH($D12,$T$150:$AE$150,0)+1))) -> 15 | F12: =HLOOKUP($D12,Data_BCTKT,LCT_+1,0) -> 0.668 | G12: =HLOOKUP($E12,Data_BCTKT,LCT_+1,0) -> 0.668 | H12: =IF(GD_>=2,0,XD_TB) -> 0 | I12: =IF($D12=$E12,$F12,FORECAST(XD_TB,$F12:$G12,$D12:$E12)) -> 0.668 | K12: =IF(J12<>0,H12*I12*J12*10^7,H12*I12*10^7) -> 0 | L12: =K12*10% -> 0 | M12: =K12+L12 -> 0 | Q12: =IF(LBC_=1,"TRUE") -> FALSE | R12: =IF(LBC_=1,"Hợp đồng đã ký","") -> 
A13: 9 | B13: TVBCNCKT | C13: Chi phí lập báo cáo nghiên cứu khả thi | D13: =IF(H13<=MIN($T$150:$AE$150),MIN($T$150:$AE$150),LOOKUP(H13,$T$150:$AE$150)) -> 15 | E13: =IF(H13<=MIN($T$150:$AE$150),$D13,INDEX($T$150:$AE$150,0,IF(H13>=MAX($T$150:$AE$150),MATCH($D13,$T$150:$AE$150,0),MATCH($D13,$T$150:$AE$150,0)+1))) -> 15 | F13: =HLOOKUP($D13,Data_BCKT,LCT_+1,0) -> 1.114 | G13: =HLOOKUP($E13,Data_BCKT,LCT_+1,0) -> 1.114 | H13: =IF(GD_=3,0,XD_TB) -> 0 | I13: =IF($D13=$E13,$F13,FORECAST(XD_TB,$F13:$G13,$D13:$E13)) -> 1.114 | K13: =IF(J13<>0,H13*I13*J13*10^7,H13*I13*10^7) -> 0 | L13: =K13*10% -> 0 | M13: =K13+L13 -> 0 | Q13: =IF(LBC_<=2,"TRUE") -> TRUE | R13: =IF(GD_=3,"Hợp đồng đã ký","") -> Hợp đồng đã ký
A14: 10 | B14: TVGSDGDA | C14: Chi phí giám sát, đánh giá dự án đầu tư xây dựng công trình (trường hợp thuê tư vấn)
A15: 11 | B15: TVBIM | C15: Chi phí ứng dụng hệ thống thông tin công trình
A16: 12 | B16: TVQTGSMT | C16: Chi phí tư vấn quan trắc và giám sát môi trường
A17: 13 | B17: TVBCKTKT | C17: Chi phí lập báo cáo kinh tế - kỹ thuật | D17: =IF(H17<=MIN($T$170:$W$170),MIN($T$170:$W$170),LOOKUP(H17,$T$170:$W$170)) -> 1 | E17: =IF(H17<=MIN($T$170:$W$170),$D17,INDEX($T$170:$W$170,0,IF(H17>=MAX($T$170:$W$170),MATCH($D17,$T$170:$W$170,0),MATCH($D17,$T$170:$W$170,0)+1))) -> 1 | F17: =HLOOKUP($D17,Data_BCKTKT,LCT_+1,0) -> 6.5 | G17: =HLOOKUP($E17,Data_BCKTKT,LCT_+1,0) -> 6.5 | H17: =IF(LBC_=3,XD_TB,0) -> 0 | I17: =IF($D17=$E17,$F17,FORECAST(XD_TB,$F17:$G17,$D17:$E17)) -> 6.5 | K17: =IF(IF(J17<>0,H17*I17*J17*10^7,H17*I17*10^7)>5000000,IF(J17<>0,H17*I17*J17*10^7,H17*I17*10^7),5000000) -> 5000000 | L17: =K17*10% -> 500000 | M17: =K17+L17 -> 5500000 | Q17: =IF(LBC_=3,"TRUE") -> FALSE | R17: =IF(K17>5000000,"","Tối thiểu không nhỏ hơn 5.000.000 đồng") -> Tối thiểu không nhỏ hơn 5.000.000 đồng
A18: 14 | B18: TVDCBCTKT | C18: Chi phí điều chỉnh báo cáo nghiên cứu tiền khả thi
A19: 15 | B19: TVDCBCKT | C19: Chi phí điều chỉnh báo cáo nghiên cứu khả thi
A20: 16 | B20: TVDCBCKTKT | C20: Chi phí điều chỉnh báo cáo kinh tế - kỹ thuật
A21: 17 | B21: TVTTrBCNCTKT | C21: Chi phí thẩm tra báo cáo nghiên cứu tiền khả thi | D21: =IF(H21<=MIN($T$150:$AE$150),MIN($T$150:$AE$150),LOOKUP(H21,$T$150:$AE$150)) -> 15 | E21: =IF(H21<=MIN($T$150:$AE$150),$D21,INDEX($T$150:$AE$150,0,IF(H21>=MAX($T$150:$AE$150),MATCH($D21,$T$150:$AE$150,0),MATCH($D21,$T$150:$AE$150,0)+1))) -> 15 | F21: =HLOOKUP($D21,TTrTKT_,LCT_+1,0) -> 0.071 | G21: =HLOOKUP($E21,TTrTKT_,LCT_+1,0) -> 0.071 | H21: =IF(GD_>=2,0,XD_TB) -> 0 | I21: =IF($D21=$E21,$F21,FORECAST(XD_TB,$F21:$G21,$D21:$E21)) -> 0.071 | K21: =IF(J21<>0,H21*I21*J21*10^7,H21*I21*10^7) -> 0 | L21: =K21*10% -> 0 | M21: =K21+L21 -> 0 | Q21: =IF(LBC_=1,"TRUE") -> FALSE | R21: =IF(GD_>=2,"Hợp đồng đã ký","") -> Hợp đồng đã ký
A22: 18 | B22: TVTTrBCNCKT | C22: Chi phí thẩm tra báo cáo nghiên cứu khả thi | D22: =IF(H22<=MIN($T$150:$AE$150),MIN($T$150:$AE$150),LOOKUP(H22,$T$150:$AE$150)) -> 15 | E22: =IF(H22<=MIN($T$150:$AE$150),$D22,INDEX($T$150:$AE$150,0,IF(H22>=MAX($T$150:$AE$150),MATCH($D22,$T$150:$AE$150,0),MATCH($D22,$T$150:$AE$150,0)+1))) -> 15 | F22: =HLOOKUP($D22,TTrKT_,LCT_+1,0) -> 0.204 | G22: =HLOOKUP($E22,TTrKT_,LCT_+1,0) -> 0.204 | H22: =IF(GD_=3,0,XD_TB) -> 0 | I22: =IF($D22=$E22,$F22,FORECAST(XD_TB,$F22:$G22,$D22:$E22)) -> 0.204 | K22: =IF(J22<>0,H22*I22*J22*10^7,H22*I22*10^7) -> 0 | L22: =K22*10% -> 0 | M22: =K22+L22 -> 0 | Q22: =IF(LBC_<=2,"TRUE") -> TRUE | R22: =IF(GD_=3,"Hợp đồng đã ký","") -> Hợp đồng đã ký
A23: 19 | B23: TVTTrBCKTKT | C23: Chi phí thẩm tra báo cáo kinh tế - kỹ thuật | H23: =IF(LBC_=3,XD_TB,0) -> 0 | I23: =(I61+I63)*1.2 -> 0.6096 | K23: =IF(J23<>0,H23*I23*J23*10^7,H23*I23*10^7) -> 0 | L23: =K23*10% -> 0 | M23: =K23+L23 -> 0 | Q23: =IF(LBC_=3,"TRUE") -> FALSE | R23: =IF(LBC_=3,"Gxd*ĐMTL(T.tra TK+T.tra DT)*hệ số","") -> 
A24: 20 | B24: TVDTTV-1 | C24: Chi phí lập HSMT, đánh giá HSDT tư vấn | D24: =IF($H$24<=MIN($T$322:$Z$322),MIN($T$322:$Z$322),LOOKUP($H$24,$T$322:$Z$322)) -> 1 | E24: =IF($H$24<=MIN($T$322:$Z$322),$D24,INDEX($T$322:$Z$322,0,IF($H$24>=MAX($T$322:$Z$322),MATCH($D24,$T$322:$Z$322,0),MATCH($D24,$T$322:$Z$322,0)+1))) -> 1 | F24: =HLOOKUP($D24,Data_DTTV,2,0) -> 0.816 | G24: =HLOOKUP($E24,Data_DTTV,2,0) -> 0.816 | I24: =IF($D24=$E24,$F24,FORECAST($H$24,$F24:$G24,$D24:$E24)) -> 0.816 | K24: =IF(J24<>0,H24*I24*J24*10^7,H24*I24*10^7) -> 0 | L24: =0.1*K24 -> 0 | M24: =SUM(K24:L24) -> 0
A25: 21 | B25: TVNVKS | C25: Chi phí lập nhiệm vụ khảo sát xây dựng | Q25: TRUE
A26: 22 | B26: TVKSXD-DT | C26: Chi phí khảo sát xây dựng (bước lập thiết kế kỹ thuật, thiết kế BVTC) | Q26: TRUE
A27: 23 | B27: TVGSKS-DT-1 | C27: Chi phí giám sát công tác khảo sát xây dựng (bước lập thiết kế kỹ thuật, thiết kế BVTC) | D27: =IF(H27<=MIN($T$367:$X$367),MIN($T$367:$X$367),LOOKUP(H27,$T$367:$X$367)) -> 1 | E27: =IF(H27<=MIN($T$367:$X$367),$D27,INDEX($T$367:$X$367,0,IF(H27>=MAX($T$367:$X$367),MATCH($D27,$T$367:$X$367,0),MATCH($D27,$T$367:$X$367,0)+1))) -> 1 | F27: =HLOOKUP(D27,Data_GSKS,2,0) -> 4.072 | G27: =HLOOKUP(E27,Data_GSKS,2,0) -> 4.072 | I27: =IF($D27=$E27,$F27,FORECAST(GTKS_,$F27:$G27,$D27:$E27)) -> 4.072 | K27: =IF(J27<>0,H27*I27*J27*10^7,H27*I27*10^7) -> 0 | L27: =0.1*K27 -> 0 | M27: =SUM(K27:L27) -> 0 | N27: Loại CT | O27: Cấp | P27: Bước
A28: 24 | B28: TVTKKTDD | C28: Chi phí thiết kế kỹ thuật công trình dân dụng | D28: =IF(P28<>3,0,IF($H28<=MIN($T$181:$AD$181),MIN($T$181:$AD$181),LOOKUP($H28,$T$181:$AD$181))) -> 0 | E28: =IF(P28<>3,0,IF($H28<=MIN($T$181:$AD$181),D28,INDEX($T$181:$AD$181,0,IF($H28=MAX($T$181:$AD$181),MATCH(D28,$T$181:$AD$181,0),MATCH(D28,$T$181:$AD$181,0)+1)))) -> 0 | F28: =IF(P28<>3,0,HLOOKUP(D28,TKDD3,O28+1,0)) -> 0 | G28: =IF(P28<>3,0,HLOOKUP(E28,TKDD3,O28+1,0)) -> 0 | H28: =IF(AND(GD_=3,BTK_>1),XDTM_,XD_) -> 0 | I28: =IF(F28=G28,G28,FORECAST($H28,F28:G28,D28:E28)) -> 0 | K28: =IF(J28<>0,H28*I28*J28*10^7,H28*I28*10^7)+K30 -> 0 | L28: =0.1*K28 -> 0 | M28: =SUM(K28:L28) -> 0 | N28: 1 | O28: =CCT_ -> 3 | P28: =BTK_ -> 2 | Q28: =IF(AND(LCT_=1,BTK_>2),"TRUE") -> FALSE | R28: =IF(GD_=3,"Hợp đồng đã ký","") -> Hợp đồng đã ký
A29: 25 | B29: TVTKBVTCDD | C29: Chi phí thiết kế bản vẽ thi công công trình dân dụng | D29: =IF(P29=3,0,IF($H29<=MIN($T$181:$AD$181),MIN($T$181:$AD$181),LOOKUP($H29,$T$181:$AD$181))) -> 10 | E29: =IF(P29=3,0,IF($H29<=MIN($T$181:$AD$181),D29,INDEX($T$181:$AD$181,0,IF($H29>=MAX($T$181:$AD$181),MATCH(D29,$T$181:$AD$181,0),MATCH(D29,$T$181:$AD$181,0)+1)))) -> 10 | F29: =IF(P29=3,0,HLOOKUP(D29,TKDD2,O29+1,0)) -> 3.85 | G29: =IF(P29=3,0,HLOOKUP(E29,TKDD2,O29+1,0)) -> 3.85 | H29: =IF(AND(GD_=3,BTK_>1),XDTM_,XD_) -> 0 | I29: =IF(P29=3,55%*I28,IF(F29=G29,G29,FORECAST($H29,F29:G29,D29:E29))) -> 3.85 | K29: =IF(J29<>0,H29*I29*J29*10^7,H29*I29*10^7)+IF(P29=3,55%*K30,K30) -> 0 | L29: =0.1*K29 -> 0 | M29: =SUM(K29:L29) -> 0 | N29: 1 | O29: 3 | P29: 2 | Q29: =IF(AND(LCT_=1,BTK_>=2),"TRUE") -> TRUE | R29: =IF(GD_=3,"Hợp đồng đã ký",IF(AND(Q29="TRUE",$M$30<>0),"Gxd*"&TEXT(I29,"0,000")&"+Gtb*"&TEXT($I$30,"0,000"),"")) -> Hợp đồng đã ký
A30: 26 | B30: TVTKDD1 | C30: Chi phí thiết kế lắp đặt thiết bị trường hợp chi phí thiết bị ≥ 50% tổng chi phí xây dựng và chi phí thiết bị | D30: =IF($H30<=MIN($AH$181:$AP$181),MIN($AH$181:$AP$181),LOOKUP($H30,$AH$181:$AP$181)) -> 5 | E30: =IF($H30<=MIN($AH$181:$AP$181),D30,INDEX($AH$181:$AP$181,0,IF(H30>=MAX($AH$181:$AP$181),MATCH($D30,$AH$181:$AP$181,0),MATCH($D30,$AH$181:$AP$181,0)+1))) -> 5 | F30: =HLOOKUP(D30,DD1_,2,0) -> 0.6 | G30: =HLOOKUP(E30,DD1_,2,0) -> 0.6 | H30: =IF(AND(GD_=3,BTK_>1,TBTM_>0.5*XDTB_TM),TBTM_,IF(TB_>0.5*XD_TB,TB_,0)) -> 0 | I30: =IF(F30=G30,G30,FORECAST($H30,F30:G30,D30:E30)) -> 0.6 | K30: =IF(J30<>0,H30*I30*J30*10^7,H30*I30*10^7) -> 0 | L30: =0.1*K30 -> 0 | M30: =SUM(K30:L30) -> 0
A31: 27 | B31: TVTKKTCN | C31: Chi phí thiết kế kỹ thuật công trình công nghiệp | D31: =IF(P31<>3,0,IF($H31<=MIN($T$181:$AD$181),MIN($T$181:$AD$181),LOOKUP($H31,$T$181:$AD$181))) -> 0 | E31: =IF(P31<>3,0,IF($H31<=MIN($T$181:$AD$181),D31,INDEX($T$181:$AD$181,0,IF($H31=MAX($T$181:$AD$181),MATCH(D31,$T$181:$AD$181,0),MATCH(D31,$T$181:$AD$181,0)+1)))) -> 0 | F31: =IF(P31<>3,0,HLOOKUP(D31,TKCN3,O31+1,0)) -> 0 | G31: =IF(P31<>3,0,HLOOKUP(E31,TKCN3,O31+1,0)) -> 0 | H31: =IF(AND(GD_=3,BTK_>1),XDTM_,XD_) -> 0 | I31: =IF(F31=G31,G31,FORECAST($H31,F31:G31,D31:E31)) -> 0 | K31: =IF(J31<>0,H31*I31*J31*10^7,H31*I31*10^7) -> 0 | L31: 0 | M31: =SUM(K31:L31) -> 0 | N31: 2 | O31: 3 | P31: 2 | Q31: =IF(AND(LCT_=2,BTK_>2),"TRUE") -> FALSE | R31: =IF(GD_=3,"Hợp đồng đã ký","") -> Hợp đồng đã ký
A32: 28 | B32: TVTKBVTCCN | C32: Chi phí thiết kế bản vẽ thi công công trình công nghiệp | D32: =IF(P32=3,0,IF($H32<=MIN($T$181:$AD$181),MIN($T$181:$AD$181),LOOKUP($H32,$T$181:$AD$181))) -> 10 | E32: =IF(P32=3,0,IF($H32<=MIN($T$181:$AD$181),D32,INDEX($T$181:$AD$181,0,IF($H32>=MAX($T$181:$AD$181),MATCH(D32,$T$181:$AD$181,0),MATCH(D32,$T$181:$AD$181,0)+1)))) -> 10 | F32: =IF(P32=3,0,HLOOKUP(D32,TKCN2,O32+1,0)) -> 3.13 | G32: =IF(P32=3,0,HLOOKUP(E32,TKCN2,O32+1,0)) -> 3.13 | H32: =IF(AND(GD_=3,BTK_>1),XDTM_,XD_) -> 0 | I32: =IF(P32=3,60%*I31,IF(F32=G32,G32,FORECAST($H32,F32:G32,D32:E32))) -> 3.13 | K32: =IF(J32<>0,H32*I32*J32*10^7,H32*I32*10^7) -> 0 | L32: 0 | M32: 0 | N32: 2 | O32: 3 | P32: 2 | Q32: =IF(AND(LCT_=2,BTK_>=2),"TRUE") -> FALSE | R32: Hợp đồng đã ký
A33: 29 | B33: TVTKCN1.1 | C33: Chi phí thiết kế công trình cáp ngầm điện áp < 6KV | D33: =IF(H33<=MIN($AH$202:$AN$202),MIN($AH$202:$AN$202),LOOKUP(H33,$AH$202:$AN$202)) -> 5 | E33: =IF(H33<=MIN($AH$202:$AN$202),$D33,INDEX($AH$202:$AN$202,0,IF(H33>=MAX($AH$202:$AN$202),MATCH($D33,$AH$202:$AN$202,0),MATCH($D33,$AH$202:$AN$202,0)+1))) -> 5 | F33: =HLOOKUP($D33,CN1_,2,0) -> 1.7 | G33: =HLOOKUP($E33,CN1_,2,0) -> 1.7 | H33: =IF(AND(GD_=3,BTK_>1),XDTB_TM,XD_TB) -> 0 | I33: =IF($D33=$E33,$F33,FORECAST(H33,$F33:$G33,$D33:$E33)) -> 1.7 | J33: =IF($P$32>2,1.15,0) -> 0 | K33: =IF(J33<>0,H33*I33*J33*10^7,H33*I33*10^7) -> 0 | L33: =0.1*K33 -> 0 | M33: =SUM(K33:L33) -> 0 | R33: Hợp đồng đã ký
A34: 30 | B34: TVTKCN1.2 | C34: Chi phí thiết kế công trình cáp ngầm điện áp 6 ÷ 110KV | D34: =IF(H34<=MIN($AH$202:$AN$202),MIN($AH$202:$AN$202),LOOKUP(H34,$AH$202:$AN$202)) -> 5 | E34: =IF(H34<=MIN($AH$202:$AN$202),$D34,INDEX($AH$202:$AN$202,0,IF(H34>=MAX($AH$202:$AN$202),MATCH($D34,$AH$202:$AN$202,0),MATCH($D34,$AH$202:$AN$202,0)+1))) -> 5 | F34: =HLOOKUP($D34,CN1_,3,0) -> 1.9 | G34: =HLOOKUP($E34,CN1_,3,0) -> 1.9 | H34: =IF(AND(GD_=3,BTK_>1),XDTB_TM,XD_TB) -> 0 | I34: 1.9 | J34: =IF($P$32>2,1.15,0) -> 0 | K34: 0 | L34: 0 | M34: 0 | R34: Hợp đồng đã ký
A35: 31 | B35: TVTKCN1.3 | C35: Chi phí thiết kế công trình cáp ngầm điện áp 220KV | D35: =IF(H35<=MIN($AH$202:$AN$202),MIN($AH$202:$AN$202),LOOKUP(H35,$AH$202:$AN$202)) -> 5 | E35: =IF(H35<=MIN($AH$202:$AN$202),$D35,INDEX($AH$202:$AN$202,0,IF(H35>=MAX($AH$202:$AN$202),MATCH($D35,$AH$202:$AN$202,0),MATCH($D35,$AH$202:$AN$202,0)+1))) -> 5 | F35: =HLOOKUP($D35,CN1_,4,0) -> 1.65 | G35: =HLOOKUP($E35,CN1_,4,0) -> 1.65 | H35: =IF(AND(GD_=3,BTK_>1),XDTB_TM,XD_TB) -> 0 | I35: 1.65 | J35: 0 | K35: 0 | L35: 0 | M35: 0 | R35: Hợp đồng đã ký
A36: 32 | B36: TVTKCN2.1 | C36: Chi phí thiết kế phần thiết bị công trình hóa chất trường hợp chi phí thiết bị ≥ 50% tổng chi phí xây dựng và chi phí thiết bị | D36: =IF($H36<=MIN($AH$211:$AP$211),MIN($AH$211:$AP$211),LOOKUP($H36,$AH$211:$AP$211)) -> 5 | E36: =IF($H36<=MIN($AH$211:$AP$211),D36,INDEX($AH$211:$AP$211,0,IF(H36>=MAX($AH$211:$AP$211),MATCH($D36,$AH$211:$AP$211,0),MATCH($D36,$AH$211:$AP$211,0)+1))) -> 5 | F36: =HLOOKUP(D36,CN2_,2,0) -> 1.1 | G36: =HLOOKUP(E36,CN2_,2,0) -> 1.1 | H36: =IF(AND(GD_=3,BTK_>1,TBTM_>0.5*XDTB_TM),TBTM_,IF(TB_>0.5*XD_TB,TB_,0)) -> 0 | I36: 1.1 | K36: 0 | L36: 0 | M36: 0 | R36: Hợp đồng đã ký
A37: 33 | B37: TVTKCN2.2 | C37: Chi phí thiết kế phần thiết bị công trình khai thác than, quặng (mỏ vật liệu) mỏ lộ thiên trường hợp chi phí thiết bị ≥ 50% tổng chi phí xây dựng và chi phí thiết bị | D37: =IF($H37<=MIN($AH$211:$AP$211),MIN($AH$211:$AP$211),LOOKUP($H37,$AH$211:$AP$211)) -> 5 | E37: =IF($H37<=MIN($AH$211:$AP$211),D37,INDEX($AH$211:$AP$211,0,IF(H37>=MAX($AH$211:$AP$211),MATCH($D37,$AH$211:$AP$211,0),MATCH($D37,$AH$211:$AP$211,0)+1))) -> 5 | F37: =HLOOKUP(D37,CN2_,4,0) -> 0.95 | G37: =HLOOKUP(E37,CN2_,4,0) -> 0.95 | H37: =IF(AND(GD_=3,BTK_>1,TBTM_>0.5*XDTB_TM),TBTM_,IF(TB_>0.5*XD_TB,TB_,0)) -> 0 | I37: 0.95 | K37: 0 | L37: 0 | M37: 0 | R37: Hợp đồng đã ký
A38: 34 | B38: TVTKCN2.3 | C38: Chi phí thiết kế phần thiết bị công trình khai thác than, quặng (mỏ vật liệu) mỏ hầm lò trường hợp chi phí thiết bị ≥ 50% tổng chi phí xây dựng và chi phí thiết bị | D38: =IF($H38<=MIN($AH$211:$AP$211),MIN($AH$211:$AP$211),LOOKUP($H38,$AH$211:$AP$211)) -> 5 | E38: =IF($H38<=MIN($AH$211:$AP$211),D38,INDEX($AH$211:$AP$211,0,IF(H38>=MAX($AH$211:$AP$211),MATCH($D38,$AH$211:$AP$211,0),MATCH($D38,$AH$211:$AP$211,0)+1))) -> 5 | F38: =HLOOKUP(D38,CN2_,5,0) -> 1.15 | G38: =HLOOKUP(E38,CN2_,5,0) -> 1.15 | H38: =IF(AND(GD_=3,BTK_>1,TBTM_>0.5*XDTB_TM),TBTM_,IF(TB_>0.5*XD_TB,TB_,0)) -> 0 | I38: 1.15 | K38: 0 | L38: 0 | M38: 0 | R38: Hợp đồng đã ký
A39: 35 | B39: TVTKCN2.4 | C39: Chi phí thiết kế phần thiết bị công trình sản xuất xi măng trường hợp chi phí thiết bị ≥ 50% tổng chi phí xây dựng và chi phí thiết bị | D39: =IF($H39<=MIN($AH$211:$AP$211),MIN($AH$211:$AP$211),LOOKUP($H39,$AH$211:$AP$211)) -> 5 | E39: =IF($H39<=MIN($AH$211:$AP$211),D39,INDEX($AH$211:$AP$211,0,IF(H39>=MAX($AH$211:$AP$211),MATCH($D39,$AH$211:$AP$211,0),MATCH($D39,$AH$211:$AP$211,0)+1))) -> 5 | F39: =HLOOKUP(D39,CN2_,6,0) -> 0 | G39: =HLOOKUP(E39,CN2_,6,0) -> 0 | H39: =IF(AND(GD_=3,BTK_>1,TBTM_>0.5*XDTB_TM),TBTM_,IF(TB_>0.5*XD_TB,TB_,0)) -> 0 | I39: 0 | K39: 0 | L39: 0 | M39: 0 | R39: Hợp đồng đã ký
A40: 36 | B40: TVTKCN2.5 | C40: Chi phí thiết kế phần thiết bị công trình trạm biến áp trường hợp chi phí thiết bị ≥ 50% tổng chi phí xây dựng và chi phí thiết bị | D40: =IF($H40<=MIN($AH$211:$AP$211),MIN($AH$211:$AP$211),LOOKUP($H40,$AH$211:$AP$211)) -> 5 | E40: =IF($H40<=MIN($AH$211:$AP$211),D40,INDEX($AH$211:$AP$211,0,IF(H40>=MAX($AH$211:$AP$211),MATCH($D40,$AH$211:$AP$211,0),MATCH($D40,$AH$211:$AP$211,0)+1))) -> 5 | F40: =HLOOKUP(D40,CN2_,7,0) -> 0.73 | G40: =HLOOKUP(E40,CN2_,7,0) -> 0.73 | H40: =IF(AND(GD_=3,BTK_>1,TBTM_>0.5*XDTB_TM),TBTM_,IF(TB_>0.5*XD_TB,TB_,0)) -> 0 | I40: 0.73 | K40: 0 | L40: 0 | M40: 0 | R40: Hợp đồng đã ký
A41: 37 | B41: TVTKKTGT | C41: Chi phí thiết kế kỹ thuật công trình giao thông | D41: =IF(P41<>3,0,IF($H41<=MIN($T$181:$AD$181),MIN($T$181:$AD$181),LOOKUP($H41,$T$181:$AD$181))) -> 0 | E41: =IF(P41<>3,0,IF($H41<=MIN($T$181:$AD$181),D41,INDEX($T$181:$AD$181,0,IF($H41=MAX($T$181:$AD$181),MATCH(D41,$T$181:$AD$181,0),MATCH(D41,$T$181:$AD$181,0)+1)))) -> 0 | F41: =IF(P41<>3,0,HLOOKUP(D41,TKGT3,O41+1,0)) -> 0 | G41: =IF(P41<>3,0,HLOOKUP(E41,TKGT3,O41+1,0)) -> 0 | H41: =IF(AND(GD_=3,BTK_>1),XDTM_,XD_) -> 0 | I41: =IF(F41=G41,G41,FORECAST($H41,F41:G41,D41:E41)) -> 0 | K41: =IF(J41<>0,H41*I41*J41*10^7,H41*I41*10^7) -> 0 | L41: =0.1*K41 -> 0 | M41: =SUM(K41:L41) -> 0 | N41: 3 | O41: 3 | P41: 2 | Q41: =IF(AND(LCT_=3,BTK_>2),"TRUE") -> FALSE | R41: Hợp đồng đã ký
A42: 38 | B42: TVTKBVTCGT | C42: Chi phí thiết kế bản vẽ thi công công trình giao thông | D42: =IF(P42=3,0,IF($H42<=MIN($T$181:$AD$181),MIN($T$181:$AD$181),LOOKUP($H42,$T$181:$AD$181))) -> 10 | E42: =IF(P42=3,0,IF($H42<=MIN($T$181:$AD$181),D42,INDEX($T$181:$AD$181,0,IF($H42>=MAX($T$181:$AD$181),MATCH(D42,$T$181:$AD$181,0),MATCH(D42,$T$181:$AD$181,0)+1)))) -> 10 | F42: =IF(P42=3,0,HLOOKUP(D42,TKGT2,O42+1,0)) -> 1.67 | G42: =IF(P42=3,0,HLOOKUP(E42,TKGT2,O42+1,0)) -> 1.67 | H42: =IF(AND(GD_=3,BTK_>1),XDTM_,XD_) -> 0 | I42: =IF(P42=3,55%*I41,IF(F42=G42,G42,FORECAST($H42,F42:G42,D42:E42))) -> 1.67 | K42: 0 | L42: 0 | M42: 0 | N42: 3 | O42: 3 | P42: 2 | Q42: =IF(AND(LCT_=3,BTK_>=2),"TRUE") -> FALSE | R42: Hợp đồng đã ký
A43: 39 | B43: TVTKKTNT | C43: Chi phí thiết kế kỹ thuật công trình nông nghiệp - phát triển nông thôn | D43: =IF(P43<>3,0,IF($H43<=MIN($T$181:$AD$181),MIN($T$181:$AD$181),LOOKUP($H43,$T$181:$AD$181))) -> 0 | E43: =IF(P43<>3,0,IF($H43<=MIN($T$181:$AD$181),D43,INDEX($T$181:$AD$181,0,IF($H43=MAX($T$181:$AD$181),MATCH(D43,$T$181:$AD$181,0),MATCH(D43,$T$181:$AD$181,0)+1)))) -> 0 | F43: =IF(P43<>3,0,HLOOKUP(D43,TKNN3,O43+1,0)) -> 0 | G43: =IF(P43<>3,0,HLOOKUP(E43,TKNN3,O43+1,0)) -> 0 | H43: =IF(AND(GD_=3,BTK_>1),XDTM_,XD_) -> 0 | I43: =IF(F43=G43,G43,FORECAST($H43,F43:G43,D43:E43)) -> 0 | K43: 0 | L43: 0 | M43: 0 | N43: 4 | O43: 3 | P43: 2 | Q43: =IF(AND(LCT_=4,BTK_>2),"TRUE") -> FALSE | R43: Hợp đồng đã ký
A44: 40 | B44: TVTKBVTCNT | C44: Chi phí thiết kế bản vẽ thi công công trình nông nghiệp - phát triển nông thôn | D44: =IF(P44=3,0,IF($H44<=MIN($T$181:$AD$181),MIN($T$181:$AD$181),LOOKUP($H44,$T$181:$AD$181))) -> 10 | E44: =IF(P44=3,0,IF($H44<=MIN($T$181:$AD$181),D44,INDEX($T$181:$AD$181,0,IF($H44>=MAX($T$181:$AD$181),MATCH(D44,$T$181:$AD$181,0),MATCH(D44,$T$181:$AD$181,0)+1)))) -> 10 | F44: =IF(P44=3,0,HLOOKUP(D44,TKNN2,O44+1,0)) -> 3.53 | G44: =IF(P44=3,0,HLOOKUP(E44,TKNN2,O44+1,0)) -> 3.53 | H44: =IF(AND(GD_=3,BTK_>1),XDTM_,XD_) -> 0 | I44: =IF(P44=3,55%*I43,IF(F44=G44,G44,FORECAST($H44,F44:G44,D44:E44))) -> 3.53 | K44: 0 | L44: 0 | M44: 0 | N44: 4 | O44: 3 | P44: 2 | Q44: =IF(AND(LCT_=4,BTK_>=2),"TRUE") -> FALSE | R44: Hợp đồng đã ký
A45: 41 | B45: TVTKTL1 | C45: Chi phí thiết kế chế tạo thiết bị cơ khí | D45: =IF($H45<=MIN($AL$243:$AR$243),MIN($AL$243:$AR$243),LOOKUP($H45,$AL$243:$AR$243)) -> 2 | E45: =IF($H45<=MIN($AL$243:$AR$243),D45,INDEX($AL$243:$AR$243,0,IF(H45>=MAX($AL$243:$AR$243),MATCH($D45,$AL$243:$AR$243,0),MATCH($D45,$AL$243:$AR$243,0)+1))) -> 2 | F45: =HLOOKUP(D45,TL1_,IF(CCT_<=2,2,3),0) -> 2.58 | G45: =HLOOKUP(E45,TL1_,IF(CCT_<=2,2,3),0) -> 2.58 | H45: =IF(AND(GD_=3,BTK_>1),TBTM_,TB_) -> 0 | I45: =IF($D45=$E45,$F45,FORECAST(H45,$F45:$G45,$D45:$E45)) -> 2.58 | K45: =IF(J45<>0,H45*I45*J45*10^7,H45*I45*10^7) -> 0 | L45: =0.1*K45 -> 0 | M45: =SUM(K45:L45) -> 0 | R45: Hợp đồng đã ký
A46: 42 | B46: TVTKKTHT | C46: Chi phí thiết kế kỹ thuật công trình hạ tầng kỹ thuật | D46: =IF(P46<>3,0,IF($H46<=MIN($T$181:$AD$181),MIN($T$181:$AD$181),LOOKUP($H46,$T$181:$AD$181))) -> 0 | E46: =IF(P46<>3,0,IF($H46<=MIN($T$181:$AD$181),D46,INDEX($T$181:$AD$181,0,IF($H46=MAX($T$181:$AD$181),MATCH(D46,$T$181:$AD$181,0),MATCH(D46,$T$181:$AD$181,0)+1)))) -> 0 | F46: =IF(P46<>3,0,HLOOKUP(D46,TKHT3,O46+1,0)) -> 0 | G46: =IF(P46<>3,0,HLOOKUP(E46,TKHT3,O46+1,0)) -> 0 | H46: =IF(AND(GD_=3,BTK_>1),XDTM_,XD_) -> 0 | I46: =IF(F46=G46,G46,FORECAST($H46,F46:G46,D46:E46)) -> 0 | K46: 0 | L46: 0 | M46: 0 | N46: 5 | O46: 3 | P46: 2 | Q46: =IF(AND(LCT_=5,BTK_>2),"TRUE") -> FALSE | R46: Hợp đồng đã ký
A47: 43 | B47: TVTKBVTCHT | C47: Chi phí thiết kế bản vẽ thi công công trình hạ tầng kỹ thuật | D47: =IF(P47=3,0,IF($H47<=MIN($T$181:$AD$181),MIN($T$181:$AD$181),LOOKUP($H47,$T$181:$AD$181))) -> 10 | E47: =IF(P47=3,0,IF($H47<=MIN($T$181:$AD$181),D47,INDEX($T$181:$AD$181,0,IF($H47>=MAX($T$181:$AD$181),MATCH(D47,$T$181:$AD$181,0),MATCH(D47,$T$181:$AD$181,0)+1)))) -> 10 | F47: =IF(P47=3,0,HLOOKUP(D47,TKHT2,O47+1,0)) -> 2.68 | G47: =IF(P47=3,0,HLOOKUP(E47,TKHT2,O47+1,0)) -> 2.68 | H47: =IF(AND(GD_=3,BTK_>1),XDTM_,XD_) -> 0 | I47: =IF(P47=3,55%*I46,IF(F47=G47,G47,FORECAST($H47,F47:G47,D47:E47))) -> 2.68 | K47: 0 | L47: 0 | M47: 0 | N47: 5 | O47: 3 | P47: 2 | Q47: =IF(AND(LCT_=5,BTK_>=2),"TRUE") -> FALSE | R47: Hợp đồng đã ký
A48: 44 | B48: TVTKHTKT1.1 | C48: Chi phí thiết kế Công trình cáp chôn trực tiếp | D48: =IF($H48<=MIN($AH$272:$AO$272),MIN($AH$272:$AO$272),LOOKUP($H48,$AH$272:$AO$272)) -> 5 | E48: =IF($H48<=MIN($AH$272:$AO$272),D48,INDEX($AH$272:$AO$272,0,IF(H48>=MAX($AH$272:$AO$272),MATCH($D48,$AH$272:$AO$272,0),MATCH($D48,$AH$272:$AO$272,0)+1))) -> 5 | F48: =HLOOKUP(D48,HTKT1_,2,0) -> 1.83 | G48: =HLOOKUP(E48,HTKT1_,2,0) -> 1.83 | H48: =IF(AND(GD_=3,BTK_>1),XDTB_TM,XD_TB) -> 0 | I48: =IF($D48=$E48,$F48,FORECAST(H48,$F48:$G48,$D48:$E48)) -> 1.83 | J48: =IF(AND(H48<=1,CCT_=5),1.3*0.9,IF(CCT_=5,0.9,IF(H48<=1,1.3,0))) -> 1.3 | K48: 0 | L48: 0 | M48: 0 | R48: Hợp đồng đã ký
A49: 45 | B49: TVTKHTKT1.2 | C49: Chi phí thiết kế Công trình tuyến cáp chôn qua sông | D49: 5 | E49: 5 | F49: =HLOOKUP(D49,HTKT1_,3,0) -> 1.9 | G49: =HLOOKUP(E49,HTKT1_,3,0) -> 1.9 | H49: 0 | I49: 1.9 | J49: =IF(AND(H49<=1,CCT_=5),1.3*0.9,IF(CCT_=5,0.9,IF(H49<=1,1.3,0))) -> 1.3 | K49: 0 | L49: 0 | M49: 0 | R49: Hợp đồng đã ký
A50: 46 | B50: TVTKHTKT1.3 | C50: Chi phí thiết kế Công trình hào kỹ thuật, cống cáp | D50: 5 | E50: 5 | F50: =HLOOKUP(D50,HTKT1_,4,0) -> 2.1 | G50: =HLOOKUP(E50,HTKT1_,4,0) -> 2.1 | H50: 0 | I50: 2.1 | J50: =IF(AND(H50<=1,CCT_=5),1.3*0.9,IF(CCT_=5,0.9,IF(H50<=1,1.3,0))) -> 1.3 | K50: 0 | L50: 0 | M50: 0 | R50: Hợp đồng đã ký
A51: 47 | B51: TVTKHTKT2.1 | C51: Chi phí thiết kế các loại tổng đài host, vệ tinh, độc lập | D51: 5 | E51: 5 | F51: =HLOOKUP(D51,HTKT2_,2,0) -> 1 | G51: =HLOOKUP(E51,HTKT2_,2,0) -> 1 | H51: 0 | I51: 1 | K51: 0 | L51: 0 | M51: 0 | R51: Hợp đồng đã ký
A52: 48 | B52: TVTKHTKT2.2 | C52: Chi phí thiết kế các loại tổng đài MSC, BSC, truy nhập thuê bao, nhắn tin | D52: 5 | E52: 5 | F52: =HLOOKUP(D52,HTKT2_,3,0) -> 0.9 | G52: =HLOOKUP(E52,HTKT2_,3,0) -> 0.9 | H52: 0 | I52: 0.9 | K52: 0 | L52: 0 | M52: 0 | R52: Hợp đồng đã ký
A53: 49 | B53: TVTKHTKT2.3 | C53: Chi phí thiết kế hệ thống thiết bị truyền dẫn quang | D53: 5 | E53: 5 | F53: =HLOOKUP(D53,HTKT2_,4,0) -> 1.35 | G53: =HLOOKUP(E53,HTKT2_,4,0) -> 1.35 | H53: 0 | I53: 1.35 | K53: 0 | L53: 0 | M53: 0 | R53: Hợp đồng đã ký
A54: 50 | B54: TVTKHTKT2.4 | C54: Chi phí thiết kế hệ thống truyền dẫn vi ba | D54: 5 | E54: 5 | F54: =HLOOKUP(D54,HTKT2_,5,0) -> 1.7 | G54: =HLOOKUP(E54,HTKT2_,5,0) -> 1.7 | H54: 0 | I54: 1.7 | K54: 0 | L54: 0 | M54: 0 | R54: Hợp đồng đã ký
A55: 51 | B55: TVTKHTKT2.5 | C55: Chi phí thiết kế mạng viễn thông nông thôn | D55: 5 | E55: 5 | F55: =HLOOKUP(D55,HTKT2_,6,0) -> 2.8 | G55: =HLOOKUP(E55,HTKT2_,6,0) -> 2.8 | H55: 0 | I55: 2.8 | K55: 0 | L55: 0 | M55: 0 | R55: Hợp đồng đã ký
A56: 52 | B56: TVTKHTKT2.6 | C56: Chi phí thiết kế mạng Internet, Voip, thiết bị mạng NGN | D56: 5 | E56: 5 | F56: =HLOOKUP(D56,HTKT2_,7,0) -> 1 | G56: =HLOOKUP(E56,HTKT2_,7,0) -> 1 | H56: 0 | I56: 1 | K56: 0 | L56: 0 | M56: 0 | R56: Hợp đồng đã ký
A57: 53 | B57: TVTKHTKT2.7 | C57: Chi phí thiết kế hệ thống tiếp đất chống sét (cả thiết bị) | D57: 5 | E57: 5 | F57: =HLOOKUP(D57,HTKT2_,8,0) -> 2.15 | G57: =HLOOKUP(E57,HTKT2_,8,0) -> 2.15 | H57: 0 | I57: 2.15 | K57: 0 | L57: 0 | M57: 0 | R57: Hợp đồng đã ký
A58: 54 | B58: TVTKHTKT2.8 | C58: Chi phí thiết kế trạm thông tin vệ tinh Vsat | D58: 5 | E58: 5 | F58: =HLOOKUP(D58,HTKT2_,9,0) -> 1.8 | G58: =HLOOKUP(E58,HTKT2_,9,0) -> 1.8 | H58: 0 | I58: 1.8 | K58: 0 | L58: 0 | M58: 0 | R58: Hợp đồng đã ký
A59: 55 | B59: TVTKHTKT2.9 | C59: Chi phí thiết kế trạm BTS, CS, điện thoại thẻ | D59: 5 | E59: 5 | F59: =HLOOKUP(D59,HTKT2_,10,0) -> 1.25 | G59: =HLOOKUP(E59,HTKT2_,10,0) -> 1.25 | H59: 0 | I59: 1.25 | K59: 0 | L59: 0 | M59: 0 | R59: Hợp đồng đã ký
A60: 56 | B60: TVTTrTKKT | C60: Chi phí thẩm tra thiết kế kỹ thuật | D60: =IF(P60<>3,0,IF($H60<=MIN($T$181:$AD$181),MIN($T$181:$AD$181),LOOKUP($H60,$T$181:$AD$181))) -> 0 | E60: =IF(P60<>3,0,IF($H60<=MIN($T$181:$AD$181),D60,INDEX($T$181:$AD$181,0,IF($H60=MAX($T$181:$AD$181),MATCH(D60,$T$181:$AD$181,0),MATCH(D60,$T$181:$AD$181,0)+1)))) -> 0 | F60: =IF(P60<>3,0,HLOOKUP($D60,TTrTK_,N60+1,0)) -> 0 | G60: =IF(P60<>3,0,HLOOKUP($E60,TTrTK_,N60+1,0)) -> 0 | H60: =IF(GD_=3,XDTM_,XD_) -> 0 | I60: =IF($D60=$E60,$F60,FORECAST(H60,$F60:$G60,$D60:$E60)) -> 0 | K60: =IF(IF(J60<>0,H60*I60*J60*10^7,H60*I60*10^7)>2000000,IF(J60<>0,H60*I60*J60*10^7,H60*I60*10^7),2000000) -> 2000000 | L60: 200000 | M60: =K60+L60 -> 2200000 | N60: =LCT_ -> 1 | P60: 2 | Q60: =IF(BTK_>2,TRUE) -> FALSE | R60: =IF(AND(BTK_>2,GD_=3),"Hợp đồng đã ký","") -> 
A61: 57 | B61: TVTTrTKBVTC | C61: Chi phí thẩm tra thiết kế BVTC | D61: =IF($H61<=MIN($T$181:$AD$181),MIN($T$181:$AD$181),LOOKUP($H61,$T$181:$AD$181)) -> 10 | E61: =IF($H61<=MIN($T$181:$AD$181),D61,INDEX($T$181:$AD$181,0,IF($H61>=MAX($T$181:$AD$181),MATCH(D61,$T$181:$AD$181,0),MATCH(D61,$T$181:$AD$181,0)+1))) -> 10 | F61: =HLOOKUP($D61,TTrTK_,N61+1,0) -> 0.258 | G61: =HLOOKUP($E61,TTrTK_,N61+1,0) -> 0.258 | H61: =IF(GD_=3,XDTM_,XD_) -> 0 | I61: =IF($D61=$E61,$F61,FORECAST(H61,$F61:$G61,$D61:$E61)) -> 0.258 | K61: =IF(IF(J61<>0,H61*I61*J61*10^7,H61*I61*10^7)>2000000,IF(J61<>0,H61*I61*J61*10^7,H61*I61*10^7),2000000) -> 2000000 | L61: 200000 | M61: =K61+L61 -> 2200000 | N61: 1 | P61: 2 | Q61: =IF(BTK_>=2,TRUE) -> TRUE | R61: =IF(K61>2000000,IF(GD_=3,"Gxd(trong TMĐT)*ĐMTL",""),"Tối thiểu không nhỏ hơn 2.000.000 đồng") -> Tối thiểu không nhỏ hơn 2.000.000 đồng
A62: 58 | B62: TVTTrDTKT | C62: Chi phí thẩm tra dự toán thiết kế kỹ thuật | D62: =IF(P62<>3,0,IF($H62<=MIN($T$181:$AD$181),MIN($T$181:$AD$181),LOOKUP($H62,$T$181:$AD$181))) -> 0 | E62: =IF(P62<>3,0,IF($H62<=MIN($T$181:$AD$181),D62,INDEX($T$181:$AD$181,0,IF($H62=MAX($T$181:$AD$181),MATCH(D62,$T$181:$AD$181,0),MATCH(D62,$T$181:$AD$181,0)+1)))) -> 0 | F62: =IF(P62<>3,0,HLOOKUP($D62,TTrDT_,N62+1,0)) -> 0 | G62: =IF(P62<>3,0,HLOOKUP($E62,TTrDT_,N62+1,0)) -> 0 | H62: =IF(GD_=3,XDTM_,XD_) -> 0 | I62: 0 | K62: 2000000 | L62: 200000 | M62: =K62+L62 -> 2200000 | N62: 1 | P62: 2 | Q62: =Q60 -> FALSE | R62: =IF(AND(BTK_>2,GD_=3),"Hợp đồng đã ký","") -> 
A63: 59 | B63: TVTTrDTBVTC | C63: Chi phí thẩm tra dự toán thiết kế BVTC | D63: =IF($H63<=MIN($T$181:$AD$181),MIN($T$181:$AD$181),LOOKUP($H63,$T$181:$AD$181)) -> 10 | E63: =IF($H63<=MIN($T$181:$AD$181),D63,INDEX($T$181:$AD$181,0,IF($H63>=MAX($T$181:$AD$181),MATCH(D63,$T$181:$AD$181,0),MATCH(D63,$T$181:$AD$181,0)+1))) -> 10 | F63: =HLOOKUP($D63,TTrDT_,N63+1,0) -> 0.25 | G63: =HLOOKUP($E63,TTrDT_,N63+1,0) -> 0.25 | H63: =IF(GD_=3,XDTM_,XD_) -> 0 | I63: 0.25 | K63: 2000000 | L63: 200000 | M63: =K63+L63 -> 2200000 | N63: 1 | P63: 2 | Q63: =Q61 -> TRUE | R63: =IF(K63>2000000,IF(GD_=3,"Gxd(trong TMĐT)*ĐMTL",""),"Tối thiểu không nhỏ hơn 2.000.000 đồng") -> Tối thiểu không nhỏ hơn 2.000.000 đồng
A64: 60 | B64: TVTKDC | C64: Chi phí điều chỉnh thiết kế
A65: 61 | B65: TVDTDC | C65: Chi phí lập dự toán điều chỉnh
A66: 62 | B66: TVTTrTKDC | C66: Chi phí thẩm tra thiết kế điều chỉnh
A67: 63 | B67: TVTTrDTDC | C67: Chi phí thẩm tra dự toán điều chỉnh
A68: 64 | B68: TVDTXD-1 | C68: Chi phí lập HSMT, đánh giá HSDT thi công xây dựng | D68: =IF($H$68<=MIN($T$328:$AA$328),MIN($T$328:$AA$328),LOOKUP($H$68,$T$328:$AA$328)) -> 10 | E68: =IF($H$68<=MIN($T$328:$AA$328),$D68,INDEX($T$328:$AA$328,0,IF($H$68>=MAX($T$328:$AA$328),MATCH($D68,$T$328:$AA$328,0),MATCH($D68,$T$328:$AA$328,0)+1))) -> 10 | F68: =HLOOKUP(D68,Data_DTTCXD,LCT_+1,0) -> 0.432 | G68: =HLOOKUP(E68,Data_DTTCXD,LCT_+1,0) -> 0.432 | H68: =XD_ -> 0 | I68: =IF($D68=$E68,$F68,FORECAST($H$68,$F68:$G68,$D68:$E68)) -> 0.432 | K68: =IF(J68<>0,H68*I68*J68*10^7,H68*I68*10^7) -> 0 | L68: =K68*10% -> 0 | M68: =K68+L68 -> 0 | Q68: =IF(XD_>1/1.1,"TRUE","FALSE") -> FALSE
A69: 65 | B69: TVDTTB-1 | C69: Chi phí lập HSMT, đánh giá HSDT mua sắm vật tư, thiết bị | D69: =IF($H$69<=MIN($T$328:$AA$328),MIN($T$328:$AA$328),LOOKUP($H$69,$T$328:$AA$328)) -> 10 | E69: =IF($H$69<=MIN($T$328:$AA$328),$D69,INDEX($T$328:$AA$328,0,IF($H$69>=MAX($T$328:$AA$328),MATCH($D69,$T$328:$AA$328,0),MATCH($D69,$T$328:$AA$328,0)+1))) -> 10 | F69: =HLOOKUP(D69,Data_DTLDTB,LCT_+1,0) -> 0.367 | G69: =HLOOKUP(E69,Data_DTLDTB,LCT_+1,0) -> 0.367 | H69: =TB_ -> 0 | I69: =IF($D69=$E69,$F69,FORECAST($H$69,$F69:$G69,$D69:$E69)) -> 0.367 | K69: 0 | L69: =K69*10% -> 0 | M69: =K69+L69 -> 0 | Q69: =IF(TB_>1/1.1,"TRUE","FALSE") -> FALSE
A70: 64 | B70: TVDTXD-2 | C70: Chi phí lập HSMT, đánh giá HSDT thi công xây dựng (trường hợp công trình chia nhiều gói thầu XL) | D70: =IF($H$68<=MIN($T$328:$AA$328),MIN($T$328:$AA$328),LOOKUP($H$68,$T$328:$AA$328)) -> 10 | E70: =IF($H$68<=MIN($T$328:$AA$328),$D70,INDEX($T$328:$AA$328,0,IF($H$68>=MAX($T$328:$AA$328),MATCH($D70,$T$328:$AA$328,0),MATCH($D70,$T$328:$AA$328,0)+1))) -> 10 | F70: =HLOOKUP(D70,Data_DTTCXD,LCT_+1,0) -> 0.432 | G70: =HLOOKUP(E70,Data_DTTCXD,LCT_+1,0) -> 0.432 | I70: =IF($D70=$E70,$F70,FORECAST($H$68,$F70:$G70,$D70:$E70)) -> 0.432 | K70: =IF(J70<>0,H70*I70*J70*10^7,H70*I70*10^7) -> 0 | L70: =K70*10% -> 0 | M70: =K70+L70 -> 0
A71: 65 | B71: TVDTTB-2 | C71: Chi phí lập HSMT, đánh giá HSDT mua sắm vật tư, thiết bị (trường hợp công trình chia nhiều gói thầu mua sắm, lắp đặt TB) | D71: =IF($H$69<=MIN($T$328:$AA$328),MIN($T$328:$AA$328),LOOKUP($H$69,$T$328:$AA$328)) -> 10 | E71: =IF($H$69<=MIN($T$328:$AA$328),$D71,INDEX($T$328:$AA$328,0,IF($H$69>=MAX($T$328:$AA$328),MATCH($D71,$T$328:$AA$328,0),MATCH($D71,$T$328:$AA$328,0)+1))) -> 10 | F71: =HLOOKUP(D71,Data_DTLDTB,LCT_+1,0) -> 0.367 | G71: =HLOOKUP(E71,Data_DTLDTB,LCT_+1,0) -> 0.367 | I71: =IF($D71=$E71,$F71,FORECAST($H$69,$F71:$G71,$D71:$E71)) -> 0.367 | K71: 0 | L71: =K71*10% -> 0 | M71: =K71+L71 -> 0
A72: 66 | B72: TVMQTDTXD1 | C72: Chi phí lập hồ sơ mời quan tâm, đánh giá hồ sơ quan tâm; lập hồ sơ mời sơ tuyển, đánh giá hồ sơ mời sơ tuyển gói thầu thi công xây dựng | D72: =IF($H$68<=MIN($T$328:$AA$328),MIN($T$328:$AA$328),LOOKUP($H$68,$T$328:$AA$328)) -> 10 | E72: =IF($H$68<=MIN($T$328:$AA$328),$D72,INDEX($T$328:$AA$328,0,IF($H$68>=MAX($T$328:$AA$328),MATCH($D72,$T$328:$AA$328,0),MATCH($D72,$T$328:$AA$328,0)+1))) -> 10 | F72: =HLOOKUP(D72,Data_DTTCXD,LCT_+1,0) -> 0.432 | G72: =HLOOKUP(E72,Data_DTTCXD,LCT_+1,0) -> 0.432 | I72: =IF($D72=$E72,$F72,FORECAST($H$68,$F72:$G72,$D72:$E72))*30% -> 0.1296 | K72: 0 | L72: 0 | M72: 0
A73: 67 | B73: TVMQTDTTB1 | C73: Chi phí lập hồ sơ mời quan tâm, đánh giá hồ sơ quan tâm; lập hồ sơ mời sơ tuyển, đánh giá hồ sơ mời sơ tuyển gói thầu mua sắm vật tư, thiết bị | D73: =IF($H$69<=MIN($T$328:$AA$328),MIN($T$328:$AA$328),LOOKUP($H$69,$T$328:$AA$328)) -> 10 | E73: =IF($H$69<=MIN($T$328:$AA$328),$D73,INDEX($T$328:$AA$328,0,IF($H$69>=MAX($T$328:$AA$328),MATCH($D73,$T$328:$AA$328,0),MATCH($D73,$T$328:$AA$328,0)+1))) -> 10 | F73: =HLOOKUP(D73,Data_DTLDTB,LCT_+1,0) -> 0.367 | G73: =HLOOKUP(E73,Data_DTLDTB,LCT_+1,0) -> 0.367 | I73: =IF($D73=$E73,$F73,FORECAST($H$69,$F73:$G73,$D73:$E73))*30% -> 0.1101 | K73: 0 | L73: 0 | M73: 0
A74: 68 | B74: TVDXXD1 | C74: Chi phí lập hồ sơ yêu cầu và đánh giá hồ sơ đề xuất gói thầu thi công xây dựng | D74: =IF($H$68<=MIN($T$328:$AA$328),MIN($T$328:$AA$328),LOOKUP($H$68,$T$328:$AA$328)) -> 10 | E74: =IF($H$68<=MIN($T$328:$AA$328),$D74,INDEX($T$328:$AA$328,0,IF($H$68>=MAX($T$328:$AA$328),MATCH($D74,$T$328:$AA$328,0),MATCH($D74,$T$328:$AA$328,0)+1))) -> 10 | F74: =HLOOKUP(D74,Data_DTTCXD,LCT_+1,0) -> 0.432 | G74: =HLOOKUP(E74,Data_DTTCXD,LCT_+1,0) -> 0.432 | H74: =XD_ -> 0 | I74: =IF($D74=$E74,$F74,FORECAST($H$68,$F74:$G74,$D74:$E74))*60% -> 0.2592 | K74: 0 | L74: 0 | M74: 0 | Q74: =IF(AND(XD_<=1/1.1,XD_>0),"TRUE","FALSE") -> FALSE
A75: 69 | B75: TVDXTB1 | C75: Chi phí lập hồ sơ yêu cầu và đánh giá hồ sơ đề xuất gói thầu mua sắm vật tư, thiết bị | D75: =IF($H$69<=MIN($T$328:$AA$328),MIN($T$328:$AA$328),LOOKUP($H$69,$T$328:$AA$328)) -> 10 | E75: =IF($H$69<=MIN($T$328:$AA$328),$D75,INDEX($T$328:$AA$328,0,IF($H$69>=MAX($T$328:$AA$328),MATCH($D75,$T$328:$AA$328,0),MATCH($D75,$T$328:$AA$328,0)+1))) -> 10 | F75: =HLOOKUP(D75,Data_DTLDTB,LCT_+1,0) -> 0.367 | G75: =HLOOKUP(E75,Data_DTLDTB,LCT_+1,0) -> 0.367 | H75: =TB_ -> 0 | I75: =IF($D75=$E75,$F75,FORECAST($H$69,$F75:$G75,$D75:$E75))*60% -> 0.2202 | K75: 0 | L75: 0 | M75: 0 | Q75: =IF(AND(TB_<=1/1.1,TB_>0),"TRUE","FALSE") -> FALSE
A76: 70 | B76: TVDXTV1 | C76: Chi phí lập hồ sơ yêu cầu và đánh giá hồ sơ đề xuất gói thầu tư vấn | D76: =IF($H$24<=MIN($T$322:$Z$322),MIN($T$322:$Z$322),LOOKUP($H$24,$T$322:$Z$322)) -> 1 | E76: =IF($H$24<=MIN($T$322:$Z$322),$D76,INDEX($T$322:$Z$322,0,IF($H$24>=MAX($T$322:$Z$322),MATCH($D76,$T$322:$Z$322,0),MATCH($D76,$T$322:$Z$322,0)+1))) -> 1 | F76: =HLOOKUP($D76,Data_DTTV,2,0) -> 0.816 | G76: =HLOOKUP($E76,Data_DTTV,2,0) -> 0.816 | I76: =IF($D76=$E76,$F76,FORECAST($H$24,$F76:$G76,$D76:$E76))*60% -> 0.4896 | K76: 0 | L76: =0.1*K76 -> 0 | M76: =SUM(K76:L76) -> 0
A77: 71 | B77: TVLHSMQTXD-1 | C77: Chi phí lập hồ sơ mời quan tâm, hồ sơ mời sơ tuyển gói thầu thi công xây dựng (NĐ 63/2014-CP) | I77: 0.05 | K77: =IF(IF(J77<>0,H77*I77*J77*10^7,H77*I77*10^7)<1000000,1000000,IF(IF(J77<>0,H77*I77*J77*10^7,H77*I77*10^7)>30000000,30000000,IF(J77<>0,H77*I77*J77*10^7,H77*I77*10^7))) -> 1000000 | M77: =SUM(K77:L77) -> 1000000
A78: 72 | B78: TVLHSMQTTB-1 | C78: Chi phí lập hồ sơ mời quan tâm, hồ sơ mời sơ tuyển gói thầu mua sắm, lắp đặt thiết bị (NĐ 63/2014-CP) | I78: 0.05 | K78: =IF(IF(J78<>0,H78*I78*J78*10^7,H78*I78*10^7)<1000000,1000000,IF(IF(J78<>0,H78*I78*J78*10^7,H78*I78*10^7)>30000000,30000000,IF(J78<>0,H78*I78*J78*10^7,H78*I78*10^7))) -> 1000000 | M78: 1000000
A79: 73 | B79: TVTDHSMQTXD-1 | C79: Chi phí thẩm định hồ sơ mời quan tâm, hồ sơ mời sơ tuyển gói thầu thi công xây dựng (NĐ 63/2014-CP) | I79: 0.03 | K79: =IF(IF(J79<>0,H79*I79*J79*10^7,H79*I79*10^7)<1000000,1000000,IF(IF(J79<>0,H79*I79*J79*10^7,H79*I79*10^7)>30000000,30000000,IF(J79<>0,H79*I79*J79*10^7,H79*I79*10^7))) -> 1000000 | M79: 1000000
A80: 74 | B80: TVTDHSMQTTB-1 | C80: Chi phí thẩm định hồ sơ mời quan tâm, hồ sơ mời sơ tuyển gói thầu mua sắm, lắp đặt thiết bị (NĐ 63/2014-CP) | I80: 0.03 | K80: =IF(IF(J80<>0,H80*I80*J80*10^7,H80*I80*10^7)<1000000,1000000,IF(IF(J80<>0,H80*I80*J80*10^7,H80*I80*10^7)>30000000,30000000,IF(J80<>0,H80*I80*J80*10^7,H80*I80*10^7))) -> 1000000 | M80: 1000000
A81: 75 | B81: TVLHSMTXD-1 | C81: Chi phí lập hồ sơ mời thầu, hồ sơ yêu cầu gói thầu thi công xây dựng (NĐ 63/2014-CP) | I81: 0.1 | K81: =IF(IF(J81<>0,H81*I81*J81*10^7,H81*I81*10^7)<1000000,1000000,IF(IF(J81<>0,H81*I81*J81*10^7,H81*I81*10^7)>50000000,50000000,IF(J81<>0,H81*I81*J81*10^7,H81*I81*10^7))) -> 1000000 | M81: 1000000
A82: 76 | B82: TVLHSMTTB-1 | C82: Chi phí lập hồ sơ mời thầu, hồ sơ yêu cầu gói thầu mua sắm, lắp đặt thiết bị (NĐ 63/2014-CP) | I82: 0.1 | K82: 1000000 | M82: 1000000
A83: 77 | B83: TVDGHSQTXD-1 | C83: Chi phí đánh giá hồ sơ quan tâm, hồ sơ dự sơ tuyển gói thầu thi công xây dựng (NĐ 63/2014-CP) | I83: 0.05 | K83: =IF(IF(J83<>0,H83*I83*J83*10^7,H83*I83*10^7)<1000000,1000000,IF(IF(J83<>0,H83*I83*J83*10^7,H83*I83*10^7)>30000000,30000000,IF(J83<>0,H83*I83*J83*10^7,H83*I83*10^7))) -> 1000000 | M83: 1000000
A84: 78 | B84: TVDGHSQTTB-1 | C84: Chi phí đánh giá hồ sơ quan tâm, hồ sơ dự sơ tuyển gói thầu mua sắm, lắp đặt thiết bị (NĐ 63/2014-CP) | I84: 0.05 | K84: =IF(IF(J84<>0,H84*I84*J84*10^7,H84*I84*10^7)<1000000,1000000,IF(IF(J84<>0,H84*I84*J84*10^7,H84*I84*10^7)>30000000,30000000,IF(J84<>0,H84*I84*J84*10^7,H84*I84*10^7))) -> 1000000 | M84: 1000000
A85: 79 | B85: TVDGHSDTXD-1 | C85: Chi phí đánh giá hồ sơ dự thầu, hồ sơ đề xuất gói thầu thi công xây dựng (NĐ 63/2014-CP) | I85: 0.01 | K85: 1000000 | M85: 1000000
A86: 80 | B86: TVDGHSDTTB-1 | C86: Chi phí đánh giá hồ sơ dự thầu, hồ sơ đề xuất gói thầu mua sắm, lắp đặt thiết bị (NĐ 63/2014-CP) | I86: 0.1 | K86: 1000000 | M86: 1000000
A87: 81 | B87: TVTDKQLCNTXD-1 | C87: Chi phí thẩm định kết quả lựa chọn nhà thầu gói thầu thi công xây dựng (NĐ 63/2014-CP) | I87: 0.05 | K87: 1000000 | M87: 1000000
A88: 82 | B88: TVTDKQLCNTTB-1 | C88: Chi phí thẩm định kết quả lựa chọn nhà thầu gói thầu mua sắm, lắp đặt thiết bị (NĐ 63/2014-CP) | I88: 0.05 | K88: 1000000 | M88: 1000000
A89: 83 | B89: TVLDMXD | C89: Chi phí lập định mức xây dựng công trình
A90: 84 | B90: TVTTrDMXD | C90: Chi phí thẩm tra định mức xây dựng công trình
A91: 85 | B91: TVLDGXD | C91: Chi phí lập đơn giá xây dựng công trình
A92: 86 | B92: TVTTrDGXD | C92: Chi phí thẩm tra đơn giá xây dựng công trình
A93: 87 | B93: TVLCSG | C93: Chi phí lập chỉ số giá xây dựng
A94: 88 | B94: TVTTrCSG | C94: Chi phí thẩm tra chỉ số giá xây dựng
A95: 89 | B95: TVGSXD | C95: Chi phí giám sát thi công xây dựng | D95: =IF(H95<=MIN($T$303:$AD$303),MIN($T$303:$AD$303),LOOKUP(H95,$T$303:$AD$303)) -> 10 | E95: =IF(H95<=MIN($T$303:$AD$303),$D95,INDEX($T$303:$AD$303,0,IF(H95=MAX($T$303:$AD$303),MATCH($D95,$T$303:$AD$303,0),MATCH($D95,$T$303:$AD$303,0)+1))) -> 10 | F95: =HLOOKUP(D95,Data_GSTC,LCT_+1,0) -> 3.285 | G95: =HLOOKUP(E95,Data_GSTC,LCT_+1,0) -> 3.285 | H95: =XD_ -> 0 | I95: =IF($D95=$E95,$F95,FORECAST(H95,$F95:$G95,$D95:$E95)) -> 3.285 | K95: =IF(J95<>0,H95*I95*J95*10^7,H95*I95*10^7) -> 0 | L95: =10%*K95 -> 0 | M95: =K95+L95 -> 0 | Q95: =IF(XD_>0,"TRUE") -> FALSE
A96: 90 | B96: TVGSTB | C96: Chi phí giám sát lắp đặt thiết bị | D96: =IF(H96<=MIN($T$303:$AD$303),MIN($T$303:$AD$303),LOOKUP(H96,$T$303:$AD$303)) -> 10 | E96: =IF(H96<=MIN($T$303:$AD$303),$D96,INDEX($T$303:$AD$303,0,IF(H96=MAX($T$303:$AD$303),MATCH($D96,$T$303:$AD$303,0),MATCH($D96,$T$303:$AD$303,0)+1))) -> 10 | F96: =HLOOKUP(D96,Data_GSLD,LCT_+1,0) -> 0.844 | G96: =HLOOKUP(E96,Data_GSLD,LCT_+1,0) -> 0.844 | H96: =TB_ -> 0 | I96: =IF($D96=$E96,$F96,FORECAST(H96,$F96:$G96,$D96:$E96)) -> 0.844 | K96: 0 | L96: =10%*K96 -> 0 | M96: 0 | Q96: =IF(TB_>0,"TRUE") -> FALSE
A97: 91 | B97: TVKSCP | C97: Chi phí kiểm soát chi phí đầu tư xây dựng công trình
A98: 92 | B98: TVQLCPDT | C98: Chi phí quản lý chi phí đầu tư xây dựng
A99: 93 | B99: TVTTrDBATGT | C99: Chi phí thẩm tra công tác đảm bảo an toàn giao thông
A100: 94 | B100: TVTVQLDA | C100: Chi phí tư vấn quản lý dự án (trường hợp thuê tư vấn)
A101: 95 | B101: TVTNCN | C101: Chi phí thí nghiệm chuyên ngành
A102: 96 | B102: TVKTCLVL | C102: Chi phí kiểm tra chất lượng vật liệu, cấu kiện, sản phẩm xây dựng, thiết bị lắp đặt vào công trình theo yêu cầu của Chủ đầu tư
A103: 97 | B103: TVKDCLXD | C103: Chi phí kiểm định chất lượng xây dựng
A104: 98 | B104: TVQDVDT-1 | C104: Chi phí quy đổi vốn đầu tư xây dựng | D104: =IF(H104<=MIN($T$372:$Z$372),MIN($T$372:$Z$372),LOOKUP(H104,$T$372:$Z$372)) -> 100 | E104: =IF(H104<=MIN($T$372:$Z$372),$D104,INDEX($T$372:$Z$372,0,IF(H104>=MAX($T$372:$Z$372),MATCH($D104,$T$372:$Z$372,0),MATCH($D104,$T$372:$Z$372,0)+1))) -> 100 | F104: =HLOOKUP(D104,QDV_,2,0) -> 0.109 | G104: =HLOOKUP(E104,QDV_,2,0) -> 0.109 | I104: =IF($D104=$E104,$F104,FORECAST(H104,$F104:$G104,$D104:$E104)) -> 0.109 | K104: =IF(J104<>0,H104*I104*J104*10^7,H104*I104*10^7) -> 0 | L104: =10%*K104 -> 0 | M104: =K104+L104 -> 0
A105: 99 | B105: TVK | C105: Chi phí các công việc tư vấn khác
A106: 100 | B106: KRP | C106: Chi phí rà phá bom mìn, vật nổ
A107: 101 | B107: KTDDA | C107: Phí thẩm định dự án đầu tư xây dựng | D107: =IF(H107<=MIN($T$386:$AC$386),MIN($T$386:$AC$386),LOOKUP(H107,$T$386:$AC$386)) -> 15 | E107: =IF(H107<=MIN($T$386:$AC$386),$D107,INDEX($T$386:$AC$386,0,IF(H107>=MAX($T$386:$AC$386),MATCH($D107,$T$386:$AC$386,0),MATCH($D107,$T$386:$AC$386,0)+1))) -> 15 | F107: =HLOOKUP(D107,$T$386:$AC$387,2,0) -> 0.019 | G107: =HLOOKUP(E107,$T$386:$AC$387,2,0) -> 0.019 | H107: =TMDT_ -> 0 | I107: =IF($D107=$E107,$F107,FORECAST(TMDT_,$F107:$G107,$D107:$E107)) -> 0.019 | K107: =IF(IF(J107<>0,H107*I107*J107*10^7,H107*I107*10^7)>150000000,150000000,IF(J107<>0,H107*I107*J107*10^7,H107*I107*10^7)) -> 0 | M107: =K107+L107 -> 0 | Q107: TRUE | R107: =IF(IF(J107<>0,H107*I107*J107*10^7,H107*I107*10^7)>150*10^6,"Không quá 150.000.000 đồng","") -> 
A108: 102 | B108: KTDTKCS | C108: Phí thẩm định thiết kế cơ sở | H108: =H107 -> 0 | I108: =I107/2 -> 0.0095 | K108: =IF(J108<>0,H108*I108*J108*10^7,H108*I108*10^7) -> 0 | M108: =K108+L108 -> 0
A109: 103 | B109: KTTrTKNN | C109: Phí thẩm định thiết kế xây dựng công trình | D109: =IF(H109<=MIN($T$394:$AB$394),MIN($T$394:$AB$394),LOOKUP(H109,$T$394:$AB$394)) -> 15 | E109: =IF(H109<=MIN($T$394:$AB$394),$D109,INDEX($T$394:$AB$394,0,IF(H109>=MAX($T$394:$AB$394),MATCH($D109,$T$394:$AB$394,0),MATCH($D109,$T$394:$AB$394,0)+1))) -> 15 | F109: =HLOOKUP(D109,$T$394:$AB$399,N109+1,0) -> 0.165 | G109: =HLOOKUP(E109,$T$394:$AB$399,N109+1,0) -> 0.165 | H109: =XD_ -> 0 | I109: =IF($D109=$E109,$F109,FORECAST(H109,$F109:$G109,$D109:$E109)) -> 0.165 | K109: =IF(J109<>0,H109*I109*J109*10^7,H109*I109*10^7) -> 0 | M109: =K109+L109 -> 0 | N109: 1 | Q109: =IF(BTK_>1,"TRUE","FALSE") -> TRUE
A110: 104 | B110: KTTrDTNN | C110: Phí thẩm định dự toán xây dựng công trình | D110: =IF(H110<=MIN($T$394:$AB$394),MIN($T$394:$AB$394),LOOKUP(H110,$T$394:$AB$394)) -> 15 | E110: =IF(XD_<=MIN($T$394:$AB$394),$D110,INDEX($T$394:$AB$394,0,IF(XD_>=MAX($T$394:$AB$394),MATCH($D110,$T$394:$AB$394,0),MATCH($D110,$T$394:$AB$394,0)+1))) -> 15 | F110: =HLOOKUP(D110,$T$403:$AB$408,LCT_+1,0) -> 0.16 | G110: =HLOOKUP(E110,$T$403:$AB$408,LCT_+1,0) -> 0.16 | H110: =XD_ -> 0 | I110: =IF($D110=$E110,$F110,FORECAST(H110,$F110:$G110,$D110:$E110)) -> 0.16 | K110: =IF(J110<>0,H110*I110*J110*10^7,H110*I110*10^7) -> 0 | M110: =K110+L110 -> 0 | N110: 1 | Q110: =IF(BTK_>1,"TRUE","FALSE") -> TRUE
A111: 105 | B111: KTTrTKNNCN | C111: Phí thẩm định thiết kế xây dựng công trình khi cơ quan quản lý nhà nước thuê tổ chức tư vấn, cá nhân cùng thẩm định | D111: =IF(XD_<=MIN($T$394:$AB$394),MIN($T$394:$AB$394),LOOKUP(XD_,$T$394:$AB$394)) -> 15 | E111: =IF(XD_<=MIN($T$394:$AB$394),$D111,INDEX($T$394:$AB$394,0,IF(XD_>=MAX($T$394:$AB$394),MATCH($D111,$T$394:$AB$394,0),MATCH($D111,$T$394:$AB$394,0)+1))) -> 15 | F111: =HLOOKUP(D111,$T$414:$AB$419,LCT_+1,0) -> 0.0495 | G111: =HLOOKUP(E111,$T$414:$AB$419,LCT_+1,0) -> 0.0495 | H111: =XD_ -> 0 | I111: =IF($D111=$E111,$F111,FORECAST(H111,$F111:$G111,$D111:$E111)) -> 0.0495 | K111: =IF(J111<>0,H111*I111*J111*10^7,H111*I111*10^7) -> 0 | M111: 0 | N111: 1
A112: 106 | B112: KTTrDTNNCN | C112: Phí thẩm định dự toán xây dựng công trình khi cơ quan quản lý nhà nước thuê tổ chức tư vấn, cá nhân cùng thẩm định | D112: =IF(XD_<=MIN($T$394:$AB$394),MIN($T$394:$AB$394),LOOKUP(XD_,$T$394:$AB$394)) -> 15 | E112: =IF(XD_<=MIN($T$394:$AB$394),$D112,INDEX($T$394:$AB$394,0,IF(XD_>=MAX($T$394:$AB$394),MATCH($D112,$T$394:$AB$394,0),MATCH($D112,$T$394:$AB$394,0)+1))) -> 15 | F112: =HLOOKUP(D112,$T$423:$AB$428,LCT_+1,0) -> 0.048 | G112: =HLOOKUP(E112,$T$423:$AB$428,LCT_+1,0) -> 0.048 | H112: =XD_ -> 0 | I112: =IF($D112=$E112,$F112,FORECAST(H112,$F112:$G112,$D112:$E112)) -> 0.048 | K112: =IF(J112<>0,H112*I112*J112*10^7,H112*I112*10^7) -> 0 | M112: 0 | N112: 1
A113: 107 | B113: KBH | C113: Chi phí bảo hiểm công trình trong thời gian xây dựng | Q113: TRUE
A114: 108 | B114: KDKCLQT | C114: Chi phí đăng kiểm chất lượng quốc tế, quan trắc biến dạng công trình
A115: 109 | B115: KTTrPDQT | C115: Chi phí thẩm tra, phê duyệt quyết toán dự án hoàn thành | D115: =IF(H115<=MIN($T$379:$Z$379),MIN($T$379:$Z$379),LOOKUP(H115,$T$379:$Z$379)) -> 5 | E115: =IF(H115<=MIN($T$379:$Z$379),$D115,INDEX($T$379:$Z$379,0,IF(H115>=MAX($T$379:$Z$379),MATCH($D115,$T$379:$Z$379,0),MATCH($D115,$T$379:$Z$379,0)+1))) -> 5 | F115: =HLOOKUP(D115,$T$379:$Z$381,2,0) -> 0.57 | G115: =HLOOKUP(E115,$T$379:$Z$381,2,0) -> 0.57 | H115: =TMDT_ -> 0 | I115: =IF($D115=$E115,$F115,FORECAST(TMDT_,$F115:$G115,$D115:$E115)) -> 0.57 | K115: =IF(J115<>0,H115*I115*J115*10^7,H115*I115*10^7) -> 0 | M115: =K115+L115 -> 0 | Q115: TRUE
A116: 110 | B116: KKTDL | C116: Chi phí kiểm toán độc lập | D116: =IF(H116<=MIN($T$379:$Z$379),MIN($T$379:$Z$379),LOOKUP(H116,$T$379:$Z$379)) -> 5 | E116: =IF(H116<=MIN($T$379:$Z$379),$D116,INDEX($T$379:$Z$379,0,IF(H116>=MAX($T$379:$Z$379),MATCH($D116,$T$379:$Z$379,0),MATCH($D116,$T$379:$Z$379,0)+1))) -> 5 | F116: =HLOOKUP(D116,$T$379:$Z$381,3,0) -> 0.96 | G116: =HLOOKUP(E116,$T$379:$Z$381,3,0) -> 0.96 | H116: =TMDT_ -> 0 | I116: =IF($D116=$E116,$F116,FORECAST(TMDT_,$F116:$G116,$D116:$E116)) -> 0.96 | K116: 0 | L116: =10%*K116 -> 0 | M116: 0 | Q116: TRUE
A117: 111 | B117: KPCCC | C117: Lệ phí thẩm duyệt PCCC | D117: =IF(H117<=MIN($T$433:$Y$433),MIN($T$433:$Y$433),LOOKUP(H117,$T$433:$Y$433)) -> 15 | E117: =IF(H117<=MIN($T$433:$Y$433),$D117,INDEX($T$433:$Y$433,0,IF(H117>=MAX($T$433:$Y$433),MATCH($D117,$T$433:$Y$433,0),MATCH($D117,$T$433:$Y$433,0)+1))) -> 15 | F117: =HLOOKUP(D117,$T$433:$Y$437,IF(OR(LCT_=1,LCT_=2),4,IF(OR(LCT_=3,LCT_=5),2,IF(LCT_=4,5,3))),0) -> 0.00967 | G117: =HLOOKUP(E117,$T$433:$Y$437,IF(OR(LCT_=1,LCT_=2),4,IF(OR(LCT_=3,LCT_=5),2,IF(LCT_=4,5,3))),0) -> 0.00967 | H117: =TMDT_ -> 0 | I117: =IF($D117=$E117,$F117,FORECAST(TMDT_,$F117:$G117,$D117:$E117)) -> 0.00967 | K117: 0 | M117: 0 | Q117: TRUE
A118: 112 | B118: KKTNT | C118: Chi phí kiểm tra công tác nghiệm thu trong quá trình thi công xây dựng và khi nghiệm thu hoàn thành hạng mục công trình, công trình của cơ quan quản lý nhà nước có thẩm quyền
A119: 113 | B119: KNCKH | C119: Chi phí nghiên cứu khoa học công nghệ liên quan đến dự án
A120: 114 | B120: KLV | C120: Chi phí vốn lưu động ban đầu đối với các dự án đầu tư xây dựng nhằm mục đích kinh doanh, lãi vay trong thời gian xây dựng
A121: 115 | B121: KCT | C121: Chi phí cho quá trình chạy thử không tải và có tải theo quy trình công nghệ trước khi bàn giao (trừ giá trị sản phẩm thu hồi được)
A122: 116 | B122: KTTN | C122: Chi phí các khoản thuế tài nguyên, phí và lệ phí theo quy định
A123: 117 | B123: KK | C123: Các chi phí thực hiện các công việc khác.
AU125: =Options!$N$21 -> 1
AU126: Loại dự án
R127: Bảng số 1.1: Định mức chi phí quản lý dự án | AU127: Dự án thường
AU128: Dự án PPP
R129: TT | S129: Loại công trình | T129: Chi phí xây dựng và thiết bị (chưa có thuế GTGT) (tỷ đồng) | AU129: =Options!$N$12 -> 1 | AV129: 2 | AW129: 2 | AX129: 3 | AY129: 3
T130: 10 | U130: 20 | V130: 50 | W130: 100 | X130: 200 | Y130: 500 | Z130: 1000 | AA130: 2000 | AB130: 5000 | AC130: 10000 | AD130: 20000 | AE130: 30000 | AU130: Loại công trình | AV130: Loại báo cáo | AW130: Số bước thiết kế | AX130: Cấp công trình | AY130: Giai đoạn tính toán
R131: 1 | S131: Công trình dân dụng | T131: 3.446 | U131: 2.923 | V131: 2.61 | W131: 2.017 | X131: 1.886 | Y131: 1.514 | Z131: 1.239 | AA131: 0.958 | AB131: 0.711 | AC131: 0.51 | AD131: 0.381 | AE131: 0.305 | AU131: Công trình dân dụng | AV131: Báo cáo nghiên cứu tiền khả thi | AW131: Thiết kế 1 bước | AX131: Cấp đặc biệt | AY131: Sơ bộ Tổng mức đầu tư
R132: 2 | S132: Công trình công nghiệp | T132: 3.557 | U132: 3.018 | V132: 2.694 | W132: 2.082 | X132: 1.947 | Y132: 1.564 | Z132: 1.279 | AA132: 1.103 | AB132: 0.734 | AC132: 0.527 | AD132: 0.393 | AE132: 0.314 | AU132: Công trình công nghiệp | AV132: Báo cáo nghiên cứu khả thi | AW132: Thiết kế 2 bước | AX132: Cấp I | AY132: Tổng mức đầu tư
R133: 3 | S133: Công trình giao thông | T133: 3.024 | U133: 2.566 | V133: 2.292 | W133: 1.771 | X133: 1.655 | Y133: 1.329 | Z133: 1.088 | AA133: 0.937 | AB133: 0.624 | AC133: 0.448 | AD133: 0.335 | AE133: 0.268 | AU133: Công trình giao thông | AV133: Báo cáo kinh tế - kỹ thuật | AW133: Thiết kế 3 bước | AX133: Cấp II | AY133: Dự toán xây dựng công trình
R134: 4 | S134: Công trình nông nghiệp và phát triển nông thôn | T134: 3.263 | U134: 2.769 | V134: 2.473 | W134: 1.91 | X134: 1.786 | Y134: 1.434 | Z134: 1.174 | AA134: 1.012 | AB134: 0.674 | AC134: 0.484 | AD134: 0.361 | AE134: 0.289 | AU134: Công trình nông nghiệp và phát triển nông thôn | AX134: Cấp III
R135: 5 | S135: Công trình hạ tầng kỹ thuật | T135: 2.901 | U135: 2.461 | V135: 2.198 | W135: 1.593 | X135: 1.56 | Y135: 1.275 | Z135: 1.071 | AA135: 0.899 | AB135: 0.599 | AC135: 0.429 | AD135: 0.321 | AE135: 0.257 | AU135: Công trình hạ tầng kỹ thuật | AX135: Cấp IV
R137: Bảng số 1.2: Định mức chi phí hoạt động của đơn vị quản lý dự án thuộc Cơ quan nhà nước có thẩm quyền thực hiện dự án theo hình thức đối tác công tư (PPP)
R138: (Thông tư 16/2019/TT-BXD)
R139: TT | S139: Loại công trình | T139: Chi phí xây dựng và thiết bị (chưa có thuế GTGT) (tỷ đồng)
T140: 50 | U140: 100 | V140: 200 | W140: 500 | X140: 1000 | Y140: 2000 | Z140: 5000 | AA140: 10000 | AB140: 20000 | AC140: 30000
R141: 1 | S141: Công trình dân dụng | T141: 1.113 | U141: 0.764 | V141: 0.714 | W141: 0.573 | X141: 0.469 | Y141: 0.404 | Z141: 0.202 | AA141: 0.145 | AB141: 0.105 | AC141: 0.084
R142: 2 | S142: Công trình công nghiệp | T142: 1.178 | U142: 0.809 | V142: 0.756 | W142: 0.607 | X142: 0.497 | Y142: 0.428 | Z142: 0.214 | AA142: 0.154 | AB142: 0.111 | AC142: 0.088
R143: 3 | S143: Công trình giao thông | T143: 1.001 | U143: 0.688 | V143: 0.643 | W143: 0.516 | X143: 0.445 | Y143: 0.385 | Z143: 0.178 | AA143: 0.131 | AB143: 0.094 | AC143: 0.075
R144: 4 | S144: Công trình nông nghiệp và phát triển nông thôn | T144: 1.065 | U144: 0.731 | V144: 0.684 | W144: 0.549 | X144: 0.45 | Y144: 0.388 | Z144: 0.193 | AA144: 0.139 | AB144: 0.1 | AC144: 0.08
R145: 5 | S145: Công trình hạ tầng kỹ thuật | T145: 0.945 | U145: 0.649 | V145: 0.606 | W145: 0.487 | X145: 0.398 | Y145: 0.343 | Z145: 0.172 | AA145: 0.123 | AB145: 0.089 | AC145: 0.071
R147: Bảng số 2.1: Định mức chi phí lập báo cáo nghiên cứu tiền khả thi
R149: TT | S149: Loại công trình | T149: Chi phí xây dựng và thiết bị (chưa có thuế GTGT) trong tổng mức đầu tư được duyệt (tỷ đồng)
T150: 15 | U150: 20 | V150: 50 | W150: 100 | X150: 200 | Y150: 500 | Z150: 1000 | AA150: 2000 | AB150: 5000 | AC150: 10000 | AD150: 20000 | AE150: 30000
R151: 1 | S151: Công trình dân dụng | T151: 0.668 | U151: 0.503 | V151: 0.376 | W151: 0.24 | X151: 0.161 | Y151: 0.1 | Z151: 0.086 | AA151: 0.073 | AB151: 0.05 | AC151: 0.04 | AD151: 0.026 | AE151: 0.022
R152: 2 | S152: Công trình công nghiệp | T152: 0.757 | U152: 0.612 | V152: 0.441 | W152: 0.294 | X152: 0.206 | Y152: 0.163 | Z152: 0.141 | AA152: 0.11 | AB152: 0.074 | AC152: 0.057 | AD152: 0.034 | AE152: 0.027
R153: 3 | S153: Công trình giao thông | T153: 0.413 | U153: 0.345 | V153: 0.251 | W153: 0.177 | X153: 0.108 | Y153: 0.071 | Z153: 0.062 | AA153: 0.053 | AB153: 0.036 | AC153: 0.029 | AD153: 0.019 | AE153: 0.016
R154: 4 | S154: Công trình nông nghiệp và phát triển nông thôn | T154: 0.566 | U154: 0.472 | V154: 0.343 | W154: 0.216 | X154: 0.144 | Y154: 0.096 | Z154: 0.082 | AA154: 0.07 | AB154: 0.048 | AC154: 0.039 | AD154: 0.025 | AE154: 0.021
R155: 5 | S155: Công trình hạ tầng kỹ thuật | T155: 0.431 | U155: 0.36 | V155: 0.262 | W155: 0.183 | X155: 0.112 | Y155: 0.074 | Z155: 0.065 | AA155: 0.055 | AB155: 0.038 | AC155: 0.03 | AD155: 0.02 | AE155: 0.017
R157: Bảng số 2.2: Định mức chi phí lập báo cáo nghiên cứu khả thi
R159: TT | S159: Loại công trình | T159: Chi phí xây dựng và thiết bị (chưa có thuế GTGT) (tỷ đồng)
T160: 15 | U160: 20 | V160: 50 | W160: 100 | X160: 200 | Y160: 500 | Z160: 1000 | AA160: 2000 | AB160: 5000 | AC160: 10000 | AD160: 20000 | AE160: 30000
R161: 1 | S161: Công trình dân dụng | T161: 1.114 | U161: 0.914 | V161: 0.751 | W161: 0.534 | X161: 0.402 | Y161: 0.287 | Z161: 0.246 | AA161: 0.209 | AB161: 0.167 | AC161: 0.134 | AD161: 0.102 | AE161: 0.086
R162: 2 | S162: Công trình công nghiệp | T162: 1.261 | U162: 1.112 | V162: 0.882 | W162: 0.654 | X162: 0.515 | Y162: 0.466 | Z162: 0.404 | AA162: 0.315 | AB162: 0.248 | AC162: 0.189 | AD162: 0.135 | AE162: 0.107
R163: 3 | S163: Công trình giao thông | T163: 0.689 | U163: 0.628 | V163: 0.501 | W163: 0.393 | X163: 0.271 | Y163: 0.203 | Z163: 0.177 | AA163: 0.151 | AB163: 0.12 | AC163: 0.097 | AD163: 0.075 | AE163: 0.063
R164: 4 | S164: Công trình nông nghiệp và phát triển nông thôn | T164: 0.943 | U164: 0.858 | V164: 0.685 | W164: 0.48 | X164: 0.361 | Y164: 0.273 | Z164: 0.234 | AA164: 0.201 | AB164: 0.161 | AC164: 0.129 | AD164: 0.1 | AE164: 0.084
R165: 5 | S165: Công trình hạ tầng kỹ thuật | T165: 0.719 | U165: 0.654 | V165: 0.524 | W165: 0.407 | X165: 0.28 | Y165: 0.211 | Z165: 0.185 | AA165: 0.158 | AB165: 0.127 | AC165: 0.101 | AD165: 0.078 | AE165: 0.065
R167: Bảng số 2.3: Định mức chi phí lập báo cáo kinh tế - kỹ thuật
R169: TT | S169: Loại công trình | T169: Chi phí xây dựng và thiết bị (chưa có thuế GTGT) (tỷ đồng)
T170: 1 | U170: 3 | V170: 7 | W170: 15
R171: 1 | S171: Công trình dân dụng | T171: 6.5 | U171: 4.7 | V171: 4.2 | W171: 3.6
R172: 2 | S172: Công trình công nghiệp | T172: 6.7 | U172: 4.8 | V172: 4.3 | W172: 3.8
R173: 3 | S173: Công trình giao thông | T173: 5.4 | U173: 3.6 | V173: 2.7 | W173: 2.5
R174: 4 | S174: Công trình nông nghiệp và phát triển nông thôn | T174: 6.2 | U174: 4.4 | V174: 3.9 | W174: 3.6
R175: 5 | S175: Công trình hạ tầng kỹ thuật | T175: 5.8 | U175: 4.2 | V175: 3.4 | W175: 3
R176: Lưu ý khi áp dụng định mức chi phỉ lập báo cáo kinh tế - kỹ thuật: Chi phí lập báo cáo kinh tế - kỹ thuật xác định theo định mức nhưng tối thiểu không nhỏ hơn 5.000.000 đồng.
R178: Bảng số 2.4: Định mức chi phí thiết kế kỹ thuật của công trình dân dụng có yêu cầu thiết kế 3 bước
R180: TT | S180: Cấp công trình | T180: Chi phí xây dựng (chưa có thuế GTGT) (tỷ đồng) | AG180: Bảng DD1
T181: 10 | U181: 20 | V181: 50 | W181: 100 | X181: 200 | Y181: 500 | Z181: 1000 | AA181: 2000 | AB181: 5000 | AC181: 8000 | AD181: 10000 | AG181: Chi phí thiết bị (tỷ đồng) | AH181: 5 | AI181: 15 | AJ181: 25 | AK181: 50 | AL181: 100 | AM181: 200 | AN181: 500 | AO181: 1000 | AP181: 3000
R182: 1 | S182: Cấp đặc biệt | T182: 3.22 | U182: 2.81 | V182: 2.36 | W182: 2.15 | X182: 1.96 | Y182: 1.65 | Z182: 1.36 | AA182: 1.16 | AB182: 0.89 | AC182: 0.68 | AD182: 0.61 | AG182: Tỷ lệ % | AH182: 0.6 | AI182: 0.5 | AJ182: 0.45 | AK182: 0.4 | AL182: 0.36 | AM182: 0.33 | AN182: 0.28 | AO182: 0.22 | AP182: 0.16
R183: 2 | S183: Cấp I | T183: 2.93 | U183: 2.55 | V183: 2.14 | W183: 1.94 | X183: 1.78 | Y183: 1.5 | Z183: 1.22 | AA183: 1.05 | AB183: 0.8 | AC183: 0.61 | AD183: 0.55
R184: 3 | S184: Cấp II | T184: 2.67 | U184: 2.33 | V184: 1.96 | W184: 1.77 | X184: 1.62 | Y184: 1.37 | Z184: 1.11 | AA184: 0.94 | AB184: 0.73 | AC184: 0.55 | AD184: 0.5
R185: 4 | S185: Cấp III | T185: 2.36 | U185: 2.07 | V185: 1.74 | W185: 1.57 | X185: 1.43 | Y185: 1.21 | Z185: 0.98 | AA185: 0.83 | AB185: 0.64 | AC185: 0.48 | AD185: 0.44
R186: 5 | S186: Cấp IV | T186: 2.07 | U186: 1.81 | V186: 1.48 | W186: 1.3 | X186: 1.06 | Y186: 0.89
R188: Bảng số 2.5: Định mức chi phí thiết kế bản vẽ thi công của công trình dân dụng có yêu cầu thiết kế 2 bước
R190: TT | S190: Cấp công trình | T190: Chi phí xây dựng (chưa có thuế GTGT) (tỷ đồng)
T191: 10 | U191: 20 | V191: 50 | W191: 100 | X191: 200 | Y191: 500 | Z191: 1000 | AA191: 2000 | AB191: 5000 | AC191: 8000 | AD191: 10000
R192: 1 | S192: Cấp đặc biệt | T192: 4.66 | U192: 4.05 | V192: 3.41 | W192: 3.1 | X192: 2.83 | Y192: 2.39 | Z192: 1.93 | AA192: 1.65 | AB192: 1.28 | AC192: 0.99 | AD192: 0.91
R193: 2 | S193: Cấp I | T193: 4.22 | U193: 3.66 | V193: 3.1 | W193: 2.82 | X193: 2.57 | Y193: 2.17 | Z193: 1.76 | AA193: 1.51 | AB193: 1.16 | AC193: 0.9 | AD193: 0.8
R194: 3 | S194: Cấp II | T194: 3.85 | U194: 3.33 | V194: 2.8 | W194: 2.54 | X194: 2.34 | Y194: 1.98 | Z194: 1.61 | AA194: 1.36 | AB194: 1.06 | AC194: 0.82 | AD194: 0.72
R195: 4 | S195: Cấp III | T195: 3.41 | U195: 2.95 | V195: 2.48 | W195: 2.25 | X195: 2.07 | Y195: 1.75 | Z195: 1.43 | AA195: 1.2 | AB195: 0.94 | AC195: 0.72 | AD195: 0.63
R196: 5 | S196: Cấp IV | T196: 2.92 | U196: 2.55 | V196: 2.12 | W196: 1.86 | X196: 1.51 | Y196: 1.3
R199: Bảng số 2.6: Định mức chi phí thiết kế kỹ thuật của công trình công nghiệp có yêu cầu thiết kế 3 bước
AG200: Bảng CN1
R201: TT | S201: Cấp công trình | T201: Chi phí xây dựng (chưa có thuế GTGT) (tỷ đồng)
T202: 10 | U202: 20 | V202: 50 | W202: 100 | X202: 200 | Y202: 500 | Z202: 1000 | AA202: 2000 | AB202: 5000 | AC202: 8000 | AD202: 10000 | AG202: Cấp điện áp/ CP XD và TB (tỷ đồng) | AH202: 5 | AI202: 15 | AJ202: 25 | AK202: 50 | AL202: 100 | AM202: 200 | AN202: 500
R203: 1 | S203: Cấp đặc biệt | T203: 2.96 | U203: 2.73 | V203: 2.34 | W203: 2.13 | X203: 1.92 | Y203: 1.76 | Z203: 1.54 | AA203: 1.3 | AB203: 0.97 | AC203: 0.79 | AD203: 0.7 | AG203: Cáp ngầm điện áp < 6KV | AH203: 1.7 | AI203: 1.4 | AJ203: 1.3 | AK203: 1.2 | AL203: 1.1 | AM203: 0.95 | AN203: 0.85
R204: 2 | S204: Cấp I | T204: 2.47 | U204: 2.27 | V204: 1.93 | W204: 1.77 | X204: 1.6 | Y204: 1.46 | Z204: 1.28 | AA204: 1.09 | AB204: 0.8 | AC204: 0.65 | AD204: 0.58 | AG204: Cấp ngầm điện áp 6 - 110KV | AH204: 1.9 | AI204: 1.6 | AJ204: 1.45 | AK204: 1.3 | AL204: 1.2 | AM204: 1.05 | AN204: 0.95
R205: 3 | S205: Cấp II | T205: 2.03 | U205: 1.86 | V205: 1.59 | W205: 1.46 | X205: 1.32 | Y205: 1.2 | Z205: 1.05 | AA205: 0.9 | AB205: 0.66 | AC205: 0.53 | AD205: 0.48 | AG205: Cáp ngầm điện áp 220KV | AH205: 1.65 | AI205: 1.43 | AJ205: 1.27 | AK205: 1.16 | AL205: 1.05 | AM205: 0.94 | AN205: 0.83
R206: 4 | S206: Cấp III | T206: 1.78 | U206: 1.65 | V206: 1.4 | W206: 1.27 | X206: 1.17 | Y206: 1.06 | Z206: 0.93 | AA206: 0.79 | AB206: 0.58 | AC206: 0.47 | AD206: 0.42
R207: 5 | S207: Cấp IV | T207: 1.59 | U207: 1.47 | V207: 1.24 | W207: 1.14 | X207: 0.98 | Y207: 0.83
R209: Bảng số 2.7: Định mức chi phí thiết kế bản vẽ thi công của công trình công nghiệp có yêu cầu thiết kế 2 bước | AG209: Bảng CN2
AF210: TT | AG210: Công trình | AJ210: Chi phí thiết bị (tỷ đồng)
R211: TT | S211: Cấp công trình | T211: Chi phí xây dựng (chưa có thuế GTGT) (tỷ đồng) | AH211: 5 | AI211: 15 | AJ211: 25 | AK211: 50 | AL211: 100 | AM211: 200 | AN211: 500 | AO211: 1000 | AP211: 3000
T212: 10 | U212: 20 | V212: 50 | W212: 100 | X212: 200 | Y212: 500 | Z212: 1000 | AA212: 2000 | AB212: 5000 | AC212: 8000 | AD212: 10000 | AF212: 1 | AG212: Công trình hoá chất | AH212: 1.1 | AI212: 1 | AJ212: 0.9 | AK212: 0.85 | AL212: 0.8 | AM212: 0.7 | AN212: 0.6 | AO212: 0.55 | AP212: 0.45
R213: 1 | S213: Cấp đặc biệt | T213: 4.7 | U213: 4.27 | V213: 3.66 | W213: 3.32 | X213: 3.01 | Y213: 2.75 | Z213: 2.4 | AA213: 2.03 | AB213: 1.52 | AC213: 1.21 | AD213: 1.04 | AF213: 2 | AG213: Công trình khai thác than, quặng (mỏ vật liệu):
R214: 2 | S214: Cấp I | T214: 3.87 | U214: 3.57 | V214: 3.02 | W214: 2.77 | X214: 2.5 | Y214: 2.28 | Z214: 2.01 | AA214: 1.7 | AB214: 1.26 | AC214: 1.02 | AD214: 0.88 | AG214: - Mỏ lộ thiên | AH214: 0.95 | AI214: 0.85 | AJ214: 0.8 | AK214: 0.75 | AL214: 0.7 | AM214: 0.6 | AN214: 0.55 | AO214: 0.5 | AP214: 0.4
R215: 3 | S215: Cấp II | T215: 3.13 | U215: 2.9 | V215: 2.43 | W215: 2.24 | X215: 2.03 | Y215: 1.9 | Z215: 1.66 | AA215: 1.42 | AB215: 1.04 | AC215: 0.82 | AD215: 0.72 | AG215: - Mỏ hầm lò | AH215: 1.15 | AI215: 1 | AJ215: 0.95 | AK215: 0.9 | AL215: 0.8 | AM215: 0.75 | AN215: 0.65 | AO215: 0.6 | AP215: 0.5
R216: 4 | S216: Cấp III | T216: 2.78 | U216: 2.57 | V216: 2.16 | W216: 1.99 | X216: 1.79 | Y216: 1.68 | Z216: 1.47 | AA216: 1.25 | AB216: 0.91 | AC216: 0.72 | AD216: 0.64 | AF216: 3 | AG216: Công trình sx xi măng | AK216: 1.15 | AL216: 1.1 | AM216: 1.05 | AN216: 1.01 | AO216: 0.96 | AP216: 0.8
... 178 more rows

Sheet Tổng hợp CPTB (hidden)
B1: BẢNG TỔNG HỢP DỰ TOÁN CHI PHÍ THIẾT BỊ
B2: Tên dự án: Dự án đầu tư xây dựng công trình …
B3: Tên công trình: Công trình xây dựng …
B4: Thời điểm lập: ngày ... tháng ... năm 202…
B6: STT | C6: NỘI DUNG CHI PHÍ | D6: CÁCH TÍNH | E6: GIÁ TRỊ TRƯỚC THUẾ | F6: THUẾ GTGT | G6: GIÁ TRỊ SAU THUẾ | H6: KÝ HIỆU | I6: Hệ số/ĐMTL
B7: 1 | C7: Chi phí mua sắm thiết bị công trình và thiết bị công nghệ | E7: =SUM(E8:E11) -> 0 | F7: =SUM(F8:F11) -> 0 | G7: =SUM(G8:G11) -> 0 | H7: GMS
B8: 1.1 | C8: ='Chi phí MSTB'!C8 -> Loại thiết bị 1 | D8: Bảng CP mua sắm | E8: ='Chi phí MSTB'!J8 -> 0 | F8: =E8*0.1 -> 0 | G8: =E8+F8 -> 0
B9: 1.2 | C9: ='Chi phí MSTB'!C9 -> Loại thiết bị 2 | D9: Bảng CP mua sắm | E9: ='Chi phí MSTB'!J9 -> 0 | F9: =E9*0.1 -> 0 | G9: =E9+F9 -> 0
B10: 1.3 | C10: ='Chi phí MSTB'!C10 -> Loại thiết bị … | D10: Bảng CP mua sắm | E10: ='Chi phí MSTB'!J10 -> 0 | F10: 0 | G10: 0
D11: Bảng CP mua sắm | E11: ='Chi phí MSTB'!J11 -> 0 | F11: 0 | G11: 0
B13: 2 | C13: Chi phí gia công, chế tạo thiết bị cần gia công (nếu có) | E13: =SUM(E14:E15) -> 0 | F13: =SUM(F14:F15) -> 0 | G13: =SUM(G14:G15) -> 0 | H13: GGC
B14: 2.1 | C14: =C8 -> Loại thiết bị 1 | F14: 0 | G14: =E14+F14 -> 0
B15: 2.2 | C15: Loại thiết bị 2 | F15: 0 | G15: 0
B16: 3 | C16: Chi phí quản lý mua sắm thiết bị (nếu có) | D16: GMS*ĐMTL | E16: =E7*I16 -> 0 | F16: 0 | G16: 0 | H16: GQLMSTB | I16: =IF($G$7/1.1<=10000*10^9,1.1,IF($G$7/1.1>20000*10^9,0.9,1))/100 -> 0.011
B17: 4 | C17: Chi phí mua bản quyền phần mềm sử dụng cho thiết bị công trình, thiết bị công nghệ (nếu có) | F17: 0 | G17: 0 | H17: GCN
B18: 5 | C18: Chi phí đào tạo và chuyển giao công nghệ (nếu có) | F18: 0 | G18: 0 | H18: GĐT
B19: 6 | C19: Chi phí lắp đặt, thí nghiệm, hiệu chỉnh | F19: 0 | G19: 0 | H19: GLĐ
B20: 7 | C20: Chi phí chạy thử thiết bị theo yêu cầu kỹ thuật | F20: 0 | G20: 0 | H20: GCT
B21: 8 | C21: Chi phí vận chuyển | H21: GVC
B22: 9 | C22: Chi phí khác có liên quan (nếu có) | F22: 0 | G22: 0 | H22: GK
C23: TỔNG CỘNG (1+2+3+4+5+6+7+8+9) | E23: =E7+E16+E17+E18+E19+E20+E22 -> 0 | F23: =F7+F16+F17+F18+F19+F20+F22 -> 0 | G23: =G7+G13+G16+G17+G18+G19+G20+G21+G22 -> 0 | H23: GTB
C24: Làm tròn | E24: =ROUND(E23,-3) -> 0 | F24: 0 | G24: =ROUND(G23,-3) -> 0
B25: ="Bằng chữ: "&doc_vnd(G24)&"/." -> Bằng chữ: đồng./.
C26: NGƯỜI LẬP | F26: NGƯỜI CHỦ TRÌ
F29: Chứng chỉ hành nghề định giá XD hạng …, số ...
J31: F

Sheet Chi phí MSTB (hidden)
B1: BẢNG CHI PHÍ MUA SẮM THIẾT BỊ
B2: Tên dự án: Dự án đầu tư xây dựng công trình …
B3: Tên công trình: Công trình xây dựng …
B4: Tên gói thầu: Thi công xây lắp …
B6: Stt | C6: Loại thiết bị | D6: Đơn vị | E6: Số lượng | F6: Giá gốc (Gg) | G6: Chi phí vận chuyển (Ccvc) | H6: Chi phí lưu kho (Clk) | I6: Thuế và phí có liên quan (T) | J6: Thành tiền
B7: 0 | C7: 2 | D7: [3] | E7: [4] | F7: 5 | G7: 6 | H7: 7 | I7: 8 | J7: 9
B8: 1.1.1 | C8: Loại thiết bị 1 | D8: máy | J8: =E8*SUM(F8:I8) -> 0
B9: 1.1.2 | C9: Loại thiết bị 2 | D9: máy | J9: =E9*SUM(F9:I9) -> 0
B10: 1.1.3 | C10: Loại thiết bị … | D10: máy | J10: 0
J11: 0
J12: 0
J13: 0
J14: 0
J15: 0
J16: 0
J17: 0
C18: TỔNG CỘNG | J18: =SUM(J8:J17) -> 0
C19: LÀM TRÒN | J19: =ROUND(J18,-3) -> 0
B21: KHÔNG XÓA | E21: DO NOT REMOVE | G21: KHÔNG XÓA
C23: - Gg: giá thiết bị ở nơi mua hay giá tính đến cảng Việt Nam và các phí bảo hiểm, thuế nhập khẩu,...theo quy định của pháp luật (đối với thiết bị nhập khẩu) đã bao gồm chi phí thiết kế và giám sát chế tạo thiết bị;
C24: - Cvc: chi phí vận chuyển một đơn vị khối lượng hoặc một đơn vị số lượng thiết bị (nhóm thiết bị) từ nơi mua hay từ cảng Việt Nam hoặc từ nơi gia công, chế tạo đến hiện trường công trình;
C25: - Clk: chi phí lưu kho, lưu bãi, lưu container một đơn vị khối lượng hoặc một đơn vị số lượng thiết bị (nhóm thiết bị) tại cảng Việt Nam đối với thiết bị nhập khẩu;
C26: - Cbq: chi phí bảo quản, bảo dưỡng một đơn vị khối lượng hoặc một đơn vị số lượng thiết bị (nhóm thiết bị) tại hiện trường;
C27: - T: các loại thuế và phí có liên quan.

Sheet THCP Tư vấn (hidden)
B1: BẢNG TỔNG HỢP DỰ TOÁN CHI PHÍ TƯ VẤN
B2: =Info!$C$5&Info!$D$5 -> Dự án: Dự án đầu tư xây dựng công trình …
B3: =Info!$C$6&Info!$D$6 -> Công trình: Công trình xây dựng …
B4: STT | C4: KHOẢN MỤC CHI PHÍ | D4: DIỄN GIẢI | E4: GIÁ TRỊ (ĐỒNG) | F4: KÝ HIỆU | G4: HỆ SỐ
B5: 1 | C5: Chi phí chuyên gia | D5: Bảng tính | E5: =tbl_CPCG[[#Totals],[THÀNH TIỀN]] -> 0 | F5: Ccg
B6: 2 | C6: Chi phí quản lý | D6: =G6*100&"%*Ccg" -> 55%*Ccg | E6: =E5*G6 -> 0 | F6: Cql | G6: =IF(E5<1*10^9,0.55,IF(E5<5*10^9,0.5,0.45)) -> 0.55
B7: 3 | C7: Chi phí khác | D7: Bảng tính | E7: =tbl_TVkhac[[#Totals],[THÀNH TIỀN]] -> 126800000 | F7: Ck
B8: 4 | C8: Thu nhập chịu thuế tính trước | D8: =G8*100&"%*(Ccg+Cql)" -> 6%*(Ccg+Cql) | E8: =SUM(E5:E6)*G8 -> 0 | F8: TN | G8: 0.06
B9: 5 | C9: Thuế giá trị gia tăng | D9: =G9*100&"%*(Ccg+Cql+Ck+TN)" -> 10%*(Ccg+Cql+Ck+TN) | E9: =SUM(E5:E8)*G9 -> 12680000 | F9: VAT | G9: 0.1
B10: 6 | C10: Chi phí dự phòng | D10: =G9*100&"%*(Ccg+Cql+Ck+TN+VAT)" -> 10%*(Ccg+Cql+Ck+TN+VAT) | E10: =SUM(E5:E9)*G10 -> 6974000 | F10: Cdp | G10: 0.05
C11: Tổng cộng | D11: Ccg+Cql+Ck+TN+VAT+Cdp | E11: =SUM(E5:E10) -> 146454000 | F11: Ctv
C12: Làm tròn | E12: =ROUND(E11,-3) -> 146454000

Sheet Mẫu Tổng hợp (hidden)
B1: BẢNG TỔNG HỢP DỰ TOÁN CHI PHÍ XÂY DỰNG
B2: ="Tên dự án: "&Info!$D$5 -> Tên dự án: Dự án đầu tư xây dựng công trình …
B3: ="Tên công trình: "&Info!$D$6 -> Tên công trình: Công trình xây dựng …
B4: Thời điểm lập: | H4: FORM1-TT11/2021
H5: PL3_TT11/2021
B6: STT | C6: NỘI DUNG CHI PHÍ | D6: CÁCH TÍNH | E6: GIÁ TRỊ | F6: KÝ HIỆU | G6: HỆ SỐ
B7: I | C7: CHI PHÍ TRỰC TIẾP
B8: 1 | C8: Chi phí vật liệu | D8: VL | E8: =IF(MoEs<>4,E11,E9) -> 0 | F8: VL
C9: Chi phí vật liệu gốc | D9: Bảng dự toán khối lượng | F9: VLg
C10: Chênh lệch giá vật liệu | D10: Bảng tổng hợp vật tư | F10: CLVL
C11: Điều chỉnh hệ số | D11: (VLg+CLVL)*Kvl | E11: =(E9+E10)*G11 -> 0 | F11: Hvl | G11: =Info!$D$20 -> 1
B12: 2 | C12: Chi phí nhân công | D12: NC | E12: =IF(MoEs<>4,E15,E13) -> 0 | F12: NC
C13: Chi phí nhân công gốc | D13: Bảng dự toán khối lượng | F13: NCg
C14: Chênh lệch giá nhân công | D14: Bảng tổng hợp vật tư | F14: CLNC
C15: Điều chỉnh hệ số | D15: (NCg+CLNC)*Knc | E15: =(E13+E14)*G15 -> 0 | F15: Hnc | G15: =Info!$D$21 -> 1
B16: 3 | C16: Chi phí máy thi công | D16: M | E16: =IF(MoEs<>4,E19,E17) -> 0 | F16: M
C17: Chi phí máy thi công gốc | D17: Bảng dự toán khối lượng | F17: Mg
C18: Chênh lệch giá máy thi công | D18: Bảng tổng hợp vật tư | F18: CLM
C19: Điều chỉnh hệ số | D19: (Mg+CLM)*Kmtc | E19: =(E17+E18)*G19 -> 0 | F19: Hm | G19: =Info!$D$22 -> 1
A20: S | C20: Chi phí trực tiếp | D20: VL + NC + M | E20: =E8+E12+E16 -> 0 | F20: T | H20: Chi phí Xây dựng | Phụ lục số 3 Thông tư 11/2021/TT-BXD | J20: 1
B21: II | C21: CHI PHÍ GIÁN TIẾP | F21: _ | J21: 2
B22: 1 | C22: Chi phí chung | D22: =IF(Info!$C$23="Định mức chi phí chung tính trên chi phí trực tiếp (C)","T x "&ROUND(G22*100,3)&"%",IF(Info!$C$23="Định mức chi phí chung tính trên chi phí nhân công (C)","NC x "&ROUND(G22*100,3)&"%")) -> T x 7,3% | E22: =IF(Info!$C$23="Định mức chi phí chung tính trên chi phí trực tiếp (C)",E20*G22,IF(Info!$C$23="Định mức chi phí chung tính trên chi phí nhân công (C)",E12*G22)) -> 0 | F22: C | G22: =Info!$D$23 -> 0.073 | J22: 3
B23: 2 | C23: Chi phí nhà tạm để ở và điều hành thi công | D23: ="T x "&ROUND(G23*100,3)&"%" -> T x 1,1% | E23: =E20*G23 -> 0 | F23: LT | G23: =Info!$D$26 -> 0.011 | J23: 4
B24: 3 | C24: Chi phí một số công việc không xác định được khối lượng từ thiết kế | D24: ="T x "&ROUND(G24*100,3)&"%" -> T x 2,5% | E24: =E20*G24 -> 0 | F24: TT | G24: =Info!$D$27 -> 0.025 | J24: 5
C25: Chi phí gián tiếp | D25: C + LT + TT | E25: =E22+E23+E24 -> 0 | F25: GT | J25: 6
B26: III | C26: THU NHẬP CHỊU THUẾ TÍNH TRƯỚC | D26: ="(T + GT) x "&G26*100&"%" -> (T + GT) x 5,5% | E26: =(E20+E25)*G26 -> 0 | F26: TL | G26: =Info!$D$24 -> 0.055 | J26: 7
C27: Chi phí xây dựng trước thuế | D27: T + GT + TL | E27: =E20+E25+E26 -> 0 | F27: G | J27: 8
B28: IV | C28: THUẾ GIÁ TRỊ GIA TĂNG | D28: ="G x "&ROUND(G28*100,3)&"%" -> G x 10% | E28: =E27*G28 -> 0 | F28: GTGT | G28: =Info!$D$25 -> 0.1 | J28: 9
C29: Chi phí xây dựng sau thuế | D29: G + GTGT | E29: =E28+E27 -> 0 | F29: GXD | J29: 10
C30: Làm tròn | E30: =ROUND(E29,-3) -> 0 | J30: 11
B31: ="Bằng chữ: "&doc_vnd(E30)&"/." -> Bằng chữ: đồng./. | J31: 12
J32: 13
C33: NGƯỜI LẬP | E33: NGƯỜI CHỦ TRÌ | J33: 14
J34: 15
J35: 16
J36: 17
J37: 18
J38: 19
E39: Chứng chỉ hành nghề định giá XD hạng….., số………… | J39: 20
J40: 21
J41: 22
H42: F | J42: 23
B44: TỔNG HỢP DỰ TOÁN CHI PHÍ XÂY DỰNG
B45: ="Tên dự án: "&Info!$D$5 -> Tên dự án: Dự án đầu tư xây dựng công trình …
B46: ="Tên công trình: "&Info!$D$6 -> Tên công trình: Công trình xây dựng …
B47: Thời điểm lập: | H47: FORM2-TT11/2021
H48: PL5_TT11/2021
B49: STT | C49: NỘI DUNG CHI PHÍ | D49: CÁCH TÍNH | E49: GIÁ TRỊ | F49: KÝ HIỆU | G49: HỆ SỐ
B50: I | C50: CHI PHÍ TRỰC TIẾP
B51: 1 | C51: Chi phí vật liệu | D51: VLks | E51: =IF(MoEs<>4,E54,E52) -> 0 | F51: VLks
C52: Chi phí vật liệu gốc | D52: Bảng dự toán khối lượng | F52: VLg
C53: Chênh lệch giá vật liệu | D53: Bảng tổng hợp vật tư | F53: CLVL
C54: Điều chỉnh hệ số | D54: (VLg+CLVL)*Kvl | E54: =(E52+E53)*G54 -> 0 | F54: Hvl | G54: =Info!$D$20 -> 1
B55: 2 | C55: Chi phí nhân công | D55: NCks | E55: =IF(MoEs<>4,E58,E56) -> 0 | F55: NCks
C56: Chi phí nhân công gốc | D56: Bảng dự toán khối lượng | F56: NCg
C57: Chênh lệch giá nhân công | D57: Bảng tổng hợp vật tư | F57: CLNC
C58: Điều chỉnh hệ số | D58: (NCg+CLNC)*Knc | E58: =(E56+E57)*G58 -> 0 | F58: Hnc | G58: =Info!$D$21 -> 1
B59: 3 | C59: Chi phí máy thi công | D59: Mks | E59: =IF(MoEs<>4,E62,E60) -> 0 | F59: Mks
C60: Chi phí máy thi công gốc | D60: Bảng dự toán khối lượng | F60: Mg
C61: Chênh lệch giá máy thi công | D61: Bảng tổng hợp vật tư | F61: CLM
C62: Điều chỉnh hệ số | D62: (Mg+CLM)*Kmtc | E62: =(E60+E61)*G62 -> 0 | F62: Hm | G62: =Info!$D$22 -> 1
A63: S | C63: Chi phí trực tiếp | D63: VL + NC + M | E63: =E51+E55+E59 -> 0 | F63: T | H63: Chi phí Khảo sát | Phụ lục số 5 Thông tư 11/2021/TT-BXD | J63: 1
B64: II | C64: CHI PHÍ GIÁN TIẾP | F64: _ | J64: 2
B65: 1 | C65: Chi phí chung | D65: ="NC x "&ROUND(G65*100,3)&"%" -> NC x 70% | E65: =E55*G65 -> 0 | F65: C | G65: =IF(E55/10^9<=1,70%,IF(AND(E55/10^9>1,E55/10^9<=2),65%,60%)) -> 0.7 | J65: 3
B66: 2 | C66: Chi phí nhà tạm để ở và điều hành thi công | D66: ="T x "&ROUND(G66*100,3)&"%" -> T x 1,1% | E66: =E63*G66 -> 0 | F66: LT | G66: =Info!$D$26 -> 0.011 | J66: 4
B67: 3 | C67: Chi phí một số công việc không xác định được khối lượng từ thiết kế | D67: ="T x "&ROUND(G67*100,3)&"%" -> T x 2,5% | E67: =E63*G67 -> 0 | F67: TT | G67: =Info!$D$27 -> 0.025 | J67: 5
C68: Chi phí gián tiếp | D68: C + LT + TT | E68: =E65+E66+E67 -> 0 | F68: GT | J68: 6
B69: III | C69: THU NHẬP CHỊU THUẾ TÍNH TRƯỚC | D69: ="(T + GT) x "&G69*100&"%" -> (T + GT) x 6% | E69: =(E63+E68)*G69 -> 0 | F69: TL | G69: 0.06 | J69: 7
B70: IV | C70: CHI PHÍ KHÁC PHỤC VỤ CÔNG TÁC KHẢO SÁT XÂY DỰNG | F70: _ | J70: 8
C71: Chi phí lập phương án kỹ thuật khảo sát | D71: ="T x "&G71*100&"%" -> T x 2% | E71: =E63*G71 -> 0 | F71: Cpa | G71: =IF((E63+E68)/10^9<=2,2%,1.5%) -> 0.02 | J71: 9
C72: Chi phí lập báo cáo kết quả khảo sát | D72: ="T x "&G72*100&"%" -> T x 3% | E72: =E63*G72 -> 0 | F72: Cbc | G72: =IF((E63+E68)/10^9<=2,3%,2.5%) -> 0.03 | J72: 10
C73: Chi phí khác phục vụ công tác khảo sát xây dựng | D73: Cpa + Cbc | E73: =E71+E72 -> 0 | F73: Cpvks | J73: 11
C74: Chi phí khảo sát trước thuế | D74: T + GT + Cpvks | E74: =E63+E68+E73 -> 0 | F74: G | J74: 12
B75: V | C75: THUẾ GIÁ TRỊ GIA TĂNG | D75: ="G x "&ROUND(G75*100,3)&"%" -> G x 10% | E75: =E74*G75 -> 0 | F75: GTGT | G75: =Info!$D$25 -> 0.1 | J75: 13
C76: Chi phí khảo sát xây dựng sau thuế | D76: G + GTGT | E76: =E75+E74 -> 0 | F76: Gcpks | J76: 14
B77: VII | C77: CHI PHÍ DỰ PHÒNG | D77: ="Gcpks x "&G77*100&"%" -> Gcpks x 10% | E77: =E76*G77 -> 0 | F77: Cdp | G77: =Info!$D$25 -> 0.1 | J77: 15
C78: Tổng cộng: | D78: Gcpks + Cdp | E78: =E77+E76 -> 0 | F78: Gks | J78: 16
C79: Làm tròn | E79: =ROUND(E78,-3) -> 0 | J79: 17
B80: ="Bằng chữ: "&doc_vnd(E79)&"/." -> Bằng chữ: đồng./. | J80: 18
C81: NGƯỜI LẬP | E81: NGƯỜI CHỦ TRÌ | J81: 19
J82: 20
J83: 21
J84: 22
E85: Chứng chỉ hành nghề định giá XD hạng….., số………… | J85: 23
H86: F | J86: 24
B88: BẢNG TỔNG HỢP DỰ TOÁN CHI PHÍ XÂY DỰNG
B89: ="Tên dự án: "&Info!$D$5 -> Tên dự án: Dự án đầu tư xây dựng công trình …
B90: ="Tên công trình: "&Info!$D$6 -> Tên công trình: Công trình xây dựng …
B91: Thời điểm lập: | H91: FORM1-TT14/2017
H92: TT14/2017
B93: STT | C93: NỘI DUNG CHI PHÍ | D93: CÁCH TÍNH | E93: GIÁ TRỊ | F93: KÝ HIỆU | G93: HỆ SỐ
B94: I | C94: CHI PHÍ TRỰC TIẾP
B95: 1 | C95: Chi phí vật liệu | D95: VL | E95: =IF(MoEs<>4,E98,E96) -> 0 | F95: VL
C96: Chi phí vật liệu gốc | D96: Bảng dự toán khối lượng | F96: VLg
C97: Chênh lệch giá vật liệu | D97: Bảng tổng hợp vật tư | F97: CLVL
C98: Điều chỉnh hệ số | D98: (VLg+CLVL)*Kvl | E98: =(E96+E97)*G98 -> 0 | F98: Hvl | G98: =Info!$D$20 -> 1
B99: 2 | C99: Chi phí nhân công | D99: NC | E99: =IF(MoEs<>4,E102,E100) -> 0 | F99: NC
C100: Chi phí nhân công gốc | D100: Bảng dự toán khối lượng | F100: NCg
C101: Chênh lệch giá nhân công | D101: Bảng tổng hợp vật tư | F101: CLNC
C102: Điều chỉnh hệ số | D102: (NCg+CLNC)*Knc | E102: =(E100+E101)*G102 -> 0 | F102: Hnc | G102: =Info!$D$21 -> 1
B103: 3 | C103: Chi phí sử dụng xe, máy, thiết bị thi công | D103: M | E103: =IF(MoEs<>4,E106,E104) -> 0 | F103: M
C104: Chi phí máy thi công gốc | D104: Bảng dự toán khối lượng | F104: Mg
C105: Chênh lệch giá máy thi công | D105: Bảng tổng hợp vật tư | F105: CLM
C106: Điều chỉnh hệ số | D106: (Mg+CLM)*Kmtc | E106: =(E104+E105)*G106 -> 0 | F106: Hm | G106: =Info!$D$22 -> 1
A107: S | C107: Chi phí trực tiếp | D107: VL + NC + M | E107: =E95+E99+E103 -> 0 | F107: T | H107: Chi phí Dịch vụ công ích đô thị | Thông tư 14/2017/TT-BXD
B108: II | C108: CHI PHÍ QUẢN LÝ CHUNG | D108: =IF(E103>60%*E107,"M x "&ROUND(G108*100,3)&"%","NC x "&ROUND(G108*100,3)&"%") -> NC x 7,3% | E108: =IF(E103>60%*E107,E103*G108,E99*G108) -> 0 | F108: C | G108: =Info!$D$23 -> 0.073
B109: III | C109: LỢI NHUẬN ĐỊNH MỨC | D109: ="(T + C) x "&G109*100&"%" -> (T + C) x 5,5% | E109: =(E107+E108)*G109 -> 0 | F109: LN | G109: =Info!$D$24 -> 0.055
B110: IV | C110: THUẾ GIÁ TRỊ GIA TĂNG | D110: ="G x "&ROUND(G110*100,3)&"%" -> G x 10% | E110: =(E107+E108+E109)*G110 -> 0 | F110: GTGT | G110: =Info!$D$25 -> 0.1
C111: DỰ TOÁN CHI PHÍ DVCI ĐÔ THỊ | D111: T + C + LN + GTGT | E111: =SUM(E107:E110) -> 0 | F111: DTCP
C112: Làm tròn | E112: =ROUND(E111,-3) -> 0
B113: ="Bằng chữ: "&doc_vnd(E112)&"/." -> Bằng chữ: đồng./.
C114: NGƯỜI LẬP | E114: NGƯỜI CHỦ TRÌ
E120: Chứng chỉ hành nghề định giá XD hạng….., số…………
H122: F
B124: BẢNG TỔNG HỢP DỰ TOÁN CHI PHÍ XÂY DỰNG
B125: ="Tên dự án: "&Info!$D$5 -> Tên dự án: Dự án đầu tư xây dựng công trình …
B126: ="Tên công trình: "&Info!$D$6 -> Tên công trình: Công trình xây dựng …
B127: Thời điểm lập: | H127: FORM1-TT09/2019
H128: PL3_TT09/2019
B129: STT | C129: NỘI DUNG CHI PHÍ | D129: CÁCH TÍNH | E129: GIÁ TRỊ | F129: KÝ HIỆU | G129: HỆ SỐ
B130: I | C130: CHI PHÍ TRỰC TIẾP
B131: 1 | C131: Chi phí vật liệu | D131: VL | E131: =IF(MoEs<>4,E134,E132) -> 0 | F131: VL
C132: Chi phí vật liệu gốc | D132: Bảng dự toán khối lượng | F132: VLg
C133: Chênh lệch giá vật liệu | D133: Bảng tổng hợp vật tư | F133: CLVL
C134: Điều chỉnh hệ số | D134: (VLg+CLVL)*Kvl | E134: =(E132+E133)*G134 -> 0 | F134: Hvl | G134: =Info!$D$20 -> 1
B135: 2 | C135: Chi phí nhân công | D135: NC | E135: =IF(MoEs<>4,E138,E136) -> 0 | F135: NC
C136: Chi phí nhân công gốc | D136: Bảng dự toán khối lượng | F136: NCg
C137: Chênh lệch giá nhân công | D137: Bảng tổng hợp vật tư | F137: CLNC
C138: Điều chỉnh hệ số | D138: (NCg+CLNC)*Knc | E138: =(E136+E137)*G138 -> 0 | F138: Hnc | G138: =Info!$D$21 -> 1
B139: 3 | C139: Chi phí máy thi công | D139: M | E139: =IF(MoEs<>4,E142,E140) -> 0 | F139: M
C140: Chi phí máy thi công gốc | D140: Bảng dự toán khối lượng | F140: Mg
C141: Chênh lệch giá máy thi công | D141: Bảng tổng hợp vật tư | F141: CLM
C142: Điều chỉnh hệ số | D142: (Mg+CLM)*Kmtc | E142: =(E140+E141)*G142 -> 0 | F142: Hm | G142: =Info!$D$22 -> 1
A143: S | C143: Chi phí trực tiếp | D143: VL + NC + M | E143: =E131+E135+E139 -> 0 | F143: T | H143: Chi phí Xây dựng | Phụ lục số 3 Thông tư 09/2019/TT-BXD | J143: 1
B144: II | C144: CHI PHÍ GIÁN TIẾP | F144: _ | J144: 2
B145: 1 | C145: Chi phí chung | D145: =IF(Info!$C$23="Định mức chi phí chung tính trên chi phí trực tiếp (C)","T x "&ROUND(G145*100,3)&"%",IF(Info!$C$23="Định mức chi phí chung tính trên chi phí nhân công (C)","NC x "&ROUND(G145*100,3)&"%")) -> T x 7,3% | E145: =IF(Info!$C$23="Định mức chi phí chung tính trên chi phí trực tiếp (C)",E143*G145,IF(Info!$C$23="Định mức chi phí chung tính trên chi phí nhân công (C)",E135*G145)) -> 0 | F145: C | G145: =Info!$D$23 -> 0.073 | J145: 3
B146: 2 | C146: Chi phí nhà tạm để ở và điều hành thi công | D146: ="T x "&ROUND(G146*100,3)&"%" -> T x 1,1% | E146: =E143*G146 -> 0 | F146: LT | G146: =Info!$D$26 -> 0.011 | J146: 4
B147: 3 | C147: Chi phí một số công việc không xác định được khối lượng từ thiết kế | D147: ="T x "&ROUND(G147*100,3)&"%" -> T x 2,5% | E147: =E143*G147 -> 0 | F147: TT | G147: =Info!$D$27 -> 0.025 | J147: 5
C148: Chi phí gián tiếp | D148: C + LT + TT | E148: =E145+E146+E147 -> 0 | F148: GT | J148: 6
B149: III | C149: THU NHẬP CHỊU THUẾ TÍNH TRƯỚC | D149: ="(T + GT) x "&G149*100&"%" -> (T + GT) x 5,5% | E149: =(E143+E148)*G149 -> 0 | F149: TL | G149: =Info!$D$24 -> 0.055 | J149: 7
C150: Chi phí xây dựng trước thuế | D150: T + GT + TL | E150: =E143+E148+E149 -> 0 | F150: G | J150: 8
B151: IV | C151: THUẾ GIÁ TRỊ GIA TĂNG | D151: ="G x "&ROUND(G151*100,3)&"%" -> G x 10% | E151: =E150*G151 -> 0 | F151: GTGT | G151: =Info!$D$25 -> 0.1 | J151: 9
C152: Chi phí xây dựng sau thuế | D152: G + GTGT | E152: =E151+E150 -> 0 | F152: GXD | J152: 10
C153: Làm tròn | E153: =ROUND(E152,-3) -> 0 | J153: 11
B154: ="Bằng chữ: "&doc_vnd(E153)&"/." -> Bằng chữ: đồng./. | J154: 12
J155: 13
C156: NGƯỜI LẬP | E156: NGƯỜI CHỦ TRÌ | J156: 14
J157: 15
J158: 16
J159: 17
J160: 18
J161: 19
E162: Chứng chỉ hành nghề định giá XD hạng….., số………… | J162: 20
J163: 21
J164: 22
H165: F | J165: 23
B166: TỔNG HỢP DỰ TOÁN CHI PHÍ XÂY DỰNG
B167: ="Tên dự án: "&Info!$D$5 -> Tên dự án: Dự án đầu tư xây dựng công trình …
B168: ="Tên công trình: "&Info!$D$6 -> Tên công trình: Công trình xây dựng …
B169: Thời điểm lập: | H169: FORM1
H170: TT06
B171: STT | C171: NỘI DUNG CHI PHÍ | D171: CÁCH TÍNH | E171: GIÁ TRỊ | F171: KÝ HIỆU | G171: HỆ SỐ
B172: I | C172: CHI PHÍ TRỰC TIẾP
B173: 1 | C173: Chi phí vật liệu | D173: VL | E173: =IF(MoEs<>4,E176,E174) -> 0 | F173: VL
C174: Chi phí vật liệu gốc | D174: Bảng dự toán khối lượng | F174: VLg
C175: Chênh lệch giá vật liệu | D175: Bảng tổng hợp vật tư | F175: CLVL
C176: Điều chỉnh hệ số | D176: (VLg+CLVL)*Kvl | E176: =IF(OR(MoEs=2,MoEs=3),(E174+E175)*G176,0) -> 0 | F176: Hvl | G176: =Info!$D$20 -> 1
B177: 2 | C177: Chi phí nhân công | D177: NC | E177: =IF(MoEs<>4,E180,E178) -> 0 | F177: NC
C178: Chi phí nhân công gốc | D178: Bảng dự toán khối lượng | F178: NCg
C179: Chênh lệch giá nhân công | D179: Bảng tổng hợp vật tư | F179: CLNC
C180: Điều chỉnh hệ số | D180: (NCg+CLNC)*Knc | E180: =IF(OR(MoEs=2,MoEs=3),(E178+E179)*G180,0) -> 0 | F180: Hnc | G180: =Info!$D$21 -> 1
B181: 3 | C181: Chi phí máy thi công | D181: M | E181: =IF(MoEs<>4,E184,E182) -> 0 | F181: M
C182: Chi phí máy thi công gốc | D182: Bảng dự toán khối lượng | F182: Mg
C183: Chênh lệch giá máy thi công | D183: Bảng tổng hợp vật tư | F183: CLM
C184: Điều chỉnh hệ số | D184: (Mg+CLM)*Kmtc | E184: =IF(OR(MoEs=2,MoEs=3),(E182+E183)*G184,0) -> 0 | F184: Hm | G184: =Info!$D$22 -> 1
A185: S | C185: Chi phí trực tiếp | D185: VL + NC + M | E185: =E173+E177+E181 -> 0 | F185: T | H185: Chi phí Xây dựng | Thông tư 06/2016/TT-BXD
B186: II | C186: CHI PHÍ CHUNG | D186: =IF(Info!$C$23="Định mức chi phí chung tính trên chi phí trực tiếp (C)","T x "&ROUND(G186*100,3)&"%",IF(Info!$C$23="Định mức chi phí chung tính trên chi phí nhân công (C)","NC x "&ROUND(G186*100,3)&"%")) -> T x 7,3% | E186: =IF(Info!$C$23="Định mức chi phí chung tính trên chi phí trực tiếp (C)",E185*G186,IF(Info!$C$23="Định mức chi phí chung tính trên chi phí nhân công (C)",E177*G186)) -> 0 | F186: C | G186: =Info!$D$23 -> 0.073
B187: III | C187: THU NHẬP CHỊU THUẾ TÍNH TRƯỚC | D187: ="(T + C) x "&G187*100&"%" -> (T + C) x 5,5% | E187: =(E185+E186)*G187 -> 0 | F187: TL | G187: =Info!$D$24 -> 0.055
C188: Chi phí xây dựng trước thuế | D188: T + C + TL | E188: =E185+E186+E187 -> 0 | F188: G
B189: IV | C189: THUẾ GIÁ TRỊ GIA TĂNG | D189: ="G x "&ROUND(G189*100,3)&"%" -> G x 10% | E189: =E188*G189 -> 0 | F189: GTGT | G189: =Info!$D$25 -> 0.1
C190: Chi phí xây dựng sau thuế | D190: G + GTGT | E190: =E189+E188 -> 0 | F190: Gxdtt
C191: Làm tròn | E191: =ROUND(E190,-3) -> 0
B192: ="Bằng chữ: "&doc_vnd(E191)&"/." -> Bằng chữ: đồng./.
C193: NGƯỜI LẬP | E193: NGƯỜI CHỦ TRÌ
E196: Chứng chỉ hành nghề định giá XD hạng….., số…………
H200: F
B202: TỔNG HỢP DỰ TOÁN CHI PHÍ XÂY DỰNG
B203: =Info!$C$5&Info!$D$5 -> Dự án: Dự án đầu tư xây dựng công trình …
B204: =Info!$C$6&Info!$D$6 -> Công trình: Công trình xây dựng …
B205: HẠNG MỤC/WORK ITEM : ... | H205: FORM1-TT06
H206: TT06
B207: STT | C207: NỘI DUNG CHI PHÍ | D207: CÁCH TÍNH | E207: GIÁ TRỊ | F207: KÝ HIỆU | G207: HỆ SỐ
B208: I | C208: CHI PHÍ TRỰC TIẾP
B209: 1 | C209: Chi phí vật liệu | D209: VL | E209: =IF(MoEs<>4,E212,E210) -> 0 | F209: VL
C210: Chi phí vật liệu gốc | D210: Bảng dự toán khối lượng | F210: VLg
C211: Chênh lệch giá vật liệu | D211: Bảng tổng hợp vật tư | F211: CLVL
C212: Điều chỉnh hệ số | D212: (VLg+CLVL)*Kvl | E212: =IF(OR(MoEs=2,MoEs=3),(E210+E211)*G212,0) -> 0 | F212: Hvl | G212: =Info!$D$20 -> 1
B213: 2 | C213: Chi phí nhân công | D213: NC | E213: =IF(MoEs<>4,E216,E214) -> 0 | F213: NC
C214: Chi phí nhân công gốc | D214: Bảng dự toán khối lượng | F214: NCg
C215: Chênh lệch giá nhân công | D215: Bảng tổng hợp vật tư | F215: CLNC
... 81 more rows

Sheet CP HMC (hidden)
B1: CHI PHÍ HẠNG MỤC CHUNG
B2: =Info!$C$5&Info!$D$5 -> Dự án: Dự án đầu tư xây dựng công trình …
B3: =Info!$C$6&Info!$D$6 -> Công trình: Công trình xây dựng …
B4: CHI PHÍ HẠNG MỤC CHUNG PHẦN XÂY DỰNG
H5: ĐVT: đồng
B6: STT | C6: NỘI DUNG CHI PHÍ | D6: ĐMTL | E6: CÁCH TÍNH | F6: CHI PHÍ TRƯỚC THUẾ | G6: THUẾ GTGT | H6: CHI PHÍ SAU THUẾ | I6: KÝ HIỆU
B7: 1 | C7: Chi phí xây dựng nhà tạm tại hiện trường để ở và điều hành thi công | D7: =Info!$D$26 -> 0.011 | E7: ĐMTL*GXD | F7: ='Dự toán XDCT'!$G$14*'CP HMC'!D7 -> 0 | G7: =F7*0.1 -> 0 | H7: =SUM(F7:G7) -> 0 | I7: CNT
B8: 2 | C8: Chi phí một số công tác không xác định được khối lượng từ thiết kế | D8: =Info!$D$27 -> 0.025 | E8: ĐMTL*GXD | F8: ='Dự toán XDCT'!$G$14*'CP HMC'!D8 -> 0 | G8: =F8*0.1 -> 0 | H8: =SUM(F8:G8) -> 0 | I8: CKKL
B9: 3 | C9: Các chi phí hạng mục chung khác | F9: =SUM(F10:F12) -> 0 | G9: =SUM(G10:G12) -> 0 | H9: 0 | I9: CK
B10: 3.1 | C10: Chi phí di chuyển thiết bị thi công và lực lượng lao động đến công trường | E10: Lập dự toán
B11: 3.2 | C11: Chi phí đảm bảo an toàn giao thông phục vụ thi công | E11: Lập dự toán
B12: 3.3 | C12: Chi phí hoàn trả hạ tầng kỹ thuật do bị ảnh hưởng khi thi công xây dựng công trình | E12: Lập dự toán
B13: … | C13: …
C14: Tổng cộng: | F14: =SUM(F7:F8) -> 0 | G14: =SUM(G7:G9) -> 0 | H14: 0 | I14: CHMCtcxd
B18: CHI PHÍ HẠNG MỤC CHUNG PHẦN LẮP ĐẶT THIẾT BỊ
H19: ĐVT: đồng
B20: STT | C20: NỘI DUNG CHI PHÍ | D20: ĐMTL | E20: CÁCH TÍNH | F20: CHI PHÍ TRƯỚC THUẾ | G20: THUẾ GTGT | H20: CHI PHÍ SAU THUẾ | I20: KÝ HIỆU
B21: 1 | C21: Chi phí xây dựng nhà tạm tại hiện trường để ở và điều hành thi công lắp đặt thiết bị | D21: =Info!$D$26 -> 0.011 | E21: ĐMTL*GLD | F21: 0 | G21: 0 | H21: 0 | I21: CNT
B22: 2 | C22: Chi phí một số công tác không xác định được khối lượng từ thiết kế lắp đặt thiết bị | D22: =Info!$D$27 -> 0.025 | E22: ĐMTL*GLD | F22: 0 | G22: 0 | H22: 0 | I22: CKKL
B23: 3 | C23: Các chi phí hạng mục chung khác | F23: =SUM(F24:F26) -> 0 | G23: =SUM(G24:G26) -> 0 | H23: =SUM(H24:H26) -> 0 | I23: CK
B24: 3.1 | C24: Chi phí di chuyển thiết bị thi công và lực lượng lao động đến công trường | E24: Lập dự toán
B25: 3.2 | C25: Chi phí đảm bảo an toàn giao thông phục vụ thi công | E25: Lập dự toán
B26: 3.3 | C26: Chi phí hoàn trả hạ tầng kỹ thuật do bị ảnh hưởng khi thi công xây dựng công trình | E26: Lập dự toán
B27: … | C27: …
C28: Tổng cộng: | F28: =SUM(F21:F22) -> 0 | G28: =SUM(G21:G23) -> 0 | H28: 0 | I28: CHMClđtb

Sheet CP Chuyên gia (hidden)
B1: TỔNG CHI PHÍ CHUYÊN GIA
B2: =Info!$C$5&Info!$D$5 -> Dự án: Dự án đầu tư xây dựng công trình …
B3: =Info!$C$6&Info!$D$6 -> Công trình: Công trình xây dựng …
B4: GÓI THẦU: TƯ VẤN GIÁM SÁT
H5: Đơn vị: đồng
B6: STT | C6: MÃ CG | D6: HỌ, TÊN CHUYÊN GIA | E6: NHIỆM VỤ ĐƯỢC PHÂN CÔNG | F6: THỜI GIAN THỰC HIỆN | G6: CHI PHÍ NGÀY CÔNG | H6: THÀNH TIỀN
B7: =IF(tbl_CPCG[[#This Row],[MÃ CG]]<>0,COUNT($B$6:B6)+1,"") -> 1 | C7: CG1 | D7: Nguyễn Văn A | E7: Chuyên gia | F7: 50 | H7: =IF(tbl_CPCG[[#This Row],[THỜI GIAN THỰC HIỆN]]<>0,tbl_CPCG[[#This Row],[THỜI GIAN THỰC HIỆN]]*tbl_CPCG[[#This Row],[CHI PHÍ NGÀY CÔNG]],"") -> 0
B8: =IF(tbl_CPCG[[#This Row],[MÃ CG]]<>0,COUNT($B$6:B7)+1,"") -> 2 | C8: CG2 | D8: Nguyễn Văn B | E8: Chuyên gia | F8: 30 | H8: =IF(tbl_CPCG[[#This Row],[THỜI GIAN THỰC HIỆN]]<>0,tbl_CPCG[[#This Row],[THỜI GIAN THỰC HIỆN]]*tbl_CPCG[[#This Row],[CHI PHÍ NGÀY CÔNG]],"") -> 0
B9: =IF(tbl_CPCG[[#This Row],[MÃ CG]]<>0,COUNT($B$6:B8)+1,"") -> 3 | C9: CG3 | D9: Nguyễn Văn C | E9: Chuyên gia | F9: 3 | H9: =IF(tbl_CPCG[[#This Row],[THỜI GIAN THỰC HIỆN]]<>0,tbl_CPCG[[#This Row],[THỜI GIAN THỰC HIỆN]]*tbl_CPCG[[#This Row],[CHI PHÍ NGÀY CÔNG]],"") -> 0
B10: =IF(tbl_CPCG[[#This Row],[MÃ CG]]<>0,COUNT($B$6:B9)+1,"") -> 4 | C10: CG4 | D10: Nguyễn Văn D | E10: Chuyên gia | F10: 2 | H10: =IF(tbl_CPCG[[#This Row],[THỜI GIAN THỰC HIỆN]]<>0,tbl_CPCG[[#This Row],[THỜI GIAN THỰC HIỆN]]*tbl_CPCG[[#This Row],[CHI PHÍ NGÀY CÔNG]],"") -> 0
B11: =IF(tbl_CPCG[[#This Row],[MÃ CG]]<>0,COUNT($B$6:B10)+1,"") -> 5 | C11: CG5 | D11: Nguyễn Văn E | E11: Chuyên gia | F11: 2 | H11: =IF(tbl_CPCG[[#This Row],[THỜI GIAN THỰC HIỆN]]<>0,tbl_CPCG[[#This Row],[THỜI GIAN THỰC HIỆN]]*tbl_CPCG[[#This Row],[CHI PHÍ NGÀY CÔNG]],"") -> 0
B12: =IF(tbl_CPCG[[#This Row],[MÃ CG]]<>0,COUNT($B$6:B11)+1,"") -> 6 | C12: CG6 | D12: Nguyễn Văn F | E12: Chuyên gia | F12: 30 | H12: =IF(tbl_CPCG[[#This Row],[THỜI GIAN THỰC HIỆN]]<>0,tbl_CPCG[[#This Row],[THỜI GIAN THỰC HIỆN]]*tbl_CPCG[[#This Row],[CHI PHÍ NGÀY CÔNG]],"") -> 0
G13: Tổng | H13: =SUBTOTAL(109,tbl_CPCG[THÀNH TIỀN]) -> 0

Sheet CP Tư vấn khác (hidden)
B1: CHI PHÍ TƯ VẤN KHÁC
B2: =Info!$C$5&Info!$D$5 -> Dự án: Dự án đầu tư xây dựng công trình …
B3: =Info!$C$6&Info!$D$6 -> Công trình: Công trình xây dựng …
B4: GÓI THẦU: TƯ VẤN GIÁM SÁT
G5: Đơn vị: đồng
B6: STT | C6: KHOẢN MỤC CHI PHÍ | D6: ĐƠN VỊ | E6: KHỐI LƯỢNG | F6: ĐƠN GIÁ | G6: THÀNH TIỀN
B7: 1 | C7: Khấu hao máy móc thiết bị văn phòng
C8: - Máy tính + phần mềm bản quyền | D8: ca | E8: 50 | F8: 200000 | G8: =tbl_TVkhac[[#This Row],[KHỐI LƯỢNG]]*tbl_TVkhac[[#This Row],[ĐƠN GIÁ]] -> 10000000
C9: - Máy in | D9: ca | E9: 10 | F9: 150000 | G9: =tbl_TVkhac[[#This Row],[KHỐI LƯỢNG]]*tbl_TVkhac[[#This Row],[ĐƠN GIÁ]] -> 1500000
C10: - Máy photocopy | D10: ca | E10: 5 | F10: 300000 | G10: =tbl_TVkhac[[#This Row],[KHỐI LƯỢNG]]*tbl_TVkhac[[#This Row],[ĐƠN GIÁ]] -> 1500000
C11: - Máy chiếu | D11: ca | E11: 10 | F11: 500000 | G11: =tbl_TVkhac[[#This Row],[KHỐI LƯỢNG]]*tbl_TVkhac[[#This Row],[ĐƠN GIÁ]] -> 5000000
B12: 2 | C12: Văn phòng phẩm
C13: - Giấy | D13: Gram | E13: 120 | F13: 70000 | G13: =tbl_TVkhac[[#This Row],[KHỐI LƯỢNG]]*tbl_TVkhac[[#This Row],[ĐƠN GIÁ]] -> 8400000
C14: - Mực in | D14: Hộp | E14: 5 | F14: 80000 | G14: =tbl_TVkhac[[#This Row],[KHỐI LƯỢNG]]*tbl_TVkhac[[#This Row],[ĐƠN GIÁ]] -> 400000
C15: - Văn phòng phẩm khác (bút, dụng cụ đóng tập…) | D15: Tb | E15: 1 | F15: 1000000 | G15: =tbl_TVkhac[[#This Row],[KHỐI LƯỢNG]]*tbl_TVkhac[[#This Row],[ĐƠN GIÁ]] -> 1000000
B16: 3 | C16: Chi phí đi lại | G16: 10000000
C17: - Chi phí đi khảo sát hiện trường | D17: lần | E17: 5 | F17: 2000000 | G17: =tbl_TVkhac[[#This Row],[KHỐI LƯỢNG]]*tbl_TVkhac[[#This Row],[ĐƠN GIÁ]] -> 10000000
B18: 4 | C18: Chi phí hội họp, phản biện | D18: lần | E18: 5 | F18: 4000000 | G18: =tbl_TVkhac[[#This Row],[KHỐI LƯỢNG]]*tbl_TVkhac[[#This Row],[ĐƠN GIÁ]] -> 20000000
B19: 5 | C19: Chi phí quản lý, dịch vụ khác | G19: 50000000
C20: - Điện thoại | D20: Thuê bao | E20: 5 | F20: 500000 | G20: =tbl_TVkhac[[#This Row],[KHỐI LƯỢNG]]*tbl_TVkhac[[#This Row],[ĐƠN GIÁ]] -> 2500000
C21: - Internet | D21: Tb | E21: 1 | F21: 1500000 | G21: =tbl_TVkhac[[#This Row],[KHỐI LƯỢNG]]*tbl_TVkhac[[#This Row],[ĐƠN GIÁ]] -> 1500000
C22: - Điện, nước văn phòng | D22: Tb | E22: 1 | F22: 5000000 | G22: =tbl_TVkhac[[#This Row],[KHỐI LƯỢNG]]*tbl_TVkhac[[#This Row],[ĐƠN GIÁ]] -> 5000000
G23: =tbl_TVkhac[[#This Row],[KHỐI LƯỢNG]]*tbl_TVkhac[[#This Row],[ĐƠN GIÁ]] -> 0
G24: =SUBTOTAL(109,tbl_TVkhac[THÀNH TIỀN]) -> 126800000

Sheet THKL (hidden)
B1: BẢNG TỔNG HỢP KHỐI LƯỢNG CÔNG TÁC XÂY DỰNG
B2: ="Tên dự án: "&Info!$D$5 -> Tên dự án: Dự án đầu tư xây dựng công trình …
B3: ="Tên công trình: "&Info!$D$6 -> Tên công trình: Công trình xây dựng …
B4: Hạng mục công trình:
B6: Stt | C6: ShHM | D6: Số hiệu | E6: Mã hiệu công tác | F6: Mã hiệu định mức | G6: Danh mục công tác xây dựng | H6: Đơn vị | I6: Cách thức xác định | J6: Khối lượng | K6: Khối lượng | R6: Ghi chú | S6: Mã tập đơn giá
K7: Số lượng | L7: Dài | M7: Rộng | N7: Cao | O7: Hệ số | P7: S-phụ | Q7: Tổng kl
B8: 0 | C8: 2 | D8: [2]▼ | E8: [2]▼ | F8: [3'] | G8: 3 | H8: 4 | I8: 5 | J8: 6 | R8: 7
A9: =IF(AND(E9<>"",F9<>""),COUNT($A$8:A8)+1,"") -> 
A10: =IF(AND(E10<>"",F10<>""),COUNT($A$8:A9)+1,"") -> 
G26: Người thực hiện | I26: Người chủ trì
I30: Chứng chỉ hành nghề hoạt động xây dựng Số…
I31: Lĩnh vực hành nghề: Định giá xây dựng hạng …

Sheet CTKL (hidden)
B1: BẢNG CHI TIẾT KHỐI LƯỢNG CÔNG TÁC XÂY DỰNG
B2: ="Tên dự án: "&Info!$D$5 -> Tên dự án: Dự án đầu tư xây dựng công trình …
B3: ="Tên công trình: "&Info!$D$6 -> Tên công trình: Công trình xây dựng …
B4: Hạng mục công trình:
B6: Stt | C6: Ký hiệu bản vẽ | D6: Mã hiệu công tác | E6: Danh mục công tác xây dựng | F6: Đơn vị | G6: Số bộ phận giống nhau | H6: Diễn giải tính toán | I6: Khối lượng một bộ phận | J6: Khối lượng toàn bộ phận | K6: Ghi chú
B8: 0 | C8: 2 | D8: [2]▼ | E8: 3 | F8: 4 | H8: 5 | I8: 6 | J8: 6 | K8: 7
E26: Người thực hiện | H26: Người chủ trì
H30: Chứng chỉ hành nghề hoạt động xây dựng
H31: Số...
H32: Lĩnh vực hành nghề: Định giá xây dựng hạng …

Sheet CP Dự phòng (hidden)
B1: BẢNG TÍNH CHI PHÍ DỰ PHÒNG
D2: GXDCT = (GXD + GTB + GQLDA + GTV + GK) = | E2: ='Dự toán XDCT'!I14+'Dự toán XDCT'!I17+'Dự toán XDCT'!I19+'Dự toán XDCT'!I21+'Dự toán XDCT'!I25 -> 0 | F2: đồng
B3: I. Chi phí dự phòng cho yếu tố khối lượng công việc phát sinh | J3: Số năm (hoặc quý, tháng) lấy chỉ số giá: | K3: 3 | L3: Năm
D4: GDP1 = GXDCT x kps = (GXD+GTB+GQLDA+GTV+GK) x kps = | E4: =$E$2*G4 -> 0 | F4: đồng | G4: 0.05 | J4: Thời điểm lấy chỉ số giá đầu tiên | K4: =L3 -> Năm | L4: 2019
B5: - kps là hệ số dự phòng cho khối lượng công việc phát sinh | J5: Số năm (hoặc quý, tháng) thực hiện dự án dự kiến: | K5: 4 | L5: Năm
B6: II. Chi phí dự phòng cho yếu tố trượt giá | J6: Thời điểm bắt đầu thực hiện | K6: =L5 -> Năm | L6: 2023
B7: STT | C7: Nội dung | D7: Các chỉ số
B8: 1 | C8: Các năm cơ sở lấy chỉ số giá | D8: =L4 -> 2019 | E8: =D8+1 -> 2020 | F8: =E8+1 -> 2021 | G8: 2022 | J8: Kps phụ thuộc vào mức độ phức tạp của công trình thuộc dự án và điều kiện địa chất công trình nơi xây dựng công trình
B9: 2 | C9: Chỉ số giá xây dựng do Cơ quan có thẩm quyền công bố | D9: 1.02 | E9: 1.03 | F9: 1.035 | G9: 1.025 | J9: Trong bước lập TMĐT Kps ≤ 10%.
B10: 3 | C10: Chỉ số năm sau chia chỉ số năm trước | E10: =E9/D9 -> 1.009803922 | F10: =F9/E9 -> 1.004854369 | G10: =G9/F9 -> 0.9903381643 | J10: Trong bước lập dự toán Kps ≤ 5%.
B11: 4 | C11: Chỉ số giá xây dựng sử dụng tính dự phòng cho yếu tố trượt giá: IXDCTbq | G11: =AVERAGE(E10:G10) -> 1.001665485
B12: 5 | C12: Mức biến động bình quân của chỉ số giá xây dựng: ±∆IXDCT (nếu có)
B14: Công thức xác định
B16: Trong đó:
B17: - T: thời gian xây dựng công trình xác định theo (quý, năm);
B18: - t: số thứ tự thời gian phân bổ vốn theo kế hoạch xây dựng công trình (t=1, T);
B19: - GtXDCT: giá trị dự toán xây dựng công trình trước chi phí dự phòng thực hiện trong khoảng thời gian thứ t;
B20: - IXDCTbq: Chỉ số giá xây dựng sử dụng tính dự pḥòng cho yếu tố trượt giá
B21: - ±∆IXDCT: mức biến động bình quân của chỉ số giá xây dựng theo thời gian dựng công trình so với mức độ trượt giá bình quân của đơn vị thời gian (quý, năm) đã tính và được xác định trên cơ sở dự báo xu hướng biến động của các yếu tố chi phí giá cả trong khu vực và quốc tế bằng kinh nghiệm chuyên gia.
D22: Trong đó:
D23: T: Số năm (năm gần nhất so với thời điểm tính toán sử dụng để xác định IXDCTbq); T≥3;
D24: In: Chỉ số giá xây dựng năm thứ n được lựa chọn;
D25: In+1: Chỉ số giá xây dựng năm thứ n+1;
B27: STT | C27: Nội dung | D27: Tiến độ thực hiện dự án
D28: =L6 -> 2023 | E28: =D28+1 -> 2024 | F28: =E28+1 -> 2025 | G28: 2026
B29: 1 | C29: Tỷ lệ phân bổ chi phí theo tiến độ | D29: 0.1 | E29: 0.2 | F29: 0.3 | G29: =100%-SUM(D29:F29) -> 0.4
B30: 2 | C30: Chi phí thực hiện chưa tính trượt giá | D30: =D29*$E$2 -> 0 | E30: =E29*$E$2 -> 0 | F30: =F29*$E$2 -> 0 | G30: =G29*$E$2 -> 0
B31: 3 | C31: Trượt giá từng năm | D31: =D30*(($G$11+$G$12)^COUNT($D$30:D30)-1) -> 0 | E31: =E30*(($G$11+$G$12)^COUNT($D$30:E30)-1) -> 0 | F31: =F30*(($G$11+$G$12)^COUNT($D$30:F30)-1) -> 0 | G31: =G30*(($G$11+$G$12)^COUNT($D$30:G30)-1) -> 0
B32: 4 | C32: Chi phí dự phòng do yếu tố trượt giá | G32: =SUM(D31:G31) -> 0
C34: Tổng Chi phí dự phòng: | E34: GDP = GDP1 + GDP2 = | F34: =E4+G32 -> 0 | G34: đồng

Sheet Tổng hợp CPXD
B1: BẢNG TỔNG HỢP DỰ TOÁN CHI PHÍ XÂY DỰNG | H1: HM0
B2: ="Dự án: "&Info!$D$5 -> Dự án: Dự án đầu tư xây dựng công trình …
B3: ="Công trình: "&Info!$D$6 -> Công trình: Công trình xây dựng …
F4: Đơn vị tính: đồng
B6: STT | C6: NỘI DUNG CHI PHÍ | D6: CÁCH TÍNH | E6: GIÁ TRỊ | F6: KÝ HIỆU | G6: Hệ số
B7: I | C7: CHI PHÍ TRỰC TIẾP
B8: 1 | C8: Chi phí vật liệu | D8: VL | E8: ='Dự toán'!$U$24+'Dự toán'!$V$24 -> 0 | F8: VL
C9: =IF(MoEs<>4,"Chi phí vật liệu gốc","Chi phí vật liệu trực tiếp") -> Chi phí vật liệu trực tiếp | D9: Bảng dự toán khối lượng | E9: ='Dự toán'!$U$24+'Dự toán'!$V$24 -> 0 | F9: VLg
C10: Chênh lệch giá vật liệu | D10: Bảng tổng hợp vật tư | F10: CLVL
C11: Điều chỉnh hệ số | D11: (VLg+CLVL)*Kvl | F11: Hvl | G11: =Info!$D$20 -> 1
B12: 2 | C12: Chi phí nhân công | D12: NC | E12: ='Dự toán'!$W$24 -> 0 | F12: NC
C13: =IF(MoEs<>4,"Chi phí nhân công gốc","Chi phí nhân công trực tiếp") -> Chi phí nhân công trực tiếp | D13: Bảng dự toán khối lượng | E13: ='Dự toán'!$W$24 -> 0 | F13: NCg
C14: Chênh lệch giá nhân công | D14: Bảng tổng hợp vật tư | F14: CLNC
C15: Điều chỉnh hệ số | D15: (NCg+CLNC)*Knc | F15: Hnc | G15: =Info!$D$21 -> 1
B16: 3 | C16: Chi phí máy và thiết bị thi công | D16: M | E16: ='Dự toán'!$X$24 -> 0 | F16: M
C17: =IF(MoEs<>4,"Chi phí máy thi công gốc","Chi phí máy thi công trực tiếp") -> Chi phí máy thi công trực tiếp | D17: Bảng dự toán khối lượng | E17: ='Dự toán'!$X$24 -> 0 | F17: Mg
C18: Chênh lệch giá máy thi công | D18: Bảng tổng hợp vật tư | F18: CLM
C19: Điều chỉnh hệ số | D19: (Mg+CLM)*Kmtc | F19: Hm | G19: =Info!$D$22 -> 1
A20: S | C20: Chi phí trực tiếp | D20: VL + NC + M | E20: =E8+E12+E16 -> 0 | F20: T | H20: Chi phí Xây dựng | Phụ lục số 3 Thông tư 11/2021/TT-BXD
B21: II | C21: CHI PHÍ GIÁN TIẾP | F21: _
B22: 1 | C22: Chi phí chung | D22: =IF(Info!$C$23="Định mức chi phí chung tính trên chi phí trực tiếp (C)","T x "&ROUND(G22*100,3)&"%",IF(Info!$C$23="Định mức chi phí chung tính trên chi phí nhân công (C)","NC x "&ROUND(G22*100,3)&"%")) -> T x 7,3% | E22: =IF(Info!$C$23="Định mức chi phí chung tính trên chi phí trực tiếp (C)",E20*G22,IF(Info!$C$23="Định mức chi phí chung tính trên chi phí nhân công (C)",E12*G22)) -> 0 | F22: C | G22: =Info!$D$23 -> 0.073
B23: 2 | C23: Chi phí nhà tạm để ở và điều hành thi công | D23: ="T x "&ROUND(G23*100,3)&"%" -> T x 1,1% | E23: =E20*G23 -> 0 | F23: LT | G23: =Info!$D$26 -> 0.011
B24: 3 | C24: Chi phí một số công việc không xác định được khối lượng từ thiết kế | D24: ="T x "&ROUND(G24*100,3)&"%" -> T x 2,5% | E24: =E20*G24 -> 0 | F24: TT | G24: =Info!$D$27 -> 0.025
C25: Chi phí gián tiếp | D25: C + LT + TT | E25: =E22+E23+E24 -> 0 | F25: GT
B26: III | C26: THU NHẬP CHỊU THUẾ TÍNH TRƯỚC | D26: ="(T + GT) x "&G26*100&"%" -> (T + GT) x 5,5% | E26: =(E20+E25)*G26 -> 0 | F26: TL | G26: =Info!$D$24 -> 0.055
C27: Chi phí xây dựng trước thuế | D27: T + GT + TL | E27: =E20+E25+E26 -> 0 | F27: G
B28: IV | C28: THUẾ GIÁ TRỊ GIA TĂNG | D28: ="G x "&ROUND(G28*100,3)&"%" -> G x 10% | E28: =E27*G28 -> 0 | F28: GTGT | G28: =Info!$D$25 -> 0.1
C29: Chi phí xây dựng sau thuế | D29: G + GTGT | E29: =E28+E27 -> 0 | F29: GXD
C30: Làm tròn | E30: =ROUND(E29,-3) -> 0
B31: ="Bằng chữ: "&doc_vnd(E30)&"/." -> Bằng chữ: đồng./.
C33: NGƯỜI LẬP | E33: NGƯỜI CHỦ TRÌ
E39: Chứng chỉ hành nghề định giá XD hạng….., số…………
H42: F

Sheet Dự toán
B1: BẢNG DỰ TOÁN - KHỐI LƯỢNG
B2: ="Dự án: "&Info!$D$5 -> Dự án: Dự án đầu tư xây dựng công trình …
B3: ="Công trình: "&Info!$D$6 -> Công trình: Công trình xây dựng …
B4: ="Tên gói thầu: "&Info!$D$7 -> Tên gói thầu: Thi công xây lắp …
B6: STT | C6: ShHM | D6: Số hiệu | E6: Mã hiệu Đơn giá | F6: Mã hiệu định mức | G6: Nội dung công việc | H6: Đơn vị | I6: Khối lượng | J6: Khối lượng | Q6: Đơn giá | U6: Thành tiền | Y6: Đơn giá | Z6: Thành tiền | AA6: Mã tập đơn giá | AB6: Ghi chú
J7: Số lượng | K7: Dài | L7: Rộng | M7: Cao | N7: Hệ số | O7: S-phụ | P7: Tổng kl | Q7: Vật liệu | R7: Vl phụ | S7: Nhân công | T7: Máy | U7: Vật liệu | V7: Vl phụ | W7: Nhân công | X7: Máy
B8: 0 | C8: 2 | D8: [2]▼ | E8: [2]▼ | F8: [3'] | G8: 3 | H8: 4 | I8: 5 | J8: =IF(Options!$E$14=1,H8+1,0) -> 0 | K8: =IF(Options!$E$14=1,J8+1,0) -> 0 | L8: =IF(Options!$E$14=1,K8+1,0) -> 0 | M8: =IF(Options!$E$14=1,L8+1,0) -> 0 | N8: =IF(Options!$E$14=1,M8+1,0) -> 0 | O8: =IF(Options!$E$14=1,N8+1,0) -> 0 | P8: =IF(Options!$E$14=1,O8+1,0) -> 0 | Q8: 6 | R8: =COUNTIF($B$8:Q8,">0")+1 -> 6 | S8: 7 | T8: =COUNTIF($B$8:S8,">0")+1 -> 8 | U8: =COUNTIF($B$8:T8,">0")+1 -> 9 | V8: =COUNTIF($B$8:U8,">0")+1 -> 10 | W8: 10 | X8: 11 | Y8: 6 | Z8: 7 | AB8: 12
A9: =IF(AND(E9<>"",F9<>""),COUNT($A$8:A8)+1,"") -> 
A10: =IF(AND(E10<>"",F10<>""),COUNT($A$8:A9)+1,"") -> 
G24: TỔNG CỘNG | U24: =SUM(U$9:U$23) -> 0 | V24: =SUM(V$9:V$23) -> 0 | W24: =SUM(W$9:W$23) -> 0 | X24: =SUM(X$9:X$23) -> 0 | Z24: =SUM(Z$9:Z$21) -> 0
G25: LÀM TRÒN | U25: =ROUND(U24,-3) -> 0 | V25: =ROUND(V24,3) -> 0 | W25: =ROUND(W24,-3) -> 0 | X25: =ROUND(X24,-3) -> 0 | Z25: =ROUND(Z24,3) -> 0
B27: KHÔNG XÓA | F27: DO NOT REMOVE | H27: KHÔNG XÓA | Q27: DO NOT REMOVE | T27: KHÔNG XÓA | U27: DO NOT REMOVE | X27: KHÔNG XÓA

Sheet Draff (hidden)

Sheet Đơn giá
B1: BẢNG ĐƠN GIÁ CHI TIẾT
B2: =Info!$C$5&Info!$D$5 -> Dự án: Dự án đầu tư xây dựng công trình …
B3: =Info!$C$6&Info!$D$6 -> Công trình: Công trình xây dựng …
B4: =Info!$C$7&Info!$D$7 -> Tên gói thầu: Thi công xây lắp …
B6: TT | C6: ShHM | D6: Số hiệu | E6: Mã hiệu đơn giá | F6: Mã hiệu định mức | G6: Phụ lục vữa | H6: Mã vật tư | I6: Nội dung công việc | J6: Đơn vị | K6: Khối lượng | L6: Hao phí định mức | M6: Đơn giá | N6: Hệ số | O6: Thành tiền | P6: Thành phần chi phí | T6: Hao phí | V6: Ghi chú | W6: MÃ TẬP ĐƠN GIÁ | X6: MÃ CPĐ
P7: Vật liệu | Q7: Vl phụ | R7: Nhân công | S7: Máy | T7: Chính | U7: Khác
A8: 0 | B8: 0 | C8: [1'] | D8: [1''] | E8: 2 | F8: [2'] | G8: [2''] | H8: [2'''] | I8: 3 | J8: 4 | K8: 5 | L8: 6 | M8: 7 | N8: 8 | O8: 9 | P8: 10 | Q8: 11 | R8: 12 | S8: 13 | T8: 14 | U8: 15 | V8: 16 | W8: 17 | X8: 18
E9: ___ | F9: _____ | G9: _____ | H9: _____ | I9: _____ | J9: _____ | K9: _____ | L9: _____ | M9: _____ | N9: _____ | O9: _____ | P9: _____ | Q9: _____ | R9: _____ | S9: _____ | T9: _____ | U9: _____ | V9: _____ | W9: ___ | X9: ___
B14: KHÔNG XÓA | G14: KHÔNG XÓA | I14: DO NOT REMOVE | K14: KHÔNG XÓA | N14: KHÔNG XÓA | P14: DO NOT REMOVE | R14: KHÔNG XÓA | S14: DO NOT REMOVE

Sheet Hợp giá (hidden)
D1: BẢNG GIÁ XÂY DỰNG TỔNG HỢP
D2: =Info!$C$5&Info!$D$5 -> Dự án: Dự án đầu tư xây dựng công trình …
D3: =Info!$C$6&Info!$D$6 -> Công trình: Công trình xây dựng …
B4: =Info!$C$7&Info!$D$7 -> Tên gói thầu: Thi công xây lắp …
B6: TT | C6: SHHM | D6: Số hiệu Hợp Giá | E6: Số hiệu ĐG | F6: Mã hiệu đơn giá chi tiết | G6: Thành phần công việc | H6: Đơn vị tính | I6: Khối lượng | J6: Đơn giá | K6: Hệ số | L6: Giá xây dựng tổng hợp (đầy đủ) | M6: Đơn giá chi tiết | Q6: Thành phần chi phí | U6: Tổng cộng (không đầy đủ) | V6: Khối lượng dự toán
M7: Vật liệu | N7: Vl phụ | O7: Nhân công | P7: Máy | Q7: Vật liệu | R7: Vl phụ | S7: Nhân công | T7: Máy
A8: 0 | B8: 0 | C8: [1'] | D8: [1a]▼ | E8: [1b]▼ | F8: [1c]▼ | G8: 2 | H8: 3 | I8: 4 | J8: 5 | K8: [*] | L8: 6 | M8: [7a] | N8: 11 | O8: [8a] | P8: [9a] | Q8: [7b] | R8: 11 | S8: [8b] | T8: [9b] | U8: 10 | V8: 15
F9: ___ | G9: _____ | H9: _____ | I9: _____ | J9: _____ | K9: _____ | L9: _____ | M9: _____ | N9: _____ | O9: _____ | P9: _____ | Q9: _____ | R9: _____ | S9: _____ | T9: _____ | U9: _____ | V9: _____
B14: KHÔNG XÓA | G14: DO NOT REMOVE | I14: KHÔNG XÓA | K14: KHÔNG XÓA | M14: DO NOT REMOVE | O14: KHÔNG XÓA | P14: DO NOT REMOVE | Q14: DO NOT REMOVE | S14: KHÔNG XÓA | T14: DO NOT REMOVE

Sheet Phân tích hao phí (hidden)
B1: BẢNG HAO PHÍ VẬT LIỆU, NHÂN CÔNG, MÁY VÀ THIẾT BỊ THI CÔNG CHO CÁC CÔNG TÁC XÂY DỰNG
B2: =Info!$C$5&Info!$D$5 -> Dự án: Dự án đầu tư xây dựng công trình …
B3: =Info!$C$6&Info!$D$6 -> Công trình: Công trình xây dựng …
B4: =Info!$C$7&Info!$D$7 -> Tên gói thầu: Thi công xây lắp …
B6: Stt | C6: SHHM | D6: Số hiệu | E6: Mã hiệu đơn giá | F6: Mã hiệu định mức | G6: Phụ lục vữa | H6: Mã vật tư | I6: Tên công tác | J6: Đơn vị | K6: Khối lượng | L6: Mức hao phí | P6: Hao phí | Q6: Hệ số | R6: Khối lượng hao phí | V6: Ghi chú | W6: MÃ TẬP ĐƠN GIÁ
L7: Vật liệu | M7: Vl phụ | N7: Nhân công | O7: Máy | P7: Khác | R7: Vật liệu | S7: Vl phụ | T7: Nhân công | U7: Máy
A8: 0 | B8: 0 | C8: [1'] | D8: 2 | E8: 3 | F8: 4 | G8: [2''] | H8: 5 | I8: 6 | J8: 7 | K8: 8 | L8: 9 | M8: 7 | N8: 10 | O8: 11 | P8: 12 | Q8: 13 | R8: 14 | S8: 11 | T8: 15 | U8: 16 | V8: 17 | W8: 17
E9: ___ | F9: _____ | G9: _____ | H9: _____ | I9: _____ | J9: _____ | K9: _____ | L9: _____ | P9: _____ | Q9: _____ | R9: _____ | S9: _____ | T9: _____ | U9: _____ | V9: _____ | W9: ___
B14: KHÔNG XÓA | G14: KHÔNG XÓA | I14: DO NOT REMOVE | K14: KHÔNG XÓA | Q14: KHÔNG XÓA | R14: DO NOT REMOVE | T14: KHÔNG XÓA | U14: DO NOT REMOVE

Sheet Vật liệu VC-89 (hidden)
B1: BẢNG TÍNH GIÁ VẬT LIỆU VẬN CHUYỂN ĐẾN HIỆN TRƯỜNG XÂY DỰNG
B2: (Căn cứ theo Quyết định ban hành biểu giá cước vận chuyển hàng hóa bằng ô tô trên địa bàn tỉnh….)
B3: =Info!$C$6&Info!$D$6 -> Công trình: Công trình xây dựng …
B4: =Info!$C$7&Info!$D$7 -> Tên gói thầu: Thi công xây lắp …
B6: TT | C6: MÃ HIỆU VẬT TƯ | D6: TÊN VẬT TƯ | E6: ĐƠN VỊ | F6: TRỌNG LƯỢNG ĐƠN VỊ | G6: KHỐI LƯỢNG | H6: GIÁ MUA GỐC | I6: NGUỒN MUA | J6: HỆ SỐ BẬC HÀNG | K6: PHƯƠNG TIỆN | L6: TỔNG CỰ LY | M6: CỰ LY (Km) | N6: LOẠI ĐƯỜNG | O6: CƯỚC VẬN CHUYỂN CÔNG BỐ | P6: CƯỚC VC TOÀN CỰ LY | Q6: GIÁ VẬT LIỆU THÁNG | R6: MÃ TẬP ĐƠN GIÁ | S6: GHI CHÚ
B8: 1 | C8: ="["&COUNTA($B$8:B8)+1&"]" -> [2] | D8: ="["&COUNTA($B$8:C8)+1&"]" -> [3] | E8: ="["&COUNTA($B$8:D8)+1&"]" -> [4] | F8: ="["&COUNTA($B$8:E8)+1&"]" -> [5] | G8: ="["&COUNTA($B$8:F8)+1&"]" -> [6] | H8: ="["&COUNTA($B$8:G8)+1&"]" -> [7] | I8: ="["&COUNTA($B$8:H8)+1&"]" -> [8] | J8: ="["&COUNTA($B$8:I8)+1&"]" -> [9] | K8: ="["&COUNTA($B$8:J8)+1&"]" -> [10] | M8: ▼-Nhập | N8: ▼-Chọn | O8: ="["&COUNTA($B$8:N8)+1&"]" -> [13] | P8: ="["&COUNTA($B$8:O8)+1&"]" -> [14] | Q8: ="["&COUNTA($B$8:P8)+1&"]" -> [15] | S8: ="["&COUNTA($B$8:R8)+1&"]" -> [16]
B15: KHÔNG XÓA | G15: KHÔNG XÓA | K15: KHÔNG XÓA | S15: KHÔNG XÓA

Sheet Tổng hợp vật tư
B1: =IF(MoEs=1,"BẢNG TỔNG HỢP CHI PHÍ VẬT LIỆU, CHI PHÍ NHÂN CÔNG, CHI PHÍ MÁY THI CÔNG",IF(OR(MoEs=2,MoEs=3),"BẢNG TỔNG HỢP CHÊNH LỆCH VẬT TƯ","BẢNG TỔNG HỢP VẬT TƯ")) -> BẢNG TỔNG HỢP VẬT TƯ
B2: =Info!$C$5&Info!$D$5 -> Dự án: Dự án đầu tư xây dựng công trình …
B3: =Info!$C$6&Info!$D$6 -> Công trình: Công trình xây dựng …
B4: =Info!$C$7&Info!$D$7 -> Tên gói thầu: Thi công xây lắp …
B6: Stt | C6: Mã hiệu | D6: Nội dung | E6: Đơn vị | F6: Khối lượng | G6: Đơn giá gốc | H6: Đơn giá tháng | I6: Chênh lệch | J6: Thành tiền chênh lệch | K6: Thành tiền | L6: KHỐI LƯỢNG KHÁC | M6: Mã tập đơn giá | N6: Ghi chú
B8: 1 | C8: ="["&COUNTA($B$8:B8)+1&"]" -> [2] | D8: ="["&COUNTA($B$8:C8)+1&"]" -> [3] | E8: ="["&COUNTA($B$8:D8)+1&"]" -> [4] | F8: ="["&COUNTA($B$8:E8)+1&"]" -> [5] | G8: ="["&COUNTA($B$8:F8)+1&"]" -> [6] | H8: ="["&COUNTA($B$8:G8)+1&"]" -> [7] | I8: ="["&COUNTA($B$8:H8)+1&"]" -> [8] | J8: ="["&COUNTA($B$8:I8)+1&"]" -> [9] | K8: ="["&COUNTA($B$8:J8)+1&"]" -> [10] | M8: ="["&COUNTA($B$8:K8)+1&"]" -> [11] | N8: ="["&COUNTA($B$8:M8)+1&"]" -> [12]
B9: ___ | C9: ___ | D9: ___ | E9: ___ | F9: ___ | G9: ___ | H9: ___ | I9: ___ | J9: ___ | K9: ___ | L9: ___ | M9: ___ | N9: ___
B16: KHÔNG XÓA

Sheet PLBC.Thẩmtra (hidden)
B2: CỘNG HÒA XÃ HỘI CHỦ NGHĨA VIỆT NAM
B3: Độc lập - Tự do - Hạnh phúc
B5: PHỤ LỤC BÁO CÁO THẨM TRA
B6: (Kèm theo Báo cáo thẩm tra số:…........ ngày … tháng … năm ….......)
B8: 1. Sự phù hợp giữa khối lượng chủ yếu của dự toán với khối lượng thiết kế
B9: STT | C9: Mã hiệu | D9: Tên công tác | E9: Đơn vị | F9: Khối lượng dự toán | G9: Khối lượng thẩm tra | H9: Chênh lệch | I9: Ghi chú
B10: [1] | C10: [2] | D10: [3] | E10: [4] | F10: [5] | G10: [6] | H10: [7] | I10: [8]
B15: 2. Tính đúng đắn, hợp lý của việc áp dụng, vận dụng định mức, đơn giá xây dựng công trình.
B16: a. Về Đơn giá xây dựng công trình:
B17: STT | C17: Mã hiệu | D17: Tên công tác | E17: Đơn vị | F17: Đơn giá dự toán lập | I17: Đơn giá dự toán thẩm tra | L17: Chênh lệch đơn giá | O17: Ghi chú
F18: Vật liệu | G18: Nhân công | H18: Máy thi công | I18: Vật liệu | J18: Nhân công | K18: Máy thi công | L18: Vật liệu | M18: Nhân công | N18: Máy thi công
B19: [1] | C19: [2] | D19: [3] | E19: [4] | F19: [5] | G19: [6] | H19: [7] | I19: [8] | J19: [9] | K19: [10] | L19: [11] | M19: [12] | N19: [13] | O19: [14]
B24: b. Về hao phí định mức:
B25: STT | C25: Mã hiệu | D25: Tên công tác | E25: Đơn vị | F25: Ý kiến thẩm tra | I25: Ghi chú
B26: [1] | C26: [2] | D26: [3] | E26: [4] | G26: [5] | I26: [6]
B31: c. Về giá vật tư gốc
B32: STT | C32: Mã hiệu | D32: Tên vật tư | E32: Đơn vị | F32: Đơn giá gốc (dự toán lập) | G32: Đơn giá gốc (thẩm tra) | H32: Chênh lệch | I32: Ghi chú
B33: [1] | C33: [2] | D33: [3] | E33: [4] | F33: [5] | G33: [6] | H33: [7] | I33: [8]
B38: 3. Giá trị dự toán xây dựng sau thẩm tra là: ……………… (giá trị dự toán ghi bằng chữ), trong đó:

Sheet Báo cáo (hidden)
B2: CƠ QUAN THẨM TRA/THẨM ĐỊNH | E2: CỘNG HÒA XÃ HỘI CHỦ NGHĨA VIỆT NAM
E3: Độc lập - Tự do - Hạnh phúc
B4: Số: ………….. V/v thông báo kết quả thẩm định thiết kế và dự toán xây dựng công trình | H4: ………, ngày …. tháng …. năm ….. | J4: Tên cơ quan: | K4: (Đơn vị thẩm tra/Thẩm định)
C6: Kính gửi: ……………………………..
B8: (Cơ quan thẩm tra/thẩm định) đã nhận Tờ trình số .... ngày …. của ………. đề nghị thẩm định thiết kế xây dựng (TKKT/TKBVTC) và dự toán xây dựng (nếu có) công trình …….. thuộc dự án đầu tư ........
B9: Căn cứ hồ sơ trình thẩm định gửi kèm tờ trình thẩm định;
B10: Các căn cứ khác có liên quan ..................................................................
B11: Sau khi xem xét, (cơ quan thẩm định) thông báo kết quả thẩm định thiết kế xây dựng và dự toán xây dựng công trình như sau:
B12: I. THÔNG TIN CHUNG VỀ CÔNG TRÌNH
B13: =" - Tên công trình: "&Info!$D$6 -> - Tên công trình: Công trình xây dựng …
B14: =" - Thuộc dự án đầu tư: "&Info!$D$5 -> - Thuộc dự án đầu tư: Dự án đầu tư xây dựng công trình …
B15: - Chủ đầu tư: ...............................................................................................
B16: - Giá trị dự toán xây dựng công trình: ...........................................................
B17: - Nguồn vốn: .........................................................................................
B18: =" - Địa điểm xây dựng: "&Info!D8 -> - Địa điểm xây dựng: Hà Nội …
B19: - Nhà thầu thiết kế xây dựng công trình, lập dự toán xây dựng (nếu có)
B20: - Nhà thầu khảo sát xây dựng ..................................................................

Sheet Giá vữa (hidden)
B1: BẢNG GIÁ VỮA
B2: =Info!$C$5&Info!$D$5 -> Dự án: Dự án đầu tư xây dựng công trình …
B3: =Info!$C$6&Info!$D$6 -> Công trình: Công trình xây dựng …
B4: =Info!$C$7&Info!$D$7 -> Tên gói thầu: Thi công xây lắp …
B6: Stt | C6: Mã vữa | D6: Mã vật tư | E6: Tên vữa/ Tên vật tư | F6: Đơn vị | G6: Hao phí định mức | H6: Đơn giá tháng | I6: Thành tiền | J6: Ghi chú | K6: Mã tập đơn giá
B8: 1 | C8: ="["&COUNTA($B$8:B8)+1&"]" -> [2] | D8: ="["&COUNTA($B$8:C8)+1&"]" -> [3] | E8: ="["&COUNTA($B$8:D8)+1&"]" -> [4] | F8: ="["&COUNTA($B$8:E8)+1&"]" -> [5] | G8: ="["&COUNTA($B$8:F8)+1&"]" -> [6] | H8: ="["&COUNTA($B$8:G8)+1&"]" -> [7] | I8: ="["&COUNTA($B$8:H8)+1&"]" -> [8] | J8: ="["&COUNTA($B$8:I8)+1&"]" -> [9] | K8: ="["&COUNTA($B$8:J8)+1&"]" -> [10]
B9: ___ | C9: ___ | E9: ___ | F9: ___ | G9: ___ | H9: ___ | I9: ___ | J9: ___ | K9: ___
B17: KHÔNG XÓA | G17: DO NOT REMOVE | I17: DO NOT REMOVE

Sheet Giá Vật liệu đến HTCT (hidden)
B1: BẢNG TÍNH GIÁ VẬT LIỆU VẬN CHUYỂN ĐẾN HIỆN TRƯỜNG CÔNG TRÌNH
B2: (Căn cứ Bảng 4.1 - Thông tư 11/2021/TT-BXD và Chương XII - Phụ lục 2 Thông tư 12/2021/TT-BXD)
B3: =Info!$C$5&Info!$D$5 -> Dự án: Dự án đầu tư xây dựng công trình …
B4: =Info!$C$6&Info!$D$6 -> Công trình: Công trình xây dựng …
B6: TT | C6: Mã hiệu vật tư | D6: Loại vật liệu | E6: Đơn vị | F6: KHỐI LƯỢNG | G6: GIÁ VẬT LIỆU ĐẾN CÔNG TRÌNH | AK6: GIÁ VẬT LIỆU ĐẾN HIỆN TRƯỜNG CÔNG TRÌNH | AL6: MÃ TẬP ĐƠN GIÁ | AM6: GHI CHÚ
G7: Nguồn mua | H7: Giá tại nguồn | I7: Tra chi phí vận chuyển đến công trình | S7: Chi phí vận chuyển đến công trình | T7: Tra chi phí bốc xếp vật liệu | Z7: Chi phí bốc xếp vật liệu | AA7: Tra Chi phí vận chuyển nội bộ công trình | AH7: Chi phí vận chuyển nội bộ công trình | AI7: Định mức hao hụt bảo quản tại hiện trường | AJ7: Chi phí hao hụt bảo quản
I8: Tra mã vận chuyển (ô tô) | J8: Mã phương tiện | K8: Loại phương tiện | L8: Cự ly | M8: Định mức máy (ca) | N8: Giá ca máy | O8: Hệ số đổi đơn vị | P8: Điểm đầu - Điểm cuối | Q8: Loại đường | R8: Hệ số điều chỉnh | T8: Tra mã bốc xếp | U8: Mã phương tiện | V8: Loại phương tiện | W8: Định mức | X8: Đơn giá | Y8: Hệ số đổi đơn vị | AA8: Tra mã vận chuyển nội bộ | AB8: Mã phương tiện | AC8: Loại phương tiện | AD8: Cự ly | AE8: Định mức | AF8: Đơn giá | AG8: Hệ số đổi đơn vị
B9: 1 | C9: [2] | D9: [2'] | E9: [3] | F9: [*] | G9: [*] | H9: [4] | I9: ▼ | J9: [*] | K9: [*] | L9: [*] | M9: [*] | N9: [*] | O9: [*] | P9: [*] | Q9: [▼] | R9: =HSDCLoaiduong ->  | S9: [5] | T9: ▼ | U9: [*] | V9: [*] | W9: [*] | X9: [*] | Y9: [*] | Z9: [6] | AA9: ▼ | AB9: [*] | AC9: [*] | AD9: [*] | AE9: [*] | AF9: [*] | AG9: [*] | AH9: [7] | AI9: [*] | AJ9: [8] | AK9: [9] | AL9: [*] | AM9: [*]
B10: ___ | C10: ___ | D10: ___ | E10: ___ | F10: ___ | H10: ___ | AK10: ___ | AL10: ___ | AM10: ___
B16: KHÔNG XÓA | F16: KHÔNG XÓA | I16: KHÔNG XÓA | M16: KHÔNG XÓA | T16: KHÔNG XÓA | AA16: KHÔNG XÓA | AM16: KHÔNG XÓA

Sheet Giá ca máy (VCVL) (hidden)
B1: BẢNG ĐƠN GIÁ PHƯƠNG TIỆN VẬN CHUYỂN VẬT LIỆU ĐẾN HIỆN TRƯỜNG XÂY DỰNG
B2: =Info!$C$5&Info!$D$5 -> Dự án: Dự án đầu tư xây dựng công trình …
B3: =Info!$C$6&Info!$D$6 -> Công trình: Công trình xây dựng …
B4: =Info!$C$7&Info!$D$7 -> Tên gói thầu: Thi công xây lắp …
B6: TT | C6: Mã phương tiện | D6: Tên phương tiện | E6: Số ca năm | F6: Nguyên giá | G6: Hệ số thu hồi | H6: Định mức tỷ lệ (%) | K6: Chi phí | N6: Định mức tiêu hao nhiên liệu | P6: Hệ số nhiên liệu phụ | Q6: Chi phí nhiên liệu gốc | R6: Chi phí nhiên liệu lập dự toán | S6: Thành phần bậc thợ điều khiển | T6: Mã Nhân công điều khiển | U6: Lương NC điều khiển gốc | V6: Lương NC điều khiển thời điểm lập dự toán | W6: Giá ca máy gốc | X6: Giá ca máy | Y6: Mã tập đơn giá | Z6: Ghi chú
H7: Khấu hao | I7: Sửa chữa | J7: Chi phí khác | K7: Khấu hao | L7: Sửa chữa | M7: Chi phí khác | N7: Hao phí | O7: Đơn vị
B8: [1] | C8: ="["&COUNTA($B$8:B8)+1&"]" -> [2] | D8: ="["&COUNTA($A$8:C8)+1&"]" -> [3] | E8: ="["&COUNTA($A$8:D8)+1&"]" -> [4] | F8: ="["&COUNTA($A$8:E8)+1&"]" -> [5] | G8: ="["&COUNTA($A$8:F8)+1&"]" -> [6] | H8: ="["&COUNTA($A$8:G8)+1&"]" -> [7] | I8: ="["&COUNTA($A$8:H8)+1&"]" -> [8] | J8: ="["&COUNTA($A$8:I8)+1&"]" -> [9] | K8: ="["&COUNTA($A$8:J8)+1&"]" -> [10] | L8: ="["&COUNTA($A$8:K8)+1&"]" -> [11] | M8: ="["&COUNTA($A$8:L8)+1&"]" -> [12] | N8: ="["&COUNTA($A$8:M8)+1&"]" -> [13] | O8: ="["&COUNTA($A$8:N8)+1&"]" -> [14] | P8: ="["&COUNTA($A$8:O8)+1&"]" -> [15] | Q8: ="["&COUNTA($A$8:P8)+1&"]" -> [16] | R8: ="["&COUNTA($A$8:Q8)+1&"]" -> [17] | S8: ="["&COUNTA($A$8:R8)+1&"]" -> [18] | T8: [""] | U8: ="["&COUNTA($A$8:S8)+1&"]" -> [19] | V8: ="["&COUNTA($A$8:U8)+1&"]" -> [21] | W8: ="["&COUNTA($A$8:V8)+1&"]" -> [22] | X8: ="["&COUNTA($A$8:W8)+1&"]" -> [23] | Y8: ="["&COUNTA($A$8:X8)+1&"]" -> [24] | Z8: ="["&COUNTA($A$8:Y8)+1&"]" -> [25]
B9: ___ | C9: ___ | D9: ___ | E9: ___ | F9: ___ | G9: ___ | H9: ___ | K9: ___ | N9: ___ | S9: ___ | Z9: ___
B10: 1 | C10: N01.01.307 | D10: Nhân công 3,0/7
B11: 2 | C11: M102.0103 | D11: Cần trục ôtô 5T
B12: 3 | C12: M102.0201 | D12: Cần cẩu 6T
B13: 4 | C13: M102.1001 | D13: Vận thăng lồng <= 3T
B14: 5 | C14: M106.0202 | D14: Ôtô tự đổ 5T
B15: 6 | C15: M106.0203 | D15: Ôtô tự đổ 7T
B16: 7 | C16: M106.0204 | D16: Ôtô tự đổ 10T
B17: 8 | C17: M106.0205 | D17: Ôtô tự đổ 12T
B18: 9 | C18: M106.0207 | D18: Ôtô tự đổ 20T
B19: 10 | C19: M106.0208 | D19: Ôtô tự đổ 22T
B20: 11 | C20: M106.0210 | D20: Ôtô tự đổ 27T
B21: 12 | C21: M106.0106 | D21: Ôtô thùng 7T
B22: 13 | C22: M106.0108 | D22: Ôtô thùng 12T
B23: 14 | C23: M106.0110 | D23: Ôtô thùng 20T
B24: 15 | C24: M106.0901 | D24: Xe bồn 30T
B28: KHÔNG XÓA | F28: KHÔNG XÓA | H28: DO NOT REMOVE | K28: DO NOT REMOVE | S28: KHÔNG XÓA | Z28: KHÔNG XÓA

Sheet Đơn giá NC (hidden)
B1: BẢNG ĐƠN GIÁ NHÂN CÔNG
B2: =Info!$C$5&Info!$D$5 -> Dự án: Dự án đầu tư xây dựng công trình …
B3: =Info!$C$6&Info!$D$6 -> Công trình: Công trình xây dựng …
B4: =Info!$C$7&Info!$D$7 -> Tên gói thầu: Thi công xây lắp …
B5: Lương đầu vào: | D5: 2000000
B6: TT | C6: Mã nhân công | D6: Tên nhân công | E6: Hệ số lương | F6: Hệ số khu vực | G6: Đơn giá nhân công | H6: Ghi chú | I6: Mã tập đơn giá
B7: 1 | C7: ="["&COUNTA($B$7:B7)+1&"]" -> [2] | D7: ="["&COUNTA($B$7:C7)+1&"]" -> [3] | E7: ="["&COUNTA($B$7:D7)+1&"]" -> [4] | F7: ="["&COUNTA($B$7:E7)+1&"]" -> [5] | G7: ="["&COUNTA($B$7:F7)+1&"]" -> [6] | H7: ="["&COUNTA($B$7:G7)+1&"]" -> [7] | I7: ="["&COUNTA($B$7:H7)+1&"]" -> [8]
B8: ___ | C8: ___ | D8: ___ | E8: ___ | F8: ___ | G8: ___ | H8: ___
B15: KHÔNG XÓA | F15: KHÔNG XÓA | H15: KHÔNG XÓA

Sheet Giá ca máy (hidden)
B1: BẢNG GIÁ CA MÁY THI CÔNG
B2: =Info!$C$5&Info!$D$5 -> Dự án: Dự án đầu tư xây dựng công trình …
B3: =Info!$C$6&Info!$D$6 -> Công trình: Công trình xây dựng …
B4: =Info!$C$7&Info!$D$7 -> Tên gói thầu: Thi công xây lắp …
B6: TT | C6: Mã máy | D6: Tên máy | E6: Số ca năm | F6: Nguyên giá | G6: Hệ số thu hồi | H6: Định mức tỷ lệ (%) | K6: Chi phí | N6: Định mức tiêu hao nhiên liệu | P6: Hệ số nhiên liệu phụ | Q6: Chi phí nhiên liệu gốc | R6: Chi phí nhiên liệu lập dự toán | S6: Thành phần bậc thợ điều khiển | T6: Mã Nhân công điều khiển | U6: Lương NC điều khiển gốc | V6: Lương NC điều khiển thời điểm lập dự toán | W6: Giá ca máy gốc | X6: Giá ca máy | Y6: Mã tập đơn giá | Z6: Ghi chú
H7: Khấu hao | I7: Sửa chữa | J7: Chi phí khác | K7: Khấu hao | L7: Sửa chữa | M7: Chi phí khác | N7: Hao phí | O7: Đơn vị
B8: 1 | C8: ="["&COUNTA($B$8:B8)+1&"]" -> [2] | D8: ="["&COUNTA($B$8:C8)+1&"]" -> [3] | E8: ="["&COUNTA($B$8:D8)+1&"]" -> [4] | F8: ="["&COUNTA($B$8:E8)+1&"]" -> [5] | G8: ="["&COUNTA($B$8:F8)+1&"]" -> [6] | H8: ="["&COUNTA($B$8:G8)+1&"]" -> [7] | I8: ="["&COUNTA($B$8:H8)+1&"]" -> [8] | J8: ="["&COUNTA($B$8:I8)+1&"]" -> [9] | K8: ="["&COUNTA($B$8:J8)+1&"]" -> [10] | L8: ="["&COUNTA($B$8:K8)+1&"]" -> [11] | M8: ="["&COUNTA($B$8:L8)+1&"]" -> [12] | N8: ="["&COUNTA($B$8:M8)+1&"]" -> [13] | O8: ="["&COUNTA($B$8:N8)+1&"]" -> [14] | P8: ="["&COUNTA($B$8:O8)+1&"]" -> [15] | Q8: ="["&COUNTA($B$8:P8)+1&"]" -> [16] | R8: ="["&COUNTA($B$8:Q8)+1&"]" -> [17] | S8: ="["&COUNTA($B$8:R8)+1&"]" -> [18] | U8: ="["&COUNTA($B$8:S8)+1&"]" -> [19] | V8: ="["&COUNTA($B$8:U8)+1&"]" -> [20] | W8: ="["&COUNTA($B$8:V8)+1&"]" -> [21] | X8: ="["&COUNTA($B$8:W8)+1&"]" -> [22] | Y8: ="["&COUNTA($B$8:X8)+1&"]" -> [23] | Z8: ="["&COUNTA($B$8:Y8)+1&"]" -> [24]
B9: ___ | C9: ___ | D9: ___ | E9: ___ | F9: ___ | G9: ___ | H9: ___ | K9: ___ | N9: ___ | S9: ___ | Z9: ___
B16: KHÔNG XÓA | F16: KHÔNG XÓA | H16: DO NOT REMOVE | K16: DO NOT REMOVE | S16: KHÔNG XÓA | Z16: KHÔNG XÓA

Sheet Lương Lái máy (hidden)
B1: BẢNG ĐƠN GIÁ NHÂN CÔNG ĐIỀU KHIỂN MÁY
B2: =Info!$C$5&Info!$D$5 -> Dự án: Dự án đầu tư xây dựng công trình …
B3: =Info!$C$6&Info!$D$6 -> Công trình: Công trình xây dựng …
B4: =Info!$C$7&Info!$D$7 -> Tên gói thầu: Thi công xây lắp …
I5: Lương đầu vào: | K5: =LUONGCS -> 2000000
B6: TT | C6: Mã máy | D6: Tên máy | E6: Số ca máy thi công | F6: Số thợ điều khiển | G6: Mã nhân công | H6: Tên nhân công | I6: Hệ số lương | J6: Hệ số khu vực | K6: Đơn giá nhân công | L6: Mã tập đơn giá | M6: Ghi chú
B7: 1 | C7: ="["&COUNTA(Col_STT)+1&"]" -> [2] | D7: 3 | E7: 4 | F7: 5 | G7: 6 | H7: 7 | I7: 8 | J7: 9 | K7: 10 | L7: 11 | M7: 11
B8: ___ | C8: ___ | D8: ___ | E8: ___ | F8: ___ | G8: ___ | H8: ___ | I8: ___ | J8: ___ | K8: ___ | M8: ___
B19: BẢNG ĐƠN GIÁ NHÂN CÔNG ĐIỀU KHIỂN PHƯƠNG TIỆN VẬN CHUYỂN VẬT LIỆU
B21: TT | C21: Mã máy | D21: Tên máy | E21: Số ca máy thi công | F21: Số thợ điều khiển | G21: Mã nhân công | H21: Tên nhân công | I21: Hệ số lương | J21: Hệ số khu vực | K21: Đơn giá nhân công | L21: Mã tập đơn giá | M21: Ghi chú
B22: 1 | C22: ="["&COUNTA(Col_STT)+1&"]" -> [2] | D22: 3 | E22: 4 | F22: 5 | G22: 6 | H22: 7 | I22: 8 | J22: 9 | K22: 10 | L22: 11 | M22: 11
B45: _ | M45: _

Sheet CB ĐGNC (hidden)
B2: CÔNG BỐ ĐƠN GIÁ NHÂN CÔNG XÂY DỰNG CỦA ĐỊA PHƯƠNG XÁC ĐỊNH THEO PHỤ LỤC IV THÔNG TƯ 13/2021/TT-BXD
B4: Stt | C4: Nhóm | D4: Đơn giá nhân công xây dựng bình quân theo khu vực (đ/ngc)
B5: [1] | C5: [2] | D5: [3]
B6: I | C6: Công nhân xây dựng trực tiếp
B7: 1.1 | C7: Nhóm I
B8: 1.2 | C8: Nhóm II
B9: 1.3 | C9: Nhóm III
B10: 1.4 | C10: Nhóm IV
C11: Nhóm vận hành máy, thiết bị thi công xây dựng
C12: Nhóm lái xe các loại
B13: II | C13: Nhóm nhân công khác
B14: 2.1 | C14: Vận hành tàu, thuyền
C15: Thuyền trưởng
C16: Thuyền phó
C17: Thủy thủ, thợ máy
C18: Máy trưởng, máy I, máy II, điện trưởng, kỹ thuật viên cuốc I, kỹ thuật viên cuốc II tàu sông
C19: Máy trưởng, máy I, máy II, điện trưởng, kỹ thuật viên cuốc I, kỹ thuật viên cuốc II tàu biển
B20: 2.2 | C20: Thợ lặn
B21: 2.3 | C21: Kỹ sư
B22: 2.4 | C22: Nghệ nhân
B23: III | C23: Nhân công tàu thuyền mở rộng (nếu có)
B24: 1 | C24: Thợ điều khiển tàu, ca nô công suất máy chính từ 5CV đến 150CV
B25: 1.1 | C25: Thuyền trưởng bậc 1,5/2 | D25: =D15 -> 0
B26: 1.2 | C26: Thuyền phó 1, máy 1 bậc 1,5/2 | D26: =D16 -> 0
B27: 1.3 | C27: Thuyền phó 2, máy 2 bậc 1,5/2 | D27: =D16 -> 0
B28: 2 | C28: Thợ điều khiển tàu, ca nô công suất máy chính trên 150CV; cần cẩu nổi; tàu đóng cọc
B29: 2.1 | C29: Thuyền trưởng bậc 1,5/2 | D29: =D15 -> 0
B30: 2.2 | C30: Thuyền phó 1, máy 1 bậc 1,5/2 | D30: =D16 -> 0
B31: 2.3 | C31: Thuyền phó 2, máy 2 bậc 1,5/2 | D31: =D16 -> 0
B32: 3 | C32: Thợ điều khiển tàu sông từ 150m3/h đến 300m3/h (tàu hút đến 585CV, tàu hút bụng tự hành đến 1390CV, tàu cuốc sông)
B33: 3.1 | C33: Thuyền trưởng tàu hút sông bậc 1,5/2 | D33: =D15 -> 0
B34: 3.2 | C34: Máy trưởng tàu hút sông bậc 1,5/2 | D34: =D18 -> 0
B35: 3.3 | C35: Máy 2, KTV cuốc 1, thuyền phó tàu hút sông bậc 1,5/2 | D35: =D18 -> 0
B36: 3.4 | C36: KTV cuốc 2 tàu hút sông bậc 1,5/2 | D36: =D18 -> 0
B37: 4 | C37: Thợ điều khiển tàu biển từ 300m3/h đến 800m3/h (tàu hút đến 585CV, tàu hút bụng tự hành đến 1390CV, tàu cuốc biển, tàu ngoạm)
B38: 4.1 | C38: Thuyền trưởng tàu hút bụng bậc 1,5/2 | D38: =D15 -> 0
B39: 4.2 | C39: Máy trưởng, thuyền trưởng tàu cuốc, tàu hút phun, tàu đào gầu ngoạm bậc 1,5/2 | D39: =D19 -> 0
B40: 4.3 | C40: Điện trưởng tàu hút, tàu cuốc; KTV cuốc 1, thuyền phó 2 tàu hút bụng, KTV cuốc 2 tàu cuốc, tàu hút phun, tàu đào gầu ngoạm bậc 1,5/2 | D40: =D19 -> 0
B41: 4.4 | C41: Máy 2; KTV cuốc 1 tàu cuốc, tàu hút phun, tàu đào gầu ngoạm bậc 1,5/2 | D41: =D19 -> 0
B42: 4.5 | C42: Thuyền phó tàu cuốc, KTV cuốc 2 tàu hút bậc 1,5/2 | D42: =D19 -> 0

Sheet Bảng lương (hidden)
B2: BẢNG ĐƠN GIÁ NHÂN CÔNG XÂY DỰNG
B3: (Theo Thông tư 15/2019/TT-BXD ngày 26/12/2019)
B5: Mã | C5: Nhóm nghề | D5: Cấp bậc | E5: Hệ số cấp bậc | F5: Giá Nhân công tỉnh | G5: Ghi chú
B6: I | C6: Nhóm nhân công xây dựng | E6: HiCB
B7: 1.1 | C7: Nhân công nhóm 1
B8: N01.01.107 | C8: Nhân công bậc 1,0/7 - Nhóm 1 | D8: 1 | E8: 1 | F8: =E8/E21*F21 -> 0 | G8: - Công tác phát cây, phá dỡ công trình, tháo dỡ kết cấu công trình, bộ phận máy móc, thiết bị công trình; - Công tác trồng cỏ các loại; - Công tác bốc xếp, vận chuyển vật tư, vật liệu, phụ kiện, cấu kiện xây dựng, phế thải xây dựng các loại; - Công tác đào, đắp, phá, bốc xúc, san, ủi, bơm, nạo vét, xói hút: bùn, đất, cát, đá, sỏi các loại, phế thải; - Công tác đóng gói vật liệu rời.
B9: N01.01.127 | C9: Nhân công bậc 1,2/7 - Nhóm 1 | D9: 1.2 | E9: 1.036 | F9: =E9/E21*F21 -> 0
B10: N01.01.137 | C10: Nhân công bậc 1,3/7 - Nhóm 1 | D10: 1.3 | E10: 1.054 | F10: =E10/E21*F21 -> 0
B11: N01.01.157 | C11: Nhân công bậc 1,5/7 - Nhóm 1 | D11: 1.5 | E11: 1.09 | F11: =E11/E21*F21 -> 0
B12: N01.01.177 | C12: Nhân công bậc 1,7/7 - Nhóm 1 | D12: 1.7 | E12: 1.126 | F12: =E12/E21*F21 -> 0
B13: N01.01.207 | C13: Nhân công bậc 2,0/7 - Nhóm 1 | D13: 2 | E13: 1.18 | F13: =E13/E21*F21 -> 0
B14: N01.01.227 | C14: Nhân công bậc 2,2/7 - Nhóm 1 | D14: 2.2 | E14: 1.222 | F14: =E14/E21*F21 -> 0
B15: N01.01.237 | C15: Nhân công bậc 2,3/7 - Nhóm 1 | D15: 2.3 | E15: 1.243 | F15: =E15/E21*F21 -> 0
B16: N01.01.257 | C16: Nhân công bậc 2,5/7 - Nhóm 1 | D16: 2.5 | E16: 1.285 | F16: =E16/E21*F21 -> 0
B17: N01.01.277 | C17: Nhân công bậc 2,7/7 - Nhóm 1 | D17: 2.7 | E17: 1.327 | F17: =E17/E21*F21 -> 0
B18: N01.01.307 | C18: Nhân công bậc 3,0/7 - Nhóm 1 | D18: 3 | E18: 1.39 | F18: =E18/E21*F21 -> 0
B19: N01.01.327 | C19: Nhân công bậc 3,2/7 - Nhóm 1 | D19: 3.2 | E19: 1.442 | F19: =E19/E21*F21 -> 0
B20: N01.01.337 | C20: Nhân công bậc 3,3/7 - Nhóm 1 | D20: 3.3 | E20: 1.468 | F20: =E20/E21*F21 -> 0
B21: N01.01.357 | C21: Nhân công bậc 3,5/7 - Nhóm 1 | D21: 3.5 | E21: 1.52 | F21: ='CB ĐGNC'!D7 -> 0
B22: N01.01.377 | C22: Nhân công bậc 3,7/7 - Nhóm 1 | D22: 3.7 | E22: 1.572 | F22: =E22/E21*F21 -> 0
B23: N01.01.407 | C23: Nhân công bậc 4,0/7 - Nhóm 1 | D23: 4 | E23: 1.65 | F23: =E23/E21*F21 -> 0
B24: N01.01.427 | C24: Nhân công bậc 4,2/7 - Nhóm 1 | D24: 4.2 | E24: 1.708 | F24: =E24/E21*F21 -> 0
B25: N01.01.437 | C25: Nhân công bậc 4,3/7 - Nhóm 1 | D25: 4.3 | E25: 1.737 | F25: =E25/E21*F21 -> 0
B26: N01.01.457 | C26: Nhân công bậc 4,5/7 - Nhóm 1 | D26: 4.5 | E26: 1.795 | F26: =E26/E21*F21 -> 0
B27: N01.01.477 | C27: Nhân công bậc 4,7/7 - Nhóm 1 | D27: 4.7 | E27: 1.853 | F27: =E27/E21*F21 -> 0
B28: N01.01.507 | C28: Nhân công bậc 5,0/7 - Nhóm 1 | D28: 5 | E28: 1.94 | F28: =E28/E21*F21 -> 0
B29: N01.01.527 | C29: Nhân công bậc 5,2/7 - Nhóm 1 | D29: 5.2 | E29: 2.012 | F29: =E29/E21*F21 -> 0
B30: N01.01.537 | C30: Nhân công bậc 5,3/7 - Nhóm 1 | D30: 5.3 | E30: 2.048 | F30: =E30/E21*F21 -> 0
B31: N01.01.557 | C31: Nhân công bậc 5,5/7 - Nhóm 1 | D31: 5.5 | E31: 2.12 | F31: =E31/E21*F21 -> 0
B32: N01.01.577 | C32: Nhân công bậc 5,7/7 - Nhóm 1 | D32: 5.7 | E32: 2.192 | F32: =E32/E21*F21 -> 0
B33: N01.01.607 | C33: Nhân công bậc 6,0/7 - Nhóm 1 | D33: 6 | E33: 2.3 | F33: =E33/E21*F21 -> 0
B34: N01.01.627 | C34: Nhân công bậc 6,2/7 - Nhóm 1 | D34: 6.2 | E34: 2.382 | F34: =E34/E21*F21 -> 0
B35: N01.01.637 | C35: Nhân công bậc 6,3/7 - Nhóm 1 | D35: 6.3 | E35: 2.423 | F35: =E35/E21*F21 -> 0
B36: N01.01.657 | C36: Nhân công bậc 6,5/7 - Nhóm 1 | D36: 6.5 | E36: 2.505 | F36: =E36/E21*F21 -> 0
B37: N01.01.677 | C37: Nhân công bậc 6,7/7 - Nhóm 1 | D37: 6.7 | E37: 2.587 | F37: =E37/E21*F21 -> 0
B38: N01.01.707 | C38: Nhân công bậc 7,0/7 - Nhóm 1 | D38: 7 | E38: 2.71 | F38: =E38/E21*F21 -> 0
B39: 1.2 | C39: Nhân công nhóm 2
B40: N01.02.107 | C40: Nhân công bậc 1,0/7 - Nhóm 2 | D40: 1 | E40: 1 | F40: =E40/E53*F53 -> 0 | G40: Công tác xây dựng không thuộc nhóm I, nhóm III, nhóm IV.
B41: N01.02.127 | C41: Nhân công bậc 1,2/7 - Nhóm 2 | D41: 1.2 | E41: 1.036 | F41: =E41/E53*F53 -> 0
B42: N01.02.137 | C42: Nhân công bậc 1,3/7 - Nhóm 2 | D42: 1.3 | E42: 1.054 | F42: =E42/E53*F53 -> 0
B43: N01.02.157 | C43: Nhân công bậc 1,5/7 - Nhóm 2 | D43: 1.5 | E43: 1.09 | F43: =E43/E53*F53 -> 0
B44: N01.02.177 | C44: Nhân công bậc 1,7/7 - Nhóm 2 | D44: 1.7 | E44: 1.126 | F44: =E44/E53*F53 -> 0
B45: N01.02.207 | C45: Nhân công bậc 2,0/7 - Nhóm 2 | D45: 2 | E45: 1.18 | F45: =E45/E53*F53 -> 0
B46: N01.02.227 | C46: Nhân công bậc 2,2/7 - Nhóm 2 | D46: 2.2 | E46: 1.222 | F46: =E46/E53*F53 -> 0
B47: N01.02.237 | C47: Nhân công bậc 2,3/7 - Nhóm 2 | D47: 2.3 | E47: 1.243 | F47: =E47/E53*F53 -> 0
B48: N01.02.257 | C48: Nhân công bậc 2,5/7 - Nhóm 2 | D48: 2.5 | E48: 1.285 | F48: =E48/E53*F53 -> 0
B49: N01.02.277 | C49: Nhân công bậc 2,7/7 - Nhóm 2 | D49: 2.7 | E49: 1.327 | F49: =E49/E53*F53 -> 0
B50: N01.02.307 | C50: Nhân công bậc 3,0/7 - Nhóm 2 | D50: 3 | E50: 1.39 | F50: =E50/E53*F53 -> 0
B51: N01.02.327 | C51: Nhân công bậc 3,2/7 - Nhóm 2 | D51: 3.2 | E51: 1.442 | F51: =E51/E53*F53 -> 0
B52: N01.02.337 | C52: Nhân công bậc 3,3/7 - Nhóm 2 | D52: 3.3 | E52: 1.468 | F52: =E52/E53*F53 -> 0
B53: N01.02.357 | C53: Nhân công bậc 3,5/7 - Nhóm 2 | D53: 3.5 | E53: 1.52 | F53: ='CB ĐGNC'!D8 -> 0
B54: N01.02.377 | C54: Nhân công bậc 3,7/7 - Nhóm 2 | D54: 3.7 | E54: 1.572 | F54: =E54/E53*F53 -> 0
B55: N01.02.407 | C55: Nhân công bậc 4,0/7 - Nhóm 2 | D55: 4 | E55: 1.65 | F55: =E55/E53*F53 -> 0
B56: N01.02.427 | C56: Nhân công bậc 4,2/7 - Nhóm 2 | D56: 4.2 | E56: 1.708 | F56: =E56/E53*F53 -> 0
B57: N01.02.437 | C57: Nhân công bậc 4,3/7 - Nhóm 2 | D57: 4.3 | E57: 1.737 | F57: =E57/E53*F53 -> 0
B58: N01.02.457 | C58: Nhân công bậc 4,5/7 - Nhóm 2 | D58: 4.5 | E58: 1.795 | F58: =E58/E53*F53 -> 0
B59: N01.02.477 | C59: Nhân công bậc 4,7/7 - Nhóm 2 | D59: 4.7 | E59: 1.853 | F59: =E59/E53*F53 -> 0
B60: N01.02.507 | C60: Nhân công bậc 5,0/7 - Nhóm 2 | D60: 5 | E60: 1.94 | F60: =E60/E53*F53 -> 0
B61: N01.02.527 | C61: Nhân công bậc 5,2/7 - Nhóm 2 | D61: 5.2 | E61: 2.012 | F61: =E61/E53*F53 -> 0
B62: N01.02.537 | C62: Nhân công bậc 5,3/7 - Nhóm 2 | D62: 5.3 | E62: 2.048 | F62: =E62/E53*F53 -> 0
B63: N01.02.557 | C63: Nhân công bậc 5,5/7 - Nhóm 2 | D63: 5.5 | E63: 2.12 | F63: =E63/E53*F53 -> 0
B64: N01.02.577 | C64: Nhân công bậc 5,7/7 - Nhóm 2 | D64: 5.7 | E64: 2.192 | F64: =E64/E53*F53 -> 0
B65: N01.02.607 | C65: Nhân công bậc 6,0/7 - Nhóm 2 | D65: 6 | E65: 2.3 | F65: =E65/E53*F53 -> 0
B66: N01.02.627 | C66: Nhân công bậc 6,2/7 - Nhóm 2 | D66: 6.2 | E66: 2.382 | F66: =E66/E53*F53 -> 0
B67: N01.02.637 | C67: Nhân công bậc 6,3/7 - Nhóm 2 | D67: 6.3 | E67: 2.423 | F67: =E67/E53*F53 -> 0
B68: N01.02.657 | C68: Nhân công bậc 6,5/7 - Nhóm 2 | D68: 6.5 | E68: 2.505 | F68: =E68/E53*F53 -> 0
B69: N01.02.677 | C69: Nhân công bậc 6,7/7 - Nhóm 2 | D69: 6.7 | E69: 2.587 | F69: =E69/E53*F53 -> 0
B70: N01.02.707 | C70: Nhân công bậc 7,0/7 - Nhóm 2 | D70: 7 | E70: 2.71 | F70: =E70/E53*F53 -> 0
B71: 1.3 | C71: Nhân công nhóm 3
B72: N01.03.107 | C72: Nhân công bậc 1,0/7 - Nhóm 3 | D72: 1 | E72: 1 | F72: =E72/E85*F85 -> 0 | G72: Công tác lắp đặt, sửa chữa máy và thiết bị công trình xây dựng, công nghệ xây dựng.
B73: N01.03.127 | C73: Nhân công bậc 1,2/7 - Nhóm 3 | D73: 1.2 | E73: 1.036 | F73: =E73/E85*F85 -> 0
B74: N01.03.137 | C74: Nhân công bậc 1,3/7 - Nhóm 3 | D74: 1.3 | E74: 1.054 | F74: =E74/E85*F85 -> 0
B75: N01.03.157 | C75: Nhân công bậc 1,5/7 - Nhóm 3 | D75: 1.5 | E75: 1.09 | F75: =E75/E85*F85 -> 0
B76: N01.03.177 | C76: Nhân công bậc 1,7/7 - Nhóm 3 | D76: 1.7 | E76: 1.126 | F76: =E76/E85*F85 -> 0
B77: N01.03.207 | C77: Nhân công bậc 2,0/7 - Nhóm 3 | D77: 2 | E77: 1.18 | F77: =E77/E85*F85 -> 0
B78: N01.03.227 | C78: Nhân công bậc 2,2/7 - Nhóm 3 | D78: 2.2 | E78: 1.222 | F78: =E78/E85*F85 -> 0
B79: N01.03.237 | C79: Nhân công bậc 2,3/7 - Nhóm 3 | D79: 2.3 | E79: 1.243 | F79: =E79/E85*F85 -> 0
B80: N01.03.257 | C80: Nhân công bậc 2,5/7 - Nhóm 3 | D80: 2.5 | E80: 1.285 | F80: =E80/E85*F85 -> 0
B81: N01.03.277 | C81: Nhân công bậc 2,7/7 - Nhóm 3 | D81: 2.7 | E81: 1.327 | F81: =E81/E85*F85 -> 0
B82: N01.03.307 | C82: Nhân công bậc 3,0/7 - Nhóm 3 | D82: 3 | E82: 1.39 | F82: =E82/E85*F85 -> 0
B83: N01.03.327 | C83: Nhân công bậc 3,2/7 - Nhóm 3 | D83: 3.2 | E83: 1.442 | F83: =E83/E85*F85 -> 0
B84: N01.03.337 | C84: Nhân công bậc 3,3/7 - Nhóm 3 | D84: 3.3 | E84: 1.468 | F84: =E84/E85*F85 -> 0
B85: N01.03.357 | C85: Nhân công bậc 3,5/7 - Nhóm 3 | D85: 3.5 | E85: 1.52 | F85: ='CB ĐGNC'!$D$9 -> 0
B86: N01.03.377 | C86: Nhân công bậc 3,7/7 - Nhóm 3 | D86: 3.7 | E86: 1.572 | F86: =E86/E85*F85 -> 0
B87: N01.03.407 | C87: Nhân công bậc 4,0/7 - Nhóm 3 | D87: 4 | E87: 1.65 | F87: =E87/E85*F85 -> 0
B88: N01.03.427 | C88: Nhân công bậc 4,2/7 - Nhóm 3 | D88: 4.2 | E88: 1.708 | F88: =E88/E85*F85 -> 0
B89: N01.03.437 | C89: Nhân công bậc 4,3/7 - Nhóm 3 | D89: 4.3 | E89: 1.737 | F89: =E89/E85*F85 -> 0
B90: N01.03.457 | C90: Nhân công bậc 4,5/7 - Nhóm 3 | D90: 4.5 | E90: 1.795 | F90: =E90/E85*F85 -> 0
B91: N01.03.477 | C91: Nhân công bậc 4,7/7 - Nhóm 3 | D91: 4.7 | E91: 1.853 | F91: =E91/E85*F85 -> 0
B92: N01.03.507 | C92: Nhân công bậc 5,0/7 - Nhóm 3 | D92: 5 | E92: 1.94 | F92: =E92/E85*F85 -> 0
B93: N01.03.527 | C93: Nhân công bậc 5,2/7 - Nhóm 3 | D93: 5.2 | E93: 2.012 | F93: =E93/E85*F85 -> 0
B94: N01.03.537 | C94: Nhân công bậc 5,3/7 - Nhóm 3 | D94: 5.3 | E94: 2.048 | F94: =E94/E85*F85 -> 0
B95: N01.03.557 | C95: Nhân công bậc 5,5/7 - Nhóm 3 | D95: 5.5 | E95: 2.12 | F95: =E95/E85*F85 -> 0
B96: N01.03.577 | C96: Nhân công bậc 5,7/7 - Nhóm 3 | D96: 5.7 | E96: 2.192 | F96: =E96/E85*F85 -> 0
B97: N01.03.607 | C97: Nhân công bậc 6,0/7 - Nhóm 3 | D97: 6 | E97: 2.3 | F97: =E97/E85*F85 -> 0
B98: N01.03.627 | C98: Nhân công bậc 6,2/7 - Nhóm 3 | D98: 6.2 | E98: 2.382 | F98: =E98/E85*F85 -> 0
B99: N01.03.637 | C99: Nhân công bậc 6,3/7 - Nhóm 3 | D99: 6.3 | E99: 2.423 | F99: =E99/E85*F85 -> 0
B100: N01.03.657 | C100: Nhân công bậc 6,5/7 - Nhóm 3 | D100: 6.5 | E100: 2.505 | F100: =E100/E85*F85 -> 0
B101: N01.03.677 | C101: Nhân công bậc 6,7/7 - Nhóm 3 | D101: 6.7 | E101: 2.587 | F101: =E101/E85*F85 -> 0
B102: N01.03.707 | C102: Nhân công bậc 7,0/7 - Nhóm 3 | D102: 7 | E102: 2.71 | F102: =E102/E85*F85 -> 0
B103: 1.4 | C103: Nhân công nhóm 4
C104: Nhân công vận hành máy, thiết bị thi công xây dựng | G104: Vận hành máy, thiết bị thi công xây dựng;
B105: N01.04.107 | C105: Nhân công bậc 1,0/7 - Nhóm 4 | D105: 1 | E105: 1 | F105: =E105/E118*F118 -> 0
B106: N01.04.127 | C106: Nhân công bậc 1,2/7 - Nhóm 4 | D106: 1.2 | E106: 1.036 | F106: =E106/E118*F118 -> 0
B107: N01.04.137 | C107: Nhân công bậc 1,3/7 - Nhóm 4 | D107: 1.3 | E107: 1.054 | F107: =E107/E118*F118 -> 0
B108: N01.04.157 | C108: Nhân công bậc 1,5/7 - Nhóm 4 | D108: 1.5 | E108: 1.09 | F108: =E108/E118*F118 -> 0
B109: N01.04.177 | C109: Nhân công bậc 1,7/7 - Nhóm 4 | D109: 1.7 | E109: 1.126 | F109: =E109/E118*F118 -> 0
B110: N01.04.207 | C110: Nhân công bậc 2,0/7 - Nhóm 4 | D110: 2 | E110: 1.18 | F110: =E110/E118*F118 -> 0
B111: N01.04.227 | C111: Nhân công bậc 2,2/7 - Nhóm 4 | D111: 2.2 | E111: 1.222 | F111: =E111/E118*F118 -> 0
B112: N01.04.237 | C112: Nhân công bậc 2,3/7 - Nhóm 4 | D112: 2.3 | E112: 1.243 | F112: =E112/E118*F118 -> 0
B113: N01.04.257 | C113: Nhân công bậc 2,5/7 - Nhóm 4 | D113: 2.5 | E113: 1.285 | F113: =E113/E118*F118 -> 0
B114: N01.04.277 | C114: Nhân công bậc 2,7/7 - Nhóm 4 | D114: 2.7 | E114: 1.327 | F114: =E114/E118*F118 -> 0
B115: N01.04.307 | C115: Nhân công bậc 3,0/7 - Nhóm 4 | D115: 3 | E115: 1.39 | F115: =E115/E118*F118 -> 0
B116: N01.04.327 | C116: Nhân công bậc 3,2/7 - Nhóm 4 | D116: 3.2 | E116: 1.442 | F116: =E116/E118*F118 -> 0
B117: N01.04.337 | C117: Nhân công bậc 3,3/7 - Nhóm 4 | D117: 3.3 | E117: 1.468 | F117: =E117/E118*F118 -> 0
B118: N01.04.357 | C118: Nhân công bậc 3,5/7 - Nhóm 4 | D118: 3.5 | E118: 1.52 | F118: ='CB ĐGNC'!$D$11 -> 0
B119: N01.04.377 | C119: Nhân công bậc 3,7/7 - Nhóm 4 | D119: 3.7 | E119: 1.572 | F119: =E119/E118*F118 -> 0
B120: N01.04.407 | C120: Nhân công bậc 4,0/7 - Nhóm 4 | D120: 4 | E120: 1.65 | F120: =E120/E118*F118 -> 0
B121: N01.04.427 | C121: Nhân công bậc 4,2/7 - Nhóm 4 | D121: 4.2 | E121: 1.708 | F121: =E121/E118*F118 -> 0
B122: N01.04.437 | C122: Nhân công bậc 4,3/7 - Nhóm 4 | D122: 4.3 | E122: 1.737 | F122: =E122/E118*F118 -> 0
B123: N01.04.457 | C123: Nhân công bậc 4,5/7 - Nhóm 4 | D123: 4.5 | E123: 1.795 | F123: =E123/E118*F118 -> 0
B124: N01.04.477 | C124: Nhân công bậc 4,7/7 - Nhóm 4 | D124: 4.7 | E124: 1.853 | F124: =E124/E118*F118 -> 0
B125: N01.04.507 | C125: Nhân công bậc 5,0/7 - Nhóm 4 | D125: 5 | E125: 1.94 | F125: =E125/E118*F118 -> 0
B126: N01.04.527 | C126: Nhân công bậc 5,2/7 - Nhóm 4 | D126: 5.2 | E126: 2.012 | F126: =E126/E118*F118 -> 0
B127: N01.04.537 | C127: Nhân công bậc 5,3/7 - Nhóm 4 | D127: 5.3 | E127: 2.048 | F127: =E127/E118*F118 -> 0
B128: N01.04.557 | C128: Nhân công bậc 5,5/7 - Nhóm 4 | D128: 5.5 | E128: 2.12 | F128: =E128/E118*F118 -> 0
B129: N01.04.577 | C129: Nhân công bậc 5,7/7 - Nhóm 4 | D129: 5.7 | E129: 2.192 | F129: =E129/E118*F118 -> 0
B130: N01.04.607 | C130: Nhân công bậc 6,0/7 - Nhóm 4 | D130: 6 | E130: 2.3 | F130: =E130/E118*F118 -> 0
B131: N01.04.627 | C131: Nhân công bậc 6,2/7 - Nhóm 4 | D131: 6.2 | E131: 2.382 | F131: =E131/E118*F118 -> 0
B132: N01.04.637 | C132: Nhân công bậc 6,3/7 - Nhóm 4 | D132: 6.3 | E132: 2.423 | F132: =E132/E118*F118 -> 0
B133: N01.04.657 | C133: Nhân công bậc 6,5/7 - Nhóm 4 | D133: 6.5 | E133: 2.505 | F133: =E133/E118*F118 -> 0
B134: N01.04.677 | C134: Nhân công bậc 6,7/7 - Nhóm 4 | D134: 6.7 | E134: 2.587 | F134: =E134/E118*F118 -> 0
B135: N01.04.707 | C135: Nhân công bậc 7,0/7 - Nhóm 4 | D135: 7 | E135: 2.71 | F135: =E135/E118*F118 -> 0
C136: Lái xe các loại | G136: Lái xe các loại
B137: N01.04.104 | C137: Lái xe bậc 1,0/4 - Nhóm 4 | D137: 1 | E137: 1 | F137: =E137/E138*F138 -> 0
B138: N01.04.204 | C138: Lái xe bậc 2,0/4 - Nhóm 4 | D138: 2 | E138: 1.18 | F138: ='CB ĐGNC'!$D$12 -> 0
B139: N01.04.304 | C139: Lái xe bậc 3,0/4 - Nhóm 4 | D139: 3 | E139: 1.4 | F139: =E139/E138*F138 -> 0
B140: N01.04.404 | C140: Lái xe bậc 4,0/4 - Nhóm 4 | D140: 4 | E140: 1.65 | F140: =E140/E138*F138 -> 0
B141: II | C141: Nhóm nhân khác
B142: 2.1 | C142: Nhân công vận hành tàu thuyền
C143: Thuyền trưởng
B144: N01.51.102 | C144: Thuyền trưởng bậc 1,0/2 | D144: 1 | E144: 1 | F144: =$E144/$E$145*F$145 -> 0
B145: N01.51.152 | C145: Thuyền trưởng bậc 1,5/2 | D145: 1.5 | E145: 1.025 | F145: ='CB ĐGNC'!$D$15 -> 0
B146: N01.51.202 | C146: Thuyền trưởng bậc 2,0/2 | D146: 2 | E146: 1.05 | F146: =$E146/$E$145*F$145 -> 0
C147: Thuyền phó
B148: N01.52.102 | C148: Thuyền phó bậc 1,0/2 | D148: 1 | E148: 1 | F148: =$E148/$E$149*F$149 -> 0
B149: N01.52.152 | C149: Thuyền phó bậc 1,5/2 | D149: 1.5 | E149: 1.025 | F149: ='CB ĐGNC'!$D$16 -> 0
B150: N01.52.202 | C150: Thuyền phó bậc 2,0/2 | D150: 2 | E150: 1.05 | F150: =$E150/$E$149*F$149 -> 0
C151: Thủy thủ, thợ máy
B152: N01.60.104 | C152: Thủy thủ, thợ máy bậc 1,0/4 | D152: 1 | E152: 1 | F152: =$E152/$E$153*F$153 -> 0
B153: N01.60.204 | C153: Thủy thủ, thợ máy bậc 2,0/4 | D153: 2 | E153: 1.13 | F153: ='CB ĐGNC'!$D$17 -> 0
B154: N01.60.304 | C154: Thủy thủ, thợ máy bậc 3,0/4 | D154: 3 | E154: 1.3 | F154: =$E154/$E$153*F$153 -> 0
B155: N01.60.404 | C155: Thủy thủ, thợ máy bậc 4,0/4 | D155: 4 | E155: 1.47 | F155: =$E155/$E$153*F$153 -> 0
C156: Máy trưởng, máy I, máy II, điện trưởng, kỹ thuật viên cuốc I, kỹ thuật viên cuốc II tàu sông
B157: N01.70.102 | C157: Thợ điều khiển tàu sông bậc 1,0/2 | D157: 1 | E157: 1 | F157: =$E157/$E$158*F$158 -> 0
B158: N01.70.152 | C158: Thợ điều khiển tàu sông bậc 1,5/2 | D158: 1.5 | E158: 1.03 | F158: ='CB ĐGNC'!$D$18 -> 0
B159: N01.70.202 | C159: Thợ điều khiển tàu sông bậc 2,0/2 | D159: 2 | E159: 1.06 | F159: =$E159/$E$158*F$158 -> 0
C160: Máy trưởng, máy I, máy II, điện trưởng, kỹ thuật viên cuốc I, kỹ thuật viên cuốc II tàu biển
B161: N01.80.102 | C161: Thợ điều khiển tàu biển bậc 1,0/2 | D161: 1 | E161: 1 | F161: =$E161/$E$162*F$162 -> 0
B162: N01.80.152 | C162: Thợ điều khiển tàu biển bậc 1,5/2 | D162: 1.5 | E162: 1.02 | F162: ='CB ĐGNC'!$D$19 -> 0
B163: N01.80.202 | C163: Thợ điều khiển tàu biển bậc 2,0/2 | D163: 2 | E163: 1.04 | F163: =$E163/$E$162*F$162 -> 0
B164: 2.2 | C164: Thợ lặn
B165: N01.90.104 | C165: Thợ lặn bậc 1,0/4 | D165: 1 | E165: 1 | F165: =$E165/$E$166*F$166 -> 0 | G165: Công tác lặn để thực hiện một số công việc dưới nước trong thi công xây dựng.
B166: N01.90.204 | C166: Thợ lặn bậc 2,0/4 | D166: 2 | E166: 1.1 | F166: ='CB ĐGNC'!$D$20 -> 0
B167: N01.90.304 | C167: Thợ lặn bậc 3,0/4 | D167: 3 | E167: 1.24 | F167: =$E167/$E$166*F$166 -> 0
B168: N01.90.404 | C168: Thợ lặn bậc 4,0/4 | D168: 4 | E168: 1.39 | F168: =$E168/$E$166*F$166 -> 0
B169: N01.90.104.0 | C169: Thợ lặn cấp I | D169: I | E169: =E166 -> 1.1 | F169: =$E169/$E$166*F$166 -> 0 | G169: Tạm lấy bằng Thợ lặn bậc 2/4
B170: 2.3 | C170: Kỹ sư
B171: N01.20.108 | C171: Kỹ sư bậc 1,0/8 | D171: 1 | E171: 1 | F171: =$E171/$E$174*F$174 -> 0 | G171: - Trực tiếp thực hiện các công việc khảo sát, thí nghiệm.
B172: N01.20.208 | C172: Kỹ sư bậc 2,0/8 | D172: 2 | E172: 1.13 | F172: =$E172/$E$174*F$174 -> 0
B173: N01.20.308 | C173: Kỹ sư bậc 3,0/8 | D173: 3 | E173: 1.26 | F173: =$E173/$E$174*F$174 -> 0
B174: N01.20.408 | C174: Kỹ sư bậc 4,0/8 | D174: 4 | E174: 1.4 | F174: ='CB ĐGNC'!$D$21 -> 0
B175: N01.20.458 | C175: Kỹ sư bậc 4,5/8 | D175: 4.5 | E175: 1.465 | F175: =$E175/$E$174*F$174 -> 0
B176: N01.20.508 | C176: Kỹ sư bậc 5,0/8 | D176: 5 | E176: 1.53 | F176: =$E176/$E$174*F$174 -> 0
B177: N01.20.608 | C177: Kỹ sư bậc 6,0/8 | D177: 6 | E177: 1.66 | F177: =$E177/$E$174*F$174 -> 0
B178: N01.20.708 | C178: Kỹ sư bậc 7,0/8 | D178: 7 | E178: 1.79 | F178: =$E178/$E$174*F$174 -> 0
B179: N01.20.808 | C179: Kỹ sư bậc 8,0/8 | D179: 8 | E179: 1.93 | F179: =$E179/$E$174*F$174 -> 0
B180: 2.4 | C180: Nghệ nhân
B181: N01.30.102 | C181: Nghệ nhân bậc 1,0/2 | D181: 1 | E181: 1 | F181: =$E181/$E$182*F$182 -> 0 | G181: Chế tác đồ gỗ mỹ nghệ; Chế tác đồ đá mỹ nghệ; Chế tác tượng, biểu tượng.
B182: N01.30.152 | C182: Nghệ nhân bậc 1,5/2 | D182: 1.5 | E182: 1.04 | F182: ='CB ĐGNC'!$D$22 -> 0
B183: N01.30.202 | C183: Nghệ nhân bậc 2,0/2 | D183: 2 | E183: 1.08 | F183: =$E183/$E$182*F$182 -> 0
B184: III | C184: Nhân công tàu thuyền mở rộng
C185: Thợ điều khiển tàu, ca nô công suất máy chính từ 5CV đến 150CV
C186: Thuyền trưởng
B187: NT5CV.TT.102 | C187: Thuyền trưởng bậc 1/2 | D187: 1 | E187: 1 | F187: =$E187/$E188*F188 -> 0
B188: NT5CV.TT.152 | C188: Thuyền trưởng bậc 1,5/2 | D188: 1.5 | E188: 1.025 | F188: ='CB ĐGNC'!$D$25 -> 0
B189: NT5CV.TT.202 | C189: Thuyền trưởng bậc 2/2 | D189: 2 | E189: 1.05 | F189: =$E189/$E188*F188 -> 0
C190: Thuyền phó 1, máy 1
B191: NT5CV.TP1.102 | C191: Thuyền phó 1, máy 1 bậc 1/2 | D191: 1 | E191: 1 | F191: =$E191/$E192*F192 -> 0
B192: NT5CV.TP1.152 | C192: Thuyền phó 1, máy 1 bậc 1,5/2 | D192: 1.5 | E192: 1.025 | F192: ='CB ĐGNC'!$D$26 -> 0
B193: NT5CV.TP1.202 | C193: Thuyền phó 1, máy 1 bậc 2/2 | D193: 2 | E193: 1.05 | F193: =$E193/$E192*F192 -> 0
C194: Thuyền phó 2, máy 2
B195: NT5CV.TP2.102 | C195: Thuyền phó 2, máy 2 bậc 1/2 | D195: 1 | E195: 1 | F195: =$E195/$E196*F196 -> 0
B196: NT5CV.TP2.152 | C196: Thuyền phó 2, máy 2 bậc 1,5/2 | D196: 1.5 | E196: 1.025 | F196: ='CB ĐGNC'!$D$27 -> 0
B197: NT5CV.TP2.2.2 | C197: Thuyền phó 2, máy 2 bậc 2/2 | D197: 2 | E197: 1.05 | F197: =$E197/$E196*F196 -> 0
C198: Thợ điều khiển tàu, ca nô công suất máy chính trên 150CV; cần cẩu nổi; tàu đóng cọc
C199: Thuyền trưởng
B200: NT151CV.TT.102 | C200: Thuyền trưởng bậc 1/2 | D200: 1 | E200: 1 | F200: =$E200/$E201*F201 -> 0
B201: NT151CV.TT.152 | C201: Thuyền trưởng bậc 1,5/2 | D201: 1.5 | E201: 1.025 | F201: ='CB ĐGNC'!$D$29 -> 0
B202: NT151CV.TT.202 | C202: Thuyền trưởng bậc 2/2 | D202: 2 | E202: 1.05 | F202: =$E202/$E201*F201 -> 0
... 273 more rows
